Workbook

Sheet Data
A1: EXCHANGE%3DNSE
A2: MARKET_OPEN_MINUTE=555
A3: MARKET_CLOSE_MINUTE=930
A4: INTERVAL=300
A5: COLUMNS=DATE | B5: CLOSE | C5: HIGH | D5: LOW | E5: OPEN | F5: VOLUME
A6: DATA=
A7: TIMEZONE_OFFSET=330
A8: a1528775400 | B8: 1755.9 | C8: 1757.95 | D8: 1753.6 | E8: 1756.1 | F8: 134265 | G8: 2018-06-12T09:20:00
A9: 1 | B9: 1756.5 | C9: 1758.1 | D9: 1755.4 | E9: 1756.05 | F9: 31856 | G9: =(A9*300+1528795200)/86400+25569 -> 2018-06-12T09:25:00
A10: 2 | B10: 1756.85 | C10: 1758 | D10: 1755.05 | E10: 1756.5 | F10: 36108 | G10: =(A10*300+1528795200)/86400+25569 -> 2018-06-12T09:30:00
A11: 3 | B11: 1757.8 | C11: 1758.55 | D11: 1755.55 | E11: 1756.75 | F11: 66627 | G11: =(A11*300+1528795200)/86400+25569 -> 2018-06-12T09:35:00
A12: 4 | B12: 1759 | C12: 1759.05 | D12: 1757 | E12: 1757.5 | F12: 52437 | G12: =(A12*300+1528795200)/86400+25569 -> 2018-06-12T09:40:00
A13: 5 | B13: 1761 | C13: 1763 | D13: 1758.85 | E13: 1759 | F13: 111999 | G13: =(A13*300+1528795200)/86400+25569 -> 2018-06-12T09:45:00
A14: 6 | B14: 1767 | C14: 1767 | D14: 1759.4 | E14: 1761 | F14: 185794 | G14: =(A14*300+1528795200)/86400+25569 -> 2018-06-12T09:50:00
A15: 7 | B15: 1767.8 | C15: 1768.5 | D15: 1765.55 | E15: 1766.95 | F15: 100709 | G15: =(A15*300+1528795200)/86400+25569 -> 2018-06-12T09:55:00
A16: 8 | B16: 1771 | C16: 1773 | D16: 1767.55 | E16: 1767.7 | F16: 115859 | G16: =(A16*300+1528795200)/86400+25569 -> 2018-06-12T10:00:00
A17: 9 | B17: 1772 | C17: 1772.55 | D17: 1769.65 | E17: 1771 | F17: 85002 | G17: =(A17*300+1528795200)/86400+25569 -> 2018-06-12T10:05:00
A18: 10 | B18: 1769 | C18: 1772 | D18: 1768.5 | E18: 1771.9 | F18: 31846 | G18: =(A18*300+1528795200)/86400+25569 -> 2018-06-12T10:10:00
A19: 11 | B19: 1772.1 | C19: 1772.1 | D19: 1764.75 | E19: 1768.5 | F19: 58581 | G19: =(A19*300+1528795200)/86400+25569 -> 2018-06-12T10:15:00
A20: 12 | B20: 1773 | C20: 1774.95 | D20: 1771.1 | E20: 1772.1 | F20: 423036 | G20: =(A20*300+1528795200)/86400+25569 -> 2018-06-12T10:20:00
A21: 13 | B21: 1769.8 | C21: 1772.9 | D21: 1769 | E21: 1772.15 | F21: 17080 | G21: =(A21*300+1528795200)/86400+25569 -> 2018-06-12T10:25:00
A22: 14 | B22: 1768 | C22: 1770.7 | D22: 1767 | E22: 1769.65 | F22: 28144 | G22: =(A22*300+1528795200)/86400+25569 -> 2018-06-12T10:30:00
A23: 15 | B23: 1769.7 | C23: 1771.95 | D23: 1767.7 | E23: 1768 | F23: 17436 | G23: =(A23*300+1528795200)/86400+25569 -> 2018-06-12T10:35:00
A24: 16 | B24: 1769.9 | C24: 1770.7 | D24: 1769.25 | E24: 1769.7 | F24: 321079 | G24: =(A24*300+1528795200)/86400+25569 -> 2018-06-12T10:40:00
A25: 17 | B25: 1770.9 | C25: 1772 | D25: 1769.7 | E25: 1770 | F25: 18769 | G25: =(A25*300+1528795200)/86400+25569 -> 2018-06-12T10:45:00
A26: 18 | B26: 1771.8 | C26: 1772.6 | D26: 1770.35 | E26: 1770.5 | F26: 10633 | G26: =(A26*300+1528795200)/86400+25569 -> 2018-06-12T10:50:00
A27: 19 | B27: 1771 | C27: 1772 | D27: 1770.65 | E27: 1771.85 | F27: 21200 | G27: =(A27*300+1528795200)/86400+25569 -> 2018-06-12T10:55:00
A28: 20 | B28: 1772.65 | C28: 1773.9 | D28: 1770.5 | E28: 1770.7 | F28: 15717 | G28: =(A28*300+1528795200)/86400+25569 -> 2018-06-12T11:00:00
A29: 21 | B29: 1772.65 | C29: 1773 | D29: 1772.5 | E29: 1772.85 | F29: 20758 | G29: =(A29*300+1528795200)/86400+25569 -> 2018-06-12T11:05:00
A30: 22 | B30: 1773 | C30: 1773.55 | D30: 1772.6 | E30: 1772.65 | F30: 68955 | G30: =(A30*300+1528795200)/86400+25569 -> 2018-06-12T11:10:00
A31: 23 | B31: 1772.65 | C31: 1774 | D31: 1772 | E31: 1773 | F31: 20745 | G31: =(A31*300+1528795200)/86400+25569 -> 2018-06-12T11:15:00
A32: 24 | B32: 1772.85 | C32: 1773.5 | D32: 1772.1 | E32: 1772.9 | F32: 39346 | G32: =(A32*300+1528795200)/86400+25569 -> 2018-06-12T11:20:00
A33: 25 | B33: 1772.5 | C33: 1773 | D33: 1772.5 | E33: 1772.85 | F33: 13815 | G33: =(A33*300+1528795200)/86400+25569 -> 2018-06-12T11:25:00
A34: 26 | B34: 1772.75 | C34: 1773.05 | D34: 1772.5 | E34: 1772.5 | F34: 19437 | G34: =(A34*300+1528795200)/86400+25569 -> 2018-06-12T11:30:00
A35: 27 | B35: 1771 | C35: 1772.75 | D35: 1770.6 | E35: 1772.55 | F35: 9649 | G35: =(A35*300+1528795200)/86400+25569 -> 2018-06-12T11:35:00
A36: 28 | B36: 1770.05 | C36: 1771.5 | D36: 1770 | E36: 1770.95 | F36: 7605 | G36: =(A36*300+1528795200)/86400+25569 -> 2018-06-12T11:40:00
A37: 29 | B37: 1769.9 | C37: 1770.5 | D37: 1769.2 | E37: 1770 | F37: 44740 | G37: =(A37*300+1528795200)/86400+25569 -> 2018-06-12T11:45:00
A38: 30 | B38: 1769.9 | C38: 1770 | D38: 1769.4 | E38: 1769.9 | F38: 15216 | G38: =(A38*300+1528795200)/86400+25569 -> 2018-06-12T11:50:00
A39: 31 | B39: 1770 | C39: 1770.05 | D39: 1769.65 | E39: 1770 | F39: 17380 | G39: =(A39*300+1528795200)/86400+25569 -> 2018-06-12T11:55:00
A40: 32 | B40: 1771.75 | C40: 1772.15 | D40: 1769.9 | E40: 1770 | F40: 20523 | G40: =(A40*300+1528795200)/86400+25569 -> 2018-06-12T12:00:00
A41: 33 | B41: 1775.1 | C41: 1777 | D41: 1771.55 | E41: 1772.35 | F41: 159734 | G41: =(A41*300+1528795200)/86400+25569 -> 2018-06-12T12:05:00
A42: 34 | B42: 1772.15 | C42: 1775.6 | D42: 1771.25 | E42: 1775.6 | F42: 120910 | G42: =(A42*300+1528795200)/86400+25569 -> 2018-06-12T12:10:00
A43: 35 | B43: 1773.75 | C43: 1773.8 | D43: 1771.7 | E43: 1772.2 | F43: 63408 | G43: =(A43*300+1528795200)/86400+25569 -> 2018-06-12T12:15:00
A44: 36 | B44: 1774 | C44: 1774.8 | D44: 1772.85 | E44: 1774 | F44: 10575 | G44: =(A44*300+1528795200)/86400+25569 -> 2018-06-12T12:20:00
A45: 37 | B45: 1774.5 | C45: 1775 | D45: 1773.9 | E45: 1773.9 | F45: 8151 | G45: =(A45*300+1528795200)/86400+25569 -> 2018-06-12T12:25:00
A46: 38 | B46: 1774.85 | C46: 1775 | D46: 1774.4 | E46: 1774.65 | F46: 62403 | G46: =(A46*300+1528795200)/86400+25569 -> 2018-06-12T12:30:00
A47: 39 | B47: 1774.95 | C47: 1775.9 | D47: 1774.5 | E47: 1774.9 | F47: 22142 | G47: =(A47*300+1528795200)/86400+25569 -> 2018-06-12T12:35:00
A48: 40 | B48: 1776.1 | C48: 1777 | D48: 1774.6 | E48: 1774.95 | F48: 65427 | G48: =(A48*300+1528795200)/86400+25569 -> 2018-06-12T12:40:00
A49: 41 | B49: 1777.35 | C49: 1778.4 | D49: 1775 | E49: 1776.25 | F49: 50092 | G49: =(A49*300+1528795200)/86400+25569 -> 2018-06-12T12:45:00
A50: 42 | B50: 1778 | C50: 1778 | D50: 1777.15 | E50: 1777.55 | F50: 41670 | G50: =(A50*300+1528795200)/86400+25569 -> 2018-06-12T12:50:00
A51: 43 | B51: 1775.55 | C51: 1778.3 | D51: 1775.55 | E51: 1778 | F51: 20956 | G51: =(A51*300+1528795200)/86400+25569 -> 2018-06-12T12:55:00
A52: 44 | B52: 1770 | C52: 1775.55 | D52: 1769.5 | E52: 1775.55 | F52: 45986 | G52: =(A52*300+1528795200)/86400+25569 -> 2018-06-12T13:00:00
A53: 45 | B53: 1770.95 | C53: 1770.95 | D53: 1769.75 | E53: 1769.95 | F53: 20601 | G53: =(A53*300+1528795200)/86400+25569 -> 2018-06-12T13:05:00
A54: 46 | B54: 1773 | C54: 1773.95 | D54: 1770.8 | E54: 1771 | F54: 11331 | G54: =(A54*300+1528795200)/86400+25569 -> 2018-06-12T13:10:00
A55: 47 | B55: 1772.9 | C55: 1773 | D55: 1771 | E55: 1772.8 | F55: 7208 | G55: =(A55*300+1528795200)/86400+25569 -> 2018-06-12T13:15:00
A56: 4.817731773e+21 | G56: =(A56*300+1528795200)/86400+25569 -> 1.672823532e+19
A57: 49 | B57: 1773.7 | C57: 1774.4 | D57: 1771.65 | E57: 1773 | F57: 14202 | G57: =(A57*300+1528795200)/86400+25569 -> 2018-06-12T13:25:00
A58: 50 | B58: 1777.2 | C58: 1777.9 | D58: 1772.5 | E58: 1773.6 | F58: 16896 | G58: =(A58*300+1528795200)/86400+25569 -> 2018-06-12T13:30:00
A59: 51 | B59: 1779 | C59: 1779.9 | D59: 1776.4 | E59: 1777.2 | F59: 67312 | G59: =(A59*300+1528795200)/86400+25569 -> 2018-06-12T13:35:00
A60: 52 | B60: 1778.7 | C60: 1779.7 | D60: 1777.8 | E60: 1778.25 | F60: 337373 | G60: =(A60*300+1528795200)/86400+25569 -> 2018-06-12T13:40:00
A61: 53 | B61: 1780.75 | C61: 1781.4 | D61: 1776.3 | E61: 1778.7 | F61: 54391 | G61: =(A61*300+1528795200)/86400+25569 -> 2018-06-12T13:45:00
A62: 54 | B62: 1779.9 | C62: 1780.85 | D62: 1778.7 | E62: 1780.8 | F62: 70761 | G62: =(A62*300+1528795200)/86400+25569 -> 2018-06-12T13:50:00
A63: 55 | B63: 1778.7 | C63: 1780.5 | D63: 1778.7 | E63: 1779.9 | F63: 60915 | G63: =(A63*300+1528795200)/86400+25569 -> 2018-06-12T13:55:00
A64: 56 | B64: 1780.55 | C64: 1781 | D64: 1777.55 | E64: 1778.5 | F64: 22129 | G64: =(A64*300+1528795200)/86400+25569 -> 2018-06-12T14:00:00
A65: 57 | B65: 1779.9 | C65: 1781.15 | D65: 1779.55 | E65: 1780.5 | F65: 52026 | G65: =(A65*300+1528795200)/86400+25569 -> 2018-06-12T14:05:00
A66: 58 | B66: 1781.8 | C66: 1783.5 | D66: 1779.65 | E66: 1779.95 | F66: 25398 | G66: =(A66*300+1528795200)/86400+25569 -> 2018-06-12T14:10:00
A67: 59 | B67: 1783.35 | C67: 1784 | D67: 1781.1 | E67: 1781.8 | F67: 19019 | G67: =(A67*300+1528795200)/86400+25569 -> 2018-06-12T14:15:00
A68: 60 | B68: 1782 | C68: 1785 | D68: 1781.5 | E68: 1783.3 | F68: 35240 | G68: =(A68*300+1528795200)/86400+25569 -> 2018-06-12T14:20:00
A69: 61 | B69: 1781.5 | C69: 1782 | D69: 1780 | E69: 1781.45 | F69: 18254 | G69: =(A69*300+1528795200)/86400+25569 -> 2018-06-12T14:25:00
A70: 62 | B70: 1782 | C70: 1783.6 | D70: 1781.05 | E70: 1781.5 | F70: 20479 | G70: =(A70*300+1528795200)/86400+25569 -> 2018-06-12T14:30:00
A71: 63 | B71: 1783 | C71: 1783.65 | D71: 1781.6 | E71: 1781.95 | F71: 26564 | G71: =(A71*300+1528795200)/86400+25569 -> 2018-06-12T14:35:00
A72: 64 | B72: 1783 | C72: 1783.3 | D72: 1781.7 | E72: 1782.75 | F72: 40344 | G72: =(A72*300+1528795200)/86400+25569 -> 2018-06-12T14:40:00
A73: 65 | B73: 1785 | C73: 1785 | D73: 1782.5 | E73: 1783 | F73: 51251 | G73: =(A73*300+1528795200)/86400+25569 -> 2018-06-12T14:45:00
A74: 66 | B74: 1783.3 | C74: 1785 | D74: 1783 | E74: 1785 | F74: 18267 | G74: =(A74*300+1528795200)/86400+25569 -> 2018-06-12T14:50:00
A75: 67 | B75: 1779.95 | C75: 1783.35 | D75: 1779 | E75: 1783.35 | F75: 74478 | G75: =(A75*300+1528795200)/86400+25569 -> 2018-06-12T14:55:00
A76: 68 | B76: 1781.15 | C76: 1782 | D76: 1779.55 | E76: 1779.95 | F76: 26977 | G76: =(A76*300+1528795200)/86400+25569 -> 2018-06-12T15:00:00
A77: 69 | B77: 1780.15 | C77: 1781.75 | D77: 1779.7 | E77: 1781.2 | F77: 42999 | G77: =(A77*300+1528795200)/86400+25569 -> 2018-06-12T15:05:00
A78: 70 | B78: 1780.5 | C78: 1780.5 | D78: 1779.35 | E78: 1780.1 | F78: 79404 | G78: =(A78*300+1528795200)/86400+25569 -> 2018-06-12T15:10:00
A79: 71 | B79: 1779.95 | C79: 1781 | D79: 1779.5 | E79: 1780.6 | F79: 112214 | G79: =(A79*300+1528795200)/86400+25569 -> 2018-06-12T15:15:00
A80: 72 | B80: 1780.85 | C80: 1781.8 | D80: 1779.75 | E80: 1780 | F80: 139799 | G80: =(A80*300+1528795200)/86400+25569 -> 2018-06-12T15:20:00
A81: 73 | B81: 1783 | C81: 1784.3 | D81: 1780.5 | E81: 1781 | F81: 137634 | G81: =(A81*300+1528795200)/86400+25569 -> 2018-06-12T15:25:00
A82: 74 | B82: 1781.05 | C82: 1784.85 | D82: 1780 | E82: 1782.95 | F82: 139848 | G82: =(A82*300+1528795200)/86400+25569 -> 2018-06-12T15:30:00
A83: 288 | B83: 1812.7 | C83: 1816.5 | D83: 1800 | E83: 1815 | F83: 829956 | G83: =(A83*300+1528795200)/86400+25569 -> 2018-06-13T09:20:00
A84: 289 | B84: 1809.65 | C84: 1814.2 | D84: 1809 | E84: 1812.6 | F84: 181839 | G84: =(A84*300+1528795200)/86400+25569 -> 2018-06-13T09:25:00
A85: 290 | B85: 1808.95 | C85: 1811 | D85: 1805.55 | E85: 1809.65 | F85: 140022 | G85: =(A85*300+1528795200)/86400+25569 -> 2018-06-13T09:30:00
A86: 291 | B86: 1805.85 | C86: 1809 | D86: 1804.05 | E86: 1809 | F86: 111002 | G86: =(A86*300+1528795200)/86400+25569 -> 2018-06-13T09:35:00
A87: 292 | B87: 1810.85 | C87: 1811 | D87: 1805 | E87: 1806 | F87: 153848 | G87: =(A87*300+1528795200)/86400+25569 -> 2018-06-13T09:40:00
A88: 293 | B88: 1806.35 | C88: 1812.75 | D88: 1806 | E88: 1810.9 | F88: 75781 | G88: =(A88*300+1528795200)/86400+25569 -> 2018-06-13T09:45:00
A89: 294 | B89: 1813 | C89: 1813 | D89: 1806.15 | E89: 1806.35 | F89: 61350 | G89: =(A89*300+1528795200)/86400+25569 -> 2018-06-13T09:50:00
A90: 295 | B90: 1819.85 | C90: 1821 | D90: 1812.8 | E90: 1812.8 | F90: 194977 | G90: =(A90*300+1528795200)/86400+25569 -> 2018-06-13T09:55:00
A91: 296 | B91: 1814 | C91: 1820.5 | D91: 1814 | E91: 1819.85 | F91: 85823 | G91: =(A91*300+1528795200)/86400+25569 -> 2018-06-13T10:00:00
A92: 297 | B92: 1814.8 | C92: 1814.85 | D92: 1811.4 | E92: 1814.3 | F92: 54467 | G92: =(A92*300+1528795200)/86400+25569 -> 2018-06-13T10:05:00
A93: 298 | B93: 1816.9 | C93: 1817.45 | D93: 1814.35 | E93: 1814.75 | F93: 67940 | G93: =(A93*300+1528795200)/86400+25569 -> 2018-06-13T10:10:00
A94: 299 | B94: 1814.9 | C94: 1816.8 | D94: 1814 | E94: 1816.8 | F94: 40336 | G94: =(A94*300+1528795200)/86400+25569 -> 2018-06-13T10:15:00
A95: 300 | B95: 1814.8 | C95: 1815 | D95: 1813 | E95: 1814.9 | F95: 39848 | G95: =(A95*300+1528795200)/86400+25569 -> 2018-06-13T10:20:00
A96: 301 | B96: 1814.75 | C96: 1815 | D96: 1813.8 | E96: 1815 | F96: 28942 | G96: =(A96*300+1528795200)/86400+25569 -> 2018-06-13T10:25:00
A97: 302 | B97: 1816 | C97: 1816 | D97: 1814.4 | E97: 1814.75 | F97: 32754 | G97: =(A97*300+1528795200)/86400+25569 -> 2018-06-13T10:30:00
A98: 303 | B98: 1815.35 | C98: 1817 | D98: 1815.05 | E98: 1816 | F98: 31056 | G98: =(A98*300+1528795200)/86400+25569 -> 2018-06-13T10:35:00
A99: 304 | B99: 1814.95 | C99: 1815.25 | D99: 1814.45 | E99: 1815 | F99: 43937 | G99: =(A99*300+1528795200)/86400+25569 -> 2018-06-13T10:40:00
A100: 305 | B100: 1815 | C100: 1815.1 | D100: 1814.3 | E100: 1815 | F100: 34765 | G100: =(A100*300+1528795200)/86400+25569 -> 2018-06-13T10:45:00
A101: 306 | B101: 1813.95 | C101: 1815 | D101: 1813.9 | E101: 1815 | F101: 32920 | G101: =(A101*300+1528795200)/86400+25569 -> 2018-06-13T10:50:00
A102: 307 | B102: 1813.2 | C102: 1814 | D102: 1811.3 | E102: 1814 | F102: 43079 | G102: =(A102*300+1528795200)/86400+25569 -> 2018-06-13T10:55:00
A103: 308 | B103: 1811.9 | C103: 1814 | D103: 1810.1 | E103: 1813.2 | F103: 56518 | G103: =(A103*300+1528795200)/86400+25569 -> 2018-06-13T11:00:00
A104: 309 | B104: 1813.35 | C104: 1813.4 | D104: 1809.75 | E104: 1811.8 | F104: 41676 | G104: =(A104*300+1528795200)/86400+25569 -> 2018-06-13T11:05:00
A105: 310 | B105: 1814.3 | C105: 1815.25 | D105: 1812.45 | E105: 1813.35 | F105: 31685 | G105: =(A105*300+1528795200)/86400+25569 -> 2018-06-13T11:10:00
A106: 311 | B106: 1813.65 | C106: 1814.5 | D106: 1813.65 | E106: 1814.3 | F106: 22371 | G106: =(A106*300+1528795200)/86400+25569 -> 2018-06-13T11:15:00
A107: 312 | B107: 1815 | C107: 1816 | D107: 1811.95 | E107: 1813.65 | F107: 28758 | G107: =(A107*300+1528795200)/86400+25569 -> 2018-06-13T11:20:00
A108: 313 | B108: 1815.85 | C108: 1816 | D108: 1814.25 | E108: 1814.9 | F108: 31830 | G108: =(A108*300+1528795200)/86400+25569 -> 2018-06-13T11:25:00
A109: 314 | B109: 1817.85 | C109: 1818 | D109: 1815.5 | E109: 1815.85 | F109: 30893 | G109: =(A109*300+1528795200)/86400+25569 -> 2018-06-13T11:30:00
A110: 315 | B110: 1818.45 | C110: 1819.9 | D110: 1817 | E110: 1817.85 | F110: 51013 | G110: =(A110*300+1528795200)/86400+25569 -> 2018-06-13T11:35:00
A111: 316 | B111: 1817.75 | C111: 1818.5 | D111: 1816.6 | E111: 1818.5 | F111: 25096 | G111: =(A111*300+1528795200)/86400+25569 -> 2018-06-13T11:40:00
A112: 317 | B112: 1817 | C112: 1817.9 | D112: 1816 | E112: 1817.8 | F112: 32447 | G112: =(A112*300+1528795200)/86400+25569 -> 2018-06-13T11:45:00
A113: 318 | B113: 1815.95 | C113: 1817 | D113: 1815.3 | E113: 1816.6 | F113: 26601 | G113: =(A113*300+1528795200)/86400+25569 -> 2018-06-13T11:50:00
A114: 319 | B114: 1814.05 | C114: 1816.5 | D114: 1813.2 | E114: 1816 | F114: 33303 | G114: =(A114*300+1528795200)/86400+25569 -> 2018-06-13T11:55:00
A115: 320 | B115: 1815 | C115: 1816 | D115: 1813.2 | E115: 1814.05 | F115: 22576 | G115: =(A115*300+1528795200)/86400+25569 -> 2018-06-13T12:00:00
A116: 321 | B116: 1815.95 | C116: 1816 | D116: 1814.95 | E116: 1815 | F116: 26850 | G116: =(A116*300+1528795200)/86400+25569 -> 2018-06-13T12:05:00
A117: 322 | B117: 1817 | C117: 1818.55 | D117: 1815.95 | E117: 1815.95 | F117: 32030 | G117: =(A117*300+1528795200)/86400+25569 -> 2018-06-13T12:10:00
A118: 323 | B118: 1817 | C118: 1817 | D118: 1815.75 | E118: 1817 | F118: 30251 | G118: =(A118*300+1528795200)/86400+25569 -> 2018-06-13T12:15:00
A119: 324 | B119: 1817 | C119: 1817 | D119: 1816.05 | E119: 1817 | F119: 33634 | G119: =(A119*300+1528795200)/86400+25569 -> 2018-06-13T12:20:00
A120: 325 | B120: 1816.95 | C120: 1817 | D120: 1816.65 | E120: 1817 | F120: 26294 | G120: =(A120*300+1528795200)/86400+25569 -> 2018-06-13T12:25:00
A121: 326 | B121: 1819 | C121: 1819.5 | D121: 1816.85 | E121: 1817 | F121: 45264 | G121: =(A121*300+1528795200)/86400+25569 -> 2018-06-13T12:30:00
A122: 327 | B122: 1818.2 | C122: 1819.8 | D122: 1817.65 | E122: 1819 | F122: 58222 | G122: =(A122*300+1528795200)/86400+25569 -> 2018-06-13T12:35:00
A123: 328 | B123: 1817.45 | C123: 1819 | D123: 1817.15 | E123: 1818.4 | F123: 37211 | G123: =(A123*300+1528795200)/86400+25569 -> 2018-06-13T12:40:00
A124: 329 | B124: 1819.65 | C124: 1820 | D124: 1816.5 | E124: 1817.5 | F124: 58662 | G124: =(A124*300+1528795200)/86400+25569 -> 2018-06-13T12:45:00
A125: 330 | B125: 1819.05 | C125: 1820 | D125: 1818.7 | E125: 1819.6 | F125: 50811 | G125: =(A125*300+1528795200)/86400+25569 -> 2018-06-13T12:50:00
A126: 331 | B126: 1823.5 | C126: 1823.5 | D126: 1819.25 | E126: 1819.25 | F126: 134076 | G126: =(A126*300+1528795200)/86400+25569 -> 2018-06-13T12:55:00
A127: 332 | B127: 1822.5 | C127: 1823.6 | D127: 1819.6 | E127: 1823.6 | F127: 63902 | G127: =(A127*300+1528795200)/86400+25569 -> 2018-06-13T13:00:00
A128: 333 | B128: 1822.9 | C128: 1823.85 | D128: 1821.45 | E128: 1822.5 | F128: 66308 | G128: =(A128*300+1528795200)/86400+25569 -> 2018-06-13T13:05:00
A129: 334 | B129: 1825 | C129: 1825 | D129: 1822.3 | E129: 1823 | F129: 91971 | G129: =(A129*300+1528795200)/86400+25569 -> 2018-06-13T13:10:00
A130: 3.351826183e+24 | G130: =(A130*300+1528795200)/86400+25569 -> 1.163828536e+22
A131: 336 | B131: 1827.95 | C131: 1828.5 | D131: 1825.4 | E131: 1826.15 | F131: 47942 | G131: =(A131*300+1528795200)/86400+25569 -> 2018-06-13T13:20:00
A132: 337 | B132: 1828.2 | C132: 1829 | D132: 1826.4 | E132: 1828.1 | F132: 49675 | G132: =(A132*300+1528795200)/86400+25569 -> 2018-06-13T13:25:00
A133: 338 | B133: 1831 | C133: 1831.4 | D133: 1828.1 | E133: 1828.1 | F133: 108042 | G133: =(A133*300+1528795200)/86400+25569 -> 2018-06-13T13:30:00
A134: 339 | B134: 1829.95 | C134: 1831.5 | D134: 1828.7 | E134: 1830.95 | F134: 102711 | G134: =(A134*300+1528795200)/86400+25569 -> 2018-06-13T13:35:00
A135: 340 | B135: 1829.7 | C135: 1830 | D135: 1828.1 | E135: 1829.95 | F135: 52328 | G135: =(A135*300+1528795200)/86400+25569 -> 2018-06-13T13:40:00
A136: 341 | B136: 1826.95 | C136: 1830 | D136: 1826.6 | E136: 1829.7 | F136: 50360 | G136: =(A136*300+1528795200)/86400+25569 -> 2018-06-13T13:45:00
A137: 342 | B137: 1827.75 | C137: 1828.55 | D137: 1826.85 | E137: 1827 | F137: 36677 | G137: =(A137*300+1528795200)/86400+25569 -> 2018-06-13T13:50:00
A138: 343 | B138: 1828 | C138: 1828.95 | D138: 1827 | E138: 1827.65 | F138: 35437 | G138: =(A138*300+1528795200)/86400+25569 -> 2018-06-13T13:55:00
A139: 344 | B139: 1827.95 | C139: 1828 | D139: 1827 | E139: 1827.95 | F139: 32856 | G139: =(A139*300+1528795200)/86400+25569 -> 2018-06-13T14:00:00
A140: 345 | B140: 1827.95 | C140: 1828.05 | D140: 1826.6 | E140: 1828 | F140: 32052 | G140: =(A140*300+1528795200)/86400+25569 -> 2018-06-13T14:05:00
A141: 346 | B141: 1825.1 | C141: 1828 | D141: 1821.7 | E141: 1827.75 | F141: 67054 | G141: =(A141*300+1528795200)/86400+25569 -> 2018-06-13T14:10:00
A142: 347 | B142: 1826.65 | C142: 1827.05 | D142: 1824.75 | E142: 1825 | F142: 38808 | G142: =(A142*300+1528795200)/86400+25569 -> 2018-06-13T14:15:00
A143: 348 | B143: 1827.5 | C143: 1828.25 | D143: 1825.45 | E143: 1826.5 | F143: 27108 | G143: =(A143*300+1528795200)/86400+25569 -> 2018-06-13T14:20:00
A144: 349 | B144: 1827 | C144: 1828.75 | D144: 1826.6 | E144: 1826.6 | F144: 48148 | G144: =(A144*300+1528795200)/86400+25569 -> 2018-06-13T14:25:00
A145: 350 | B145: 1827 | C145: 1827 | D145: 1826.6 | E145: 1827 | F145: 37171 | G145: =(A145*300+1528795200)/86400+25569 -> 2018-06-13T14:30:00
A146: 351 | B146: 1823.65 | C146: 1827.6 | D146: 1823.15 | E146: 1827 | F146: 51554 | G146: =(A146*300+1528795200)/86400+25569 -> 2018-06-13T14:35:00
A147: 352 | B147: 1825.95 | C147: 1827 | D147: 1823.7 | E147: 1823.8 | F147: 42034 | G147: =(A147*300+1528795200)/86400+25569 -> 2018-06-13T14:40:00
A148: 353 | B148: 1824.95 | C148: 1826.05 | D148: 1824.95 | E148: 1825.95 | F148: 35698 | G148: =(A148*300+1528795200)/86400+25569 -> 2018-06-13T14:45:00
A149: 354 | B149: 1821.75 | C149: 1825.65 | D149: 1821.75 | E149: 1824.95 | F149: 62425 | G149: =(A149*300+1528795200)/86400+25569 -> 2018-06-13T14:50:00
A150: 355 | B150: 1819 | C150: 1821.95 | D150: 1818.05 | E150: 1821.95 | F150: 114872 | G150: =(A150*300+1528795200)/86400+25569 -> 2018-06-13T14:55:00
A151: 356 | B151: 1822.6 | C151: 1823.35 | D151: 1818.5 | E151: 1820 | F151: 60413 | G151: =(A151*300+1528795200)/86400+25569 -> 2018-06-13T15:00:00
A152: 357 | B152: 1821.95 | C152: 1825 | D152: 1821.75 | E152: 1822.65 | F152: 72248 | G152: =(A152*300+1528795200)/86400+25569 -> 2018-06-13T15:05:00
A153: 358 | B153: 1824.6 | C153: 1825 | D153: 1820.35 | E153: 1821.95 | F153: 79149 | G153: =(A153*300+1528795200)/86400+25569 -> 2018-06-13T15:10:00
A154: 359 | B154: 1826.5 | C154: 1826.95 | D154: 1823.1 | E154: 1824.6 | F154: 96359 | G154: =(A154*300+1528795200)/86400+25569 -> 2018-06-13T15:15:00
A155: 360 | B155: 1824.2 | C155: 1826 | D155: 1823 | E155: 1826 | F155: 124367 | G155: =(A155*300+1528795200)/86400+25569 -> 2018-06-13T15:20:00
A156: 361 | B156: 1823.75 | C156: 1825.25 | D156: 1822.3 | E156: 1824 | F156: 120071 | G156: =(A156*300+1528795200)/86400+25569 -> 2018-06-13T15:25:00
A157: 362 | B157: 1824 | C157: 1825 | D157: 1821 | E157: 1822.3 | F157: 100063 | G157: =(A157*300+1528795200)/86400+25569 -> 2018-06-13T15:30:00
A158: 576 | B158: 1816.3 | C158: 1828.2 | D158: 1816.1 | E158: 1828.2 | F158: 219590 | G158: =(A158*300+1528795200)/86400+25569 -> 2018-06-14T09:20:00
A159: 577 | B159: 1809.05 | C159: 1816.35 | D159: 1806.25 | E159: 1816.2 | F159: 122476 | G159: =(A159*300+1528795200)/86400+25569 -> 2018-06-14T09:25:00
A160: 578 | B160: 1807.15 | C160: 1810.05 | D160: 1805.1 | E160: 1809 | F160: 75529 | G160: =(A160*300+1528795200)/86400+25569 -> 2018-06-14T09:30:00
A161: 579 | B161: 1811.65 | C161: 1813 | D161: 1806.9 | E161: 1807.65 | F161: 44021 | G161: =(A161*300+1528795200)/86400+25569 -> 2018-06-14T09:35:00
A162: 580 | B162: 1810.3 | C162: 1812.65 | D162: 1809 | E162: 1811.5 | F162: 40121 | G162: =(A162*300+1528795200)/86400+25569 -> 2018-06-14T09:40:00
A163: 581 | B163: 1808.55 | C163: 1810.45 | D163: 1806.5 | E163: 1810.3 | F163: 27783 | G163: =(A163*300+1528795200)/86400+25569 -> 2018-06-14T09:45:00
A164: 582 | B164: 1809.9 | C164: 1810 | D164: 1808.15 | E164: 1808.55 | F164: 18964 | G164: =(A164*300+1528795200)/86400+25569 -> 2018-06-14T09:50:00
A165: 583 | B165: 1808.45 | C165: 1811.2 | D165: 1808.45 | E165: 1809.75 | F165: 31677 | G165: =(A165*300+1528795200)/86400+25569 -> 2018-06-14T09:55:00
A166: 584 | B166: 1808.05 | C166: 1810.8 | D166: 1808.05 | E166: 1808.45 | F166: 19957 | G166: =(A166*300+1528795200)/86400+25569 -> 2018-06-14T10:00:00
A167: 585 | B167: 1805 | C167: 1808.15 | D167: 1803.45 | E167: 1808.15 | F167: 51483 | G167: =(A167*300+1528795200)/86400+25569 -> 2018-06-14T10:05:00
A168: 586 | B168: 1804.25 | C168: 1805.3 | D168: 1803.2 | E168: 1805 | F168: 25896 | G168: =(A168*300+1528795200)/86400+25569 -> 2018-06-14T10:10:00
A169: 587 | B169: 1798.75 | C169: 1804.5 | D169: 1792.35 | E169: 1804.3 | F169: 160842 | G169: =(A169*300+1528795200)/86400+25569 -> 2018-06-14T10:15:00
A170: 588 | B170: 1795.85 | C170: 1801.7 | D170: 1795.25 | E170: 1798.75 | F170: 72241 | G170: =(A170*300+1528795200)/86400+25569 -> 2018-06-14T10:20:00
A171: 589 | B171: 1793.2 | C171: 1796 | D171: 1791.85 | E171: 1795.85 | F171: 65385 | G171: =(A171*300+1528795200)/86400+25569 -> 2018-06-14T10:25:00
A172: 590 | B172: 1793.2 | C172: 1794 | D172: 1792 | E172: 1793.65 | F172: 48140 | G172: =(A172*300+1528795200)/86400+25569 -> 2018-06-14T10:30:00
A173: 591 | B173: 1796.75 | C173: 1797 | D173: 1793.15 | E173: 1793.2 | F173: 30488 | G173: =(A173*300+1528795200)/86400+25569 -> 2018-06-14T10:35:00
A174: 592 | B174: 1796.15 | C174: 1798.9 | D174: 1796.05 | E174: 1796.75 | F174: 45845 | G174: =(A174*300+1528795200)/86400+25569 -> 2018-06-14T10:40:00
A175: 593 | B175: 1795.8 | C175: 1796.2 | D175: 1792.7 | E175: 1796.15 | F175: 37700 | G175: =(A175*300+1528795200)/86400+25569 -> 2018-06-14T10:45:00
A176: 594 | B176: 1797.1 | C176: 1798 | D176: 1795.25 | E176: 1795.7 | F176: 17596 | G176: =(A176*300+1528795200)/86400+25569 -> 2018-06-14T10:50:00
A177: 595 | B177: 1796.25 | C177: 1797.5 | D177: 1795.4 | E177: 1797.45 | F177: 16418 | G177: =(A177*300+1528795200)/86400+25569 -> 2018-06-14T10:55:00
A178: 596 | B178: 1795.3 | C178: 1797 | D178: 1795.05 | E178: 1796.25 | F178: 11975 | G178: =(A178*300+1528795200)/86400+25569 -> 2018-06-14T11:00:00
A179: 597 | B179: 1796.9 | C179: 1797 | D179: 1795.05 | E179: 1795.25 | F179: 17602 | G179: =(A179*300+1528795200)/86400+25569 -> 2018-06-14T11:05:00
A180: 598 | B180: 1795.95 | C180: 1798 | D180: 1795.2 | E180: 1797 | F180: 29864 | G180: =(A180*300+1528795200)/86400+25569 -> 2018-06-14T11:10:00
A181: 599 | B181: 1793.75 | C181: 1796 | D181: 1793.05 | E181: 1795.95 | F181: 20633 | G181: =(A181*300+1528795200)/86400+25569 -> 2018-06-14T11:15:00
A182: 600 | B182: 1797 | C182: 1797.4 | D182: 1793.3 | E182: 1793.75 | F182: 18113 | G182: =(A182*300+1528795200)/86400+25569 -> 2018-06-14T11:20:00
A183: 601 | B183: 1798 | C183: 1798 | D183: 1796.45 | E183: 1796.5 | F183: 15200 | G183: =(A183*300+1528795200)/86400+25569 -> 2018-06-14T11:25:00
A184: 602 | B184: 1800.1 | C184: 1800.9 | D184: 1797.85 | E184: 1798 | F184: 33424 | G184: =(A184*300+1528795200)/86400+25569 -> 2018-06-14T11:30:00
A185: 603 | B185: 1800 | C185: 1800.7 | D185: 1799.5 | E185: 1800.1 | F185: 28383 | G185: =(A185*300+1528795200)/86400+25569 -> 2018-06-14T11:35:00
A186: 604 | B186: 1799.35 | C186: 1800.05 | D186: 1799 | E186: 1800 | F186: 26219 | G186: =(A186*300+1528795200)/86400+25569 -> 2018-06-14T11:40:00
A187: 605 | B187: 1799 | C187: 1799.85 | D187: 1798.35 | E187: 1799.3 | F187: 13930 | G187: =(A187*300+1528795200)/86400+25569 -> 2018-06-14T11:45:00
A188: 606 | B188: 1798.05 | C188: 1799 | D188: 1797 | E188: 1799 | F188: 17108 | G188: =(A188*300+1528795200)/86400+25569 -> 2018-06-14T11:50:00
A189: 607 | B189: 1795.2 | C189: 1798.05 | D189: 1795.2 | E189: 1798 | F189: 31851 | G189: =(A189*300+1528795200)/86400+25569 -> 2018-06-14T11:55:00
A190: 608 | B190: 1794 | C190: 1797.35 | D190: 1793.9 | E190: 1795.7 | F190: 56228 | G190: =(A190*300+1528795200)/86400+25569 -> 2018-06-14T12:00:00
A191: 609 | B191: 1792.8 | C191: 1794.1 | D191: 1790.7 | E191: 1793.9 | F191: 55260 | G191: =(A191*300+1528795200)/86400+25569 -> 2018-06-14T12:05:00
A192: 610 | B192: 1789.3 | C192: 1792.75 | D192: 1788.35 | E192: 1792.75 | F192: 80856 | G192: =(A192*300+1528795200)/86400+25569 -> 2018-06-14T12:10:00
A193: 611 | B193: 1789.25 | C193: 1790.85 | D193: 1789 | E193: 1789.3 | F193: 23227 | G193: =(A193*300+1528795200)/86400+25569 -> 2018-06-14T12:15:00
A194: 612 | B194: 1789.6 | C194: 1790 | D194: 1789.3 | E194: 1789.3 | F194: 15631 | G194: =(A194*300+1528795200)/86400+25569 -> 2018-06-14T12:20:00
A195: 613 | B195: 1791.85 | C195: 1792.85 | D195: 1789.55 | E195: 1789.6 | F195: 21576 | G195: =(A195*300+1528795200)/86400+25569 -> 2018-06-14T12:25:00
A196: 614 | B196: 1792.2 | C196: 1793 | D196: 1790.1 | E196: 1791.45 | F196: 43837 | G196: =(A196*300+1528795200)/86400+25569 -> 2018-06-14T12:30:00
A197: 615 | B197: 1790.4 | C197: 1793.9 | D197: 1789.5 | E197: 1792.25 | F197: 78906 | G197: =(A197*300+1528795200)/86400+25569 -> 2018-06-14T12:35:00
A198: 616 | B198: 1789.55 | C198: 1792.5 | D198: 1788.05 | E198: 1790.35 | F198: 66676 | G198: =(A198*300+1528795200)/86400+25569 -> 2018-06-14T12:40:00
A199: 617 | B199: 1789.7 | C199: 1791.85 | D199: 1789.5 | E199: 1789.5 | F199: 31245 | G199: =(A199*300+1528795200)/86400+25569 -> 2018-06-14T12:45:00
A200: 618 | B200: 1790.8 | C200: 1791.6 | D200: 1789 | E200: 1789.6 | F200: 39032 | G200: =(A200*300+1528795200)/86400+25569 -> 2018-06-14T12:50:00
... 1310 more rows

Sheet GetData
A1: Date | B1: Date | C1: Open | D1: High | E1: Low | F1: Close | H1: TRUE Range | I1: ATR (SMA) | J1: ATR(EMA) | K1: ATR(WILDER) | L1: ATR | M1: Upper ATR (CLOSE) | N1: Lower ATR (CLOSE) | O1: Upper ATR (HIGH/LOW) | P1: Lower ATR (HIGH/LOW) | Q1: Upper SUPERTREND | R1: Lower SUPERTREND | S1: Basic Upperband | T1: Basic Lowerband | U1: Final Upperband | V1: Final Lowerband | W1: =IF($AA$18="ATR SL(CLOSE)","ATR SL(CLOSE)",IF($AA$18="ATR SL(HIGH/LOW)","ATR SL(HIGH/LOW)","SUPERTREND")) -> SUPERTREND | X1: Signal
A2: 2018-06-12T09:20:00 | C2: 1756.1 | D2: 1757.95 | E2: 1753.6 | F2: 1755.9 | G2: 134265 | H2: 0 | X2: =IF(A2="","",IF(ROW()>$AA$16+1,IF(F2<W2,"SELL","BUY"),"")) -> 
A3: 2018-06-12T09:25:00 | C3: 1756.05 | D3: 1758.1 | E3: 1755.4 | F3: 1756.5 | G3: 31856 | H3: =IF(A3="","",MAX(D3-E3,ABS(D3-F2),ABS(E3-F2))) -> 2.7 | I3: =IF(A3="","",IF(ROW()>$AA$16+1,AVERAGE(INDIRECT("H" & ROW()-$AA$16+1):H3),"")) ->  | J3: =IF(A3="","",IF(ROW(H3)<2+$AA$16,"",IF(ROW(H3)=2+$AA$16,AVERAGE(OFFSET(H3,1-$AA$16,0,$AA$16,1)),2/($AA$16+1)*H3+(1-2/($AA$16+1))*J2))) ->  | K3: =IF(A3="","",IF(ROW(H3)<2+$AA$16,"",IF(ROW(H3)=2+$AA$16,AVERAGE(OFFSET(H3,1-$AA$16,0,$AA$16,1)),1/$AA$16*H3+(1-1/$AA$16)*K2))) ->  | L3: =IF($AA$19="ATR (SMA)",I3,IF($AA$19="ATR (EMA)",J3,K3)) ->  | M3: =IF(A3="","",IF(ROW()>$AA$16+1,F3 + (L3*$AA$17),"")) ->  | N3: =IF(A3="","",IF(ROW()>$AA$16+1,F3 - (L3*$AA$17),"")) ->  | O3: =IF(A3="","",IF(ROW()>$AA$16+1,E3 + (L3*$AA$17),"")) ->  | P3: =IF(A3="","",IF(ROW()>$AA$16+1,D3 - (L3*$AA$17),"")) ->  | Q3: =IF(A3="","",IF(ROW()>$AA$16+1,((D3+E3)/2) + (L3*$AA$17),"")) ->  | R3: =IF(A3="","",IF(ROW()>$AA$16+1,((D3+E3)/2) - (L3*$AA$17),"")) ->  | S3: =IF($AA$18="ATR SL(CLOSE)",M3,IF($AA$18="ATR SL(HIGH/LOW)",O3,Q3)) ->  | T3: =IF($AA$18="ATR SL(CLOSE)",N3,IF($AA$18="ATR SL(HIGH/LOW)",P3,R3)) ->  | U3: =IF(A3="","",IF(ROW()>$AA$16+1,IF(OR(S3<U2,F2>U2),S3,U2),"")) ->  | V3: =IF(A3="","",IF(ROW()>$AA$16+1,IF(OR(T3>V2,F2<V2),T3,V2),"")) ->  | W3: =IF(AND(W2=U2,F3<=U3),U3,IF(AND(W2=U2,F3>=U3),V3,IF(AND(W2=V2,F3>=V3),V3,IF(AND(W2=V2,F3<=V3),U3,””)))) -> 
A4: 2018-06-12T09:30:00 | C4: 1756.5 | D4: 1758 | E4: 1755.05 | F4: 1756.85 | G4: 36108 | H4: =IF(A4="","",MAX(D4-E4,ABS(D4-F3),ABS(E4-F3))) -> 2.95 | I4: =IF(A4="","",IF(ROW()>$AA$16+1,AVERAGE(INDIRECT("H" & ROW()-$AA$16+1):H4),"")) ->  | J4: =IF(A4="","",IF(ROW(H4)<2+$AA$16,"",IF(ROW(H4)=2+$AA$16,AVERAGE(OFFSET(H4,1-$AA$16,0,$AA$16,1)),2/($AA$16+1)*H4+(1-2/($AA$16+1))*J3))) ->  | K4: =IF(A4="","",IF(ROW(H4)<2+$AA$16,"",IF(ROW(H4)=2+$AA$16,AVERAGE(OFFSET(H4,1-$AA$16,0,$AA$16,1)),1/$AA$16*H4+(1-1/$AA$16)*K3))) ->  | L4: =IF($AA$19="ATR (SMA)",I4,IF($AA$19="ATR (EMA)",J4,K4)) ->  | M4: =IF(A4="","",IF(ROW()>$AA$16+1,F4 + (L4*$AA$17),"")) ->  | N4: =IF(A4="","",IF(ROW()>$AA$16+1,F4 - (L4*$AA$17),"")) ->  | O4: =IF(A4="","",IF(ROW()>$AA$16+1,E4 + (L4*$AA$17),"")) ->  | P4: =IF(A4="","",IF(ROW()>$AA$16+1,D4 - (L4*$AA$17),"")) ->  | Q4: =IF(A4="","",IF(ROW()>$AA$16+1,((D4+E4)/2) + (L4*$AA$17),"")) ->  | R4: =IF(A4="","",IF(ROW()>$AA$16+1,((D4+E4)/2) - (L4*$AA$17),"")) ->  | S4: =IF($AA$18="ATR SL(CLOSE)",M4,IF($AA$18="ATR SL(HIGH/LOW)",O4,Q4)) ->  | W4: =IF(AND(W3=U3,F4<=U4),U4,IF(AND(W3=U3,F4>=U4),V4,IF(AND(W3=V3,F4>=V4),V4,IF(AND(W3=V3,F4<=V4),U4,””)))) -> 
A5: 2018-06-12T09:35:00 | C5: 1756.75 | D5: 1758.55 | E5: 1755.55 | F5: 1757.8 | G5: 66627 | H5: 3 | I5: =IF(A5="","",IF(ROW()>$AA$16+1,AVERAGE(INDIRECT("H" & ROW()-$AA$16+1):H5),"")) ->  | W5: =IF(AND(W4=U4,F5<=U5),U5,IF(AND(W4=U4,F5>=U5),V5,IF(AND(W4=V4,F5>=V5),V5,IF(AND(W4=V4,F5<=V5),U5,””)))) -> 
A6: 2018-06-12T09:40:00 | C6: 1757.5 | D6: 1759.05 | E6: 1757 | F6: 1759 | G6: 52437 | H6: 2.05 | I6: =IF(A6="","",IF(ROW()>$AA$16+1,AVERAGE(INDIRECT("H" & ROW()-$AA$16+1):H6),"")) ->  | W6: =IF(AND(W5=U5,F6<=U6),U6,IF(AND(W5=U5,F6>=U6),V6,IF(AND(W5=V5,F6>=V6),V6,IF(AND(W5=V5,F6<=V6),U6,””)))) -> 
A7: 2018-06-12T09:45:00 | C7: 1759 | D7: 1763 | E7: 1758.85 | F7: 1761 | G7: 111999 | H7: 4.15 | I7: =IF(A7="","",IF(ROW()>$AA$16+1,AVERAGE(INDIRECT("H" & ROW()-$AA$16+1):H7),"")) ->  | W7: =IF(AND(W6=U6,F7<=U7),U7,IF(AND(W6=U6,F7>=U7),V7,IF(AND(W6=V6,F7>=V7),V7,IF(AND(W6=V6,F7<=V7),U7,””)))) -> 
A8: 2018-06-12T09:50:00 | C8: 1761 | D8: 1767 | E8: 1759.4 | F8: 1767 | G8: 185794 | H8: 7.6 | I8: =IF(A8="","",IF(ROW()>$AA$16+1,AVERAGE(INDIRECT("H" & ROW()-$AA$16+1):H8),"")) ->  | W8: =IF(AND(W7=U7,F8<=U8),U8,IF(AND(W7=U7,F8>=U8),V8,IF(AND(W7=V7,F8>=V8),V8,IF(AND(W7=V7,F8<=V8),U8,””)))) -> 
A9: 2018-06-12T09:55:00 | C9: 1766.95 | D9: 1768.5 | E9: 1765.55 | F9: 1767.8 | G9: 100709 | H9: 2.95 | I9: =IF(A9="","",IF(ROW()>$AA$16+1,AVERAGE(INDIRECT("H" & ROW()-$AA$16+1):H9),"")) ->  | W9: =IF(AND(W8=U8,F9<=U9),U9,IF(AND(W8=U8,F9>=U9),V9,IF(AND(W8=V8,F9>=V9),V9,IF(AND(W8=V8,F9<=V9),U9,””)))) -> 
A10: 2018-06-12T10:00:00 | C10: 1767.7 | D10: 1773 | E10: 1767.55 | F10: 1771 | G10: 115859 | H10: 5.45 | I10: =IF(A10="","",IF(ROW()>$AA$16+1,AVERAGE(INDIRECT("H" & ROW()-$AA$16+1):H10),"")) ->  | W10: =IF(AND(W9=U9,F10<=U10),U10,IF(AND(W9=U9,F10>=U10),V10,IF(AND(W9=V9,F10>=V10),V10,IF(AND(W9=V9,F10<=V10),U10,””)))) -> 
A11: 2018-06-12T10:05:00 | C11: 1771 | D11: 1772.55 | E11: 1769.65 | F11: 1772 | G11: 85002 | H11: 2.9 | I11: =IF(A11="","",IF(ROW()>$AA$16+1,AVERAGE(INDIRECT("H" & ROW()-$AA$16+1):H11),"")) ->  | W11: =IF(AND(W10=U10,F11<=U11),U11,IF(AND(W10=U10,F11>=U11),V11,IF(AND(W10=V10,F11>=V11),V11,IF(AND(W10=V10,F11<=V11),U11,””)))) -> 
A12: 2018-06-12T10:10:00 | C12: 1771.9 | D12: 1772 | E12: 1768.5 | F12: 1769 | G12: 31846 | H12: 3.5 | I12: =IF(A12="","",IF(ROW()>$AA$16+1,AVERAGE(INDIRECT("H" & ROW()-$AA$16+1):H12),"")) -> 3.725 | J12: 3.725 | K12: 3.725 | L12: 3.725 | M12: 1780.175 | N12: 1757.825 | O12: 1779.675 | P12: 1760.825 | Q12: 1781.425 | R12: 1759.075 | S12: 1781.425 | T12: 1759.075 | U12: 1781.425 | V12: 1759.075 | W12: =IF(AND(W11=U11,F12<=U12),U12,IF(AND(W11=U11,F12>=U12),V12,IF(AND(W11=V11,F12>=V12),V12,IF(AND(W11=V11,F12<=V12),U12,””)))) -> 1781.425 | X12: SELL | Z12: Symbol | AA12: TCS
A13: 2018-06-12T10:15:00 | C13: 1768.5 | D13: 1772.1 | E13: 1764.75 | F13: 1772.1 | G13: 58581 | H13: 7.35 | I13: =IF(A13="","",IF(ROW()>$AA$16+1,AVERAGE(INDIRECT("H" & ROW()-$AA$16+1):H13),"")) -> 4.19 | J13: 4.384090909 | K13: 4.0875 | L13: 4.19 | M13: 1784.67 | N13: 1759.53 | O13: 1777.32 | P13: 1759.53 | Q13: 1780.995 | R13: 1755.855 | S13: 1780.995 | T13: 1755.855 | U13: 1780.995 | V13: 1759.075 | W13: =IF(AND(W12=U12,F13<=U13),U13,IF(AND(W12=U12,F13>=U13),V13,IF(AND(W12=V12,F13>=V13),V13,IF(AND(W12=V12,F13<=V13),U13,””)))) -> 1780.995 | X13: SELL | Z13: Exchange | AA13: NSE
A14: 2018-06-12T10:20:00 | C14: 1772.1 | D14: 1774.95 | E14: 1771.1 | F14: 1773 | G14: 423036 | H14: 3.85 | I14: =IF(A14="","",IF(ROW()>$AA$16+1,AVERAGE(INDIRECT("H" & ROW()-$AA$16+1):H14),"")) -> 4.28 | J14: 4.286983471 | K14: 4.06375 | L14: 4.28 | M14: 1785.84 | N14: 1760.16 | O14: 1783.94 | P14: 1762.11 | Q14: 1785.865 | R14: 1760.185 | S14: 1785.865 | T14: 1760.185 | U14: 1780.995 | V14: 1760.185 | W14: =IF(AND(W13=U13,F14<=U14),U14,IF(AND(W13=U13,F14>=U14),V14,IF(AND(W13=V13,F14>=V14),V14,IF(AND(W13=V13,F14<=V14),U14,””)))) -> 1780.995 | X14: SELL | Z14: Interval (mins) | AA14: 5
A15: 2018-06-12T10:25:00 | C15: 1772.15 | D15: 1772.9 | E15: 1769 | F15: 1769.8 | G15: 17080 | H15: 4 | I15: =IF(A15="","",IF(ROW()>$AA$16+1,AVERAGE(INDIRECT("H" & ROW()-$AA$16+1):H15),"")) -> 4.38 | J15: 4.234804658 | K15: 4.057375 | L15: 4.38 | M15: 1782.94 | N15: 1756.66 | O15: 1782.14 | P15: 1759.76 | Q15: 1784.09 | R15: 1757.81 | S15: 1784.09 | T15: 1757.81 | U15: 1780.995 | V15: 1760.185 | W15: =IF(AND(W14=U14,F15<=U15),U15,IF(AND(W14=U14,F15>=U15),V15,IF(AND(W14=V14,F15>=V15),V15,IF(AND(W14=V14,F15<=V15),U15,””)))) -> 1780.995 | X15: SELL | Z15: Number of Days | AA15: 20
A16: 2018-06-12T10:30:00 | C16: 1769.65 | D16: 1770.7 | E16: 1767 | F16: 1768 | G16: 28144 | H16: 3.7 | I16: =IF(A16="","",IF(ROW()>$AA$16+1,AVERAGE(INDIRECT("H" & ROW()-$AA$16+1):H16),"")) -> 4.545 | J16: 4.137567448 | K16: 4.0216375 | L16: 4.545 | M16: 1781.635 | N16: 1754.365 | O16: 1780.635 | P16: 1757.065 | Q16: 1782.485 | R16: 1755.215 | S16: 1782.485 | T16: 1755.215 | U16: 1780.995 | V16: 1760.185 | W16: =IF(AND(W15=U15,F16<=U16),U16,IF(AND(W15=U15,F16>=U16),V16,IF(AND(W15=V15,F16>=V16),V16,IF(AND(W15=V15,F16<=V16),U16,””)))) -> 1780.995 | X16: SELL | Z16: ATR Periods | AA16: 10
A17: 2018-06-12T10:35:00 | C17: 1768 | D17: 1771.95 | E17: 1767.7 | F17: 1769.7 | G17: 17436 | H17: 4.25 | I17: =IF(A17="","",IF(ROW()>$AA$16+1,AVERAGE(INDIRECT("H" & ROW()-$AA$16+1):H17),"")) -> 4.555 | J17: 4.15800973 | K17: 4.04447375 | L17: 4.555 | M17: 1783.365 | N17: 1756.035 | O17: 1781.365 | P17: 1758.285 | Q17: 1783.49 | R17: 1756.16 | S17: 1783.49 | T17: 1756.16 | U17: 1780.995 | V17: 1760.185 | W17: =IF(AND(W16=U16,F17<=U17),U17,IF(AND(W16=U16,F17>=U17),V17,IF(AND(W16=V16,F17>=V17),V17,IF(AND(W16=V16,F17<=V17),U17,””)))) -> 1780.995 | X17: SELL | Z17: Multiplier | AA17: 3
A18: 2018-06-12T10:40:00 | C18: 1769.7 | D18: 1770.7 | E18: 1769.25 | F18: 1769.9 | G18: 321079 | H18: 1.45 | I18: =IF(A18="","",IF(ROW()>$AA$16+1,AVERAGE(INDIRECT("H" & ROW()-$AA$16+1):H18),"")) -> 3.94 | J18: 3.665644324 | K18: 3.785026375 | L18: 3.94 | M18: 1781.72 | N18: 1758.08 | O18: 1781.07 | P18: 1758.88 | Q18: 1781.795 | R18: 1758.155 | S18: 1781.795 | T18: 1758.155 | U18: 1780.995 | V18: 1760.185 | W18: =IF(AND(W17=U17,F18<=U18),U18,IF(AND(W17=U17,F18>=U18),V18,IF(AND(W17=V17,F18>=V18),V18,IF(AND(W17=V17,F18<=V18),U18,””)))) -> 1780.995 | X18: SELL | Z18: CALCULATE | AA18: SUPERTREND
A19: 2018-06-12T10:45:00 | C19: 1770 | D19: 1772 | E19: 1769.7 | F19: 1770.9 | G19: 18769 | H19: 2.3 | I19: =IF(A19="","",IF(ROW()>$AA$16+1,AVERAGE(INDIRECT("H" & ROW()-$AA$16+1):H19),"")) -> 3.875 | J19: 3.417345356 | K19: 3.636523737 | L19: 3.875 | M19: 1782.525 | N19: 1759.275 | O19: 1781.325 | P19: 1760.375 | Q19: 1782.475 | R19: 1759.225 | S19: 1782.475 | T19: 1759.225 | U19: 1780.995 | V19: 1760.185 | W19: =IF(AND(W18=U18,F19<=U19),U19,IF(AND(W18=U18,F19>=U19),V19,IF(AND(W18=V18,F19>=V19),V19,IF(AND(W18=V18,F19<=V19),U19,””)))) -> 1780.995 | X19: SELL | Z19: WITH | AA19: ATR (SMA)
A20: 2018-06-12T10:50:00 | C20: 1770.5 | D20: 1772.6 | E20: 1770.35 | F20: 1771.8 | G20: 10633 | H20: 2.25 | I20: =IF(A20="","",IF(ROW()>$AA$16+1,AVERAGE(INDIRECT("H" & ROW()-$AA$16+1):H20),"")) -> 3.555 | J20: 3.205100746 | K20: 3.497871364 | L20: 3.555 | M20: 1782.465 | N20: 1761.135 | O20: 1781.015 | P20: 1761.935 | Q20: 1782.14 | R20: 1760.81 | S20: 1782.14 | T20: 1760.81 | U20: 1780.995 | V20: 1760.81 | W20: =IF(AND(W19=U19,F20<=U20),U20,IF(AND(W19=U19,F20>=U20),V20,IF(AND(W19=V19,F20>=V20),V20,IF(AND(W19=V19,F20<=V20),U20,””)))) -> 1780.995 | X20: SELL
A21: 2018-06-12T10:55:00 | C21: 1771.85 | D21: 1772 | E21: 1770.65 | F21: 1771 | G21: 21200 | H21: 1.35 | I21: =IF(A21="","",IF(ROW()>$AA$16+1,AVERAGE(INDIRECT("H" & ROW()-$AA$16+1):H21),"")) -> 3.4 | J21: 2.867809701 | K21: 3.283084227 | L21: 3.4 | M21: 1781.2 | N21: 1760.8 | O21: 1780.85 | P21: 1761.8 | Q21: 1781.525 | R21: 1761.125 | S21: 1781.525 | T21: 1761.125 | U21: 1780.995 | V21: 1761.125 | W21: =IF(AND(W20=U20,F21<=U21),U21,IF(AND(W20=U20,F21>=U21),V21,IF(AND(W20=V20,F21>=V21),V21,IF(AND(W20=V20,F21<=V21),U21,””)))) -> 1780.995 | X21: SELL
A22: 2018-06-12T11:00:00 | C22: 1770.7 | D22: 1773.9 | E22: 1770.5 | F22: 1772.65 | G22: 15717 | H22: 3.4 | I22: =IF(A22="","",IF(ROW()>$AA$16+1,AVERAGE(INDIRECT("H" & ROW()-$AA$16+1):H22),"")) -> 3.39 | J22: 2.964571574 | K22: 3.294775805 | L22: 3.39 | M22: 1782.82 | N22: 1762.48 | O22: 1780.67 | P22: 1763.73 | Q22: 1782.37 | R22: 1762.03 | S22: 1782.37 | T22: 1762.03 | U22: 1780.995 | V22: 1762.03 | W22: =IF(AND(W21=U21,F22<=U22),U22,IF(AND(W21=U21,F22>=U22),V22,IF(AND(W21=V21,F22>=V22),V22,IF(AND(W21=V21,F22<=V22),U22,””)))) -> 1780.995 | X22: SELL
A23: 2018-06-12T11:05:00 | C23: 1772.85 | D23: 1773 | E23: 1772.5 | F23: 1772.65 | G23: 20758 | H23: 0.5 | I23: =IF(A23="","",IF(ROW()>$AA$16+1,AVERAGE(INDIRECT("H" & ROW()-$AA$16+1):H23),"")) -> 2.705 | J23: 2.516467651 | K23: 3.015298224 | L23: 2.705 | M23: 1780.765 | N23: 1764.535 | O23: 1780.615 | P23: 1764.885 | Q23: 1780.865 | R23: 1764.635 | S23: 1780.865 | T23: 1764.635 | U23: 1780.865 | V23: 1764.635 | W23: =IF(AND(W22=U22,F23<=U23),U23,IF(AND(W22=U22,F23>=U23),V23,IF(AND(W22=V22,F23>=V23),V23,IF(AND(W22=V22,F23<=V23),U23,””)))) -> 1780.865 | X23: SELL
A24: 2018-06-12T11:10:00 | C24: 1772.65 | D24: 1773.55 | E24: 1772.6 | F24: 1773 | G24: 68955 | H24: 0.95 | I24: =IF(A24="","",IF(ROW()>$AA$16+1,AVERAGE(INDIRECT("H" & ROW()-$AA$16+1):H24),"")) -> 2.415 | J24: 2.231655351 | K24: 2.808768402 | L24: 2.415 | M24: 1780.245 | N24: 1765.755 | O24: 1779.845 | P24: 1766.305 | Q24: 1780.32 | R24: 1765.83 | S24: 1780.32 | T24: 1765.83 | U24: 1780.32 | V24: 1765.83 | W24: =IF(AND(W23=U23,F24<=U24),U24,IF(AND(W23=U23,F24>=U24),V24,IF(AND(W23=V23,F24>=V24),V24,IF(AND(W23=V23,F24<=V24),U24,””)))) -> 1780.32 | X24: SELL
A25: 2018-06-12T11:15:00 | C25: 1773 | D25: 1774 | E25: 1772 | F25: 1772.65 | G25: 20745 | H25: 2 | I25: =IF(A25="","",IF(ROW()>$AA$16+1,AVERAGE(INDIRECT("H" & ROW()-$AA$16+1):H25),"")) -> 2.215 | J25: 2.189536196 | K25: 2.727891562 | L25: 2.215 | M25: 1779.295 | N25: 1766.005 | O25: 1778.645 | P25: 1767.355 | Q25: 1779.645 | R25: 1766.355 | S25: 1779.645 | T25: 1766.355 | U25: 1779.645 | V25: 1766.355 | W25: =IF(AND(W24=U24,F25<=U25),U25,IF(AND(W24=U24,F25>=U25),V25,IF(AND(W24=V24,F25>=V25),V25,IF(AND(W24=V24,F25<=V25),U25,””)))) -> 1779.645 | X25: SELL
A26: 2018-06-12T11:20:00 | C26: 1772.9 | D26: 1773.5 | E26: 1772.1 | F26: 1772.85 | G26: 39346 | H26: 1.4 | I26: =IF(A26="","",IF(ROW()>$AA$16+1,AVERAGE(INDIRECT("H" & ROW()-$AA$16+1):H26),"")) -> 1.985 | J26: 2.045984161 | K26: 2.595102405 | L26: 1.985 | M26: 1778.805 | N26: 1766.895 | O26: 1778.055 | P26: 1767.545 | Q26: 1778.755 | R26: 1766.845 | S26: 1778.755 | T26: 1766.845 | U26: 1778.755 | V26: 1766.845 | W26: =IF(AND(W25=U25,F26<=U26),U26,IF(AND(W25=U25,F26>=U26),V26,IF(AND(W25=V25,F26>=V26),V26,IF(AND(W25=V25,F26<=V26),U26,””)))) -> 1778.755 | X26: SELL
A27: 2018-06-12T11:25:00 | C27: 1772.85 | D27: 1773 | E27: 1772.5 | F27: 1772.5 | G27: 13815 | H27: 0.5 | I27: =IF(A27="","",IF(ROW()>$AA$16+1,AVERAGE(INDIRECT("H" & ROW()-$AA$16+1):H27),"")) -> 1.61 | J27: 1.764896131 | K27: 2.385592165 | L27: 1.61 | M27: 1777.33 | N27: 1767.67 | O27: 1777.33 | P27: 1768.17 | Q27: 1777.58 | R27: 1767.92 | S27: 1777.58 | T27: 1767.92 | U27: 1777.58 | V27: 1767.92 | W27: =IF(AND(W26=U26,F27<=U27),U27,IF(AND(W26=U26,F27>=U27),V27,IF(AND(W26=V26,F27>=V27),V27,IF(AND(W26=V26,F27<=V27),U27,””)))) -> 1777.58 | X27: SELL
A28: 2018-06-12T11:30:00 | C28: 1772.5 | D28: 1773.05 | E28: 1772.5 | F28: 1772.75 | G28: 19437 | H28: 0.55 | I28: =IF(A28="","",IF(ROW()>$AA$16+1,AVERAGE(INDIRECT("H" & ROW()-$AA$16+1):H28),"")) -> 1.52 | J28: 1.544005926 | K28: 2.202032948 | L28: 1.52 | M28: 1777.31 | N28: 1768.19 | O28: 1777.06 | P28: 1768.49 | Q28: 1777.335 | R28: 1768.215 | S28: 1777.335 | T28: 1768.215 | U28: 1777.335 | V28: 1768.215 | W28: =IF(AND(W27=U27,F28<=U28),U28,IF(AND(W27=U27,F28>=U28),V28,IF(AND(W27=V27,F28>=V28),V28,IF(AND(W27=V27,F28<=V28),U28,””)))) -> 1777.335 | X28: SELL
A29: 2018-06-12T11:35:00 | C29: 1772.55 | D29: 1772.75 | E29: 1770.6 | F29: 1771 | G29: 9649 | H29: 2.15 | I29: =IF(A29="","",IF(ROW()>$AA$16+1,AVERAGE(INDIRECT("H" & ROW()-$AA$16+1):H29),"")) -> 1.505 | J29: 1.654186666 | K29: 2.196829654 | L29: 1.505 | M29: 1775.515 | N29: 1766.485 | O29: 1775.115 | P29: 1768.235 | Q29: 1776.19 | R29: 1767.16 | S29: 1776.19 | T29: 1767.16 | U29: 1776.19 | V29: 1768.215 | W29: =IF(AND(W28=U28,F29<=U29),U29,IF(AND(W28=U28,F29>=U29),V29,IF(AND(W28=V28,F29>=V29),V29,IF(AND(W28=V28,F29<=V29),U29,””)))) -> 1776.19 | X29: SELL
A30: 2018-06-12T11:40:00 | C30: 1770.95 | D30: 1771.5 | E30: 1770 | F30: 1770.05 | G30: 7605 | H30: 1.5 | I30: =IF(A30="","",IF(ROW()>$AA$16+1,AVERAGE(INDIRECT("H" & ROW()-$AA$16+1):H30),"")) -> 1.43 | J30: 1.626152727 | K30: 2.127146688 | L30: 1.43 | M30: 1774.34 | N30: 1765.76 | O30: 1774.29 | P30: 1767.21 | Q30: 1775.04 | R30: 1766.46 | S30: 1775.04 | T30: 1766.46 | U30: 1775.04 | V30: 1768.215 | W30: =IF(AND(W29=U29,F30<=U30),U30,IF(AND(W29=U29,F30>=U30),V30,IF(AND(W29=V29,F30>=V30),V30,IF(AND(W29=V29,F30<=V30),U30,””)))) -> 1775.04 | X30: SELL
A31: 2018-06-12T11:45:00 | C31: 1770 | D31: 1770.5 | E31: 1769.2 | F31: 1769.9 | G31: 44740 | H31: 1.3 | I31: =IF(A31="","",IF(ROW()>$AA$16+1,AVERAGE(INDIRECT("H" & ROW()-$AA$16+1):H31),"")) -> 1.425 | J31: 1.566852231 | K31: 2.044432019 | L31: 1.425 | M31: 1774.175 | N31: 1765.625 | O31: 1773.475 | P31: 1766.225 | Q31: 1774.125 | R31: 1765.575 | S31: 1774.125 | T31: 1765.575 | U31: 1774.125 | V31: 1768.215 | W31: =IF(AND(W30=U30,F31<=U31),U31,IF(AND(W30=U30,F31>=U31),V31,IF(AND(W30=V30,F31>=V31),V31,IF(AND(W30=V30,F31<=V31),U31,””)))) -> 1774.125 | X31: SELL
A32: 2018-06-12T11:50:00 | C32: 1769.9 | D32: 1770 | E32: 1769.4 | F32: 1769.9 | G32: 15216 | H32: 0.6 | I32: =IF(A32="","",IF(ROW()>$AA$16+1,AVERAGE(INDIRECT("H" & ROW()-$AA$16+1):H32),"")) -> 1.145 | J32: 1.391060917 | K32: 1.899988817 | L32: 1.145 | M32: 1773.335 | N32: 1766.465 | O32: 1772.835 | P32: 1766.565 | Q32: 1773.135 | R32: 1766.265 | S32: 1773.135 | T32: 1766.265 | U32: 1773.135 | V32: 1768.215 | W32: =IF(AND(W31=U31,F32<=U32),U32,IF(AND(W31=U31,F32>=U32),V32,IF(AND(W31=V31,F32>=V32),V32,IF(AND(W31=V31,F32<=V32),U32,””)))) -> 1773.135 | X32: SELL
A33: 2018-06-12T11:55:00 | C33: 1770 | D33: 1770.05 | E33: 1769.65 | F33: 1770 | G33: 17380 | H33: 0.4 | I33: =IF(A33="","",IF(ROW()>$AA$16+1,AVERAGE(INDIRECT("H" & ROW()-$AA$16+1):H33),"")) -> 1.135 | J33: 1.210868023 | K33: 1.749989936 | L33: 1.135 | M33: 1773.405 | N33: 1766.595 | O33: 1773.055 | P33: 1766.645 | Q33: 1773.255 | R33: 1766.445 | S33: 1773.255 | T33: 1766.445 | U33: 1773.135 | V33: 1768.215 | W33: =IF(AND(W32=U32,F33<=U33),U33,IF(AND(W32=U32,F33>=U33),V33,IF(AND(W32=V32,F33>=V33),V33,IF(AND(W32=V32,F33<=V33),U33,””)))) -> 1773.135 | X33: SELL
A34: 2018-06-12T12:00:00 | C34: 1770 | D34: 1772.15 | E34: 1769.9 | F34: 1771.75 | G34: 20523 | H34: 2.25 | I34: =IF(A34="","",IF(ROW()>$AA$16+1,AVERAGE(INDIRECT("H" & ROW()-$AA$16+1):H34),"")) -> 1.265 | J34: 1.399801109 | K34: 1.799990942 | L34: 1.265 | M34: 1775.545 | N34: 1767.955 | O34: 1773.695 | P34: 1768.355 | Q34: 1774.82 | R34: 1767.23 | S34: 1774.82 | T34: 1767.23 | U34: 1773.135 | V34: 1768.215 | W34: =IF(AND(W33=U33,F34<=U34),U34,IF(AND(W33=U33,F34>=U34),V34,IF(AND(W33=V33,F34>=V34),V34,IF(AND(W33=V33,F34<=V34),U34,””)))) -> 1773.135 | X34: SELL
A35: 2018-06-12T12:05:00 | C35: 1772.35 | D35: 1777 | E35: 1771.55 | F35: 1775.1 | G35: 159734 | H35: 5.45 | I35: =IF(A35="","",IF(ROW()>$AA$16+1,AVERAGE(INDIRECT("H" & ROW()-$AA$16+1):H35),"")) -> 1.61 | J35: 2.136200908 | K35: 2.164991848 | L35: 1.61 | M35: 1779.93 | N35: 1770.27 | O35: 1776.38 | P35: 1772.17 | Q35: 1779.105 | R35: 1769.445 | S35: 1779.105 | T35: 1769.445 | U35: 1773.135 | V35: 1769.445 | W35: =IF(AND(W34=U34,F35<=U35),U35,IF(AND(W34=U34,F35>=U35),V35,IF(AND(W34=V34,F35>=V35),V35,IF(AND(W34=V34,F35<=V35),U35,””)))) -> 1769.445 | X35: BUY
A36: 2018-06-12T12:10:00 | C36: 1775.6 | D36: 1775.6 | E36: 1771.25 | F36: 1772.15 | G36: 120910 | H36: 4.35 | I36: =IF(A36="","",IF(ROW()>$AA$16+1,AVERAGE(INDIRECT("H" & ROW()-$AA$16+1):H36),"")) -> 1.905 | J36: 2.538709834 | K36: 2.383492663 | L36: 1.905 | M36: 1777.865 | N36: 1766.435 | O36: 1776.965 | P36: 1769.885 | Q36: 1779.14 | R36: 1767.71 | S36: 1779.14 | T36: 1767.71 | U36: 1779.14 | V36: 1769.445 | W36: =IF(AND(W35=U35,F36<=U36),U36,IF(AND(W35=U35,F36>=U36),V36,IF(AND(W35=V35,F36>=V36),V36,IF(AND(W35=V35,F36<=V36),U36,””)))) -> 1769.445 | X36: BUY
A37: 2018-06-12T12:15:00 | C37: 1772.2 | D37: 1773.8 | E37: 1771.7 | F37: 1773.75 | G37: 63408 | H37: 2.1 | I37: =IF(A37="","",IF(ROW()>$AA$16+1,AVERAGE(INDIRECT("H" & ROW()-$AA$16+1):H37),"")) -> 2.065 | J37: 2.458944409 | K37: 2.355143397 | L37: 2.065 | M37: 1779.945 | N37: 1767.555 | O37: 1777.895 | P37: 1767.605 | Q37: 1778.945 | R37: 1766.555 | S37: 1778.945 | T37: 1766.555 | U37: 1778.945 | V37: 1769.445 | W37: =IF(AND(W36=U36,F37<=U37),U37,IF(AND(W36=U36,F37>=U37),V37,IF(AND(W36=V36,F37>=V37),V37,IF(AND(W36=V36,F37<=V37),U37,””)))) -> 1769.445 | X37: BUY
A38: 2018-06-12T12:20:00 | C38: 1774 | D38: 1774.8 | E38: 1772.85 | F38: 1774 | G38: 10575 | H38: 1.95 | I38: =IF(A38="","",IF(ROW()>$AA$16+1,AVERAGE(INDIRECT("H" & ROW()-$AA$16+1):H38),"")) -> 2.205 | J38: 2.366409062 | K38: 2.314629057 | L38: 2.205 | M38: 1780.615 | N38: 1767.385 | O38: 1779.465 | P38: 1768.185 | Q38: 1780.44 | R38: 1767.21 | S38: 1780.44 | T38: 1767.21 | U38: 1778.945 | V38: 1769.445 | W38: =IF(AND(W37=U37,F38<=U38),U38,IF(AND(W37=U37,F38>=U38),V38,IF(AND(W37=V37,F38>=V38),V38,IF(AND(W37=V37,F38<=V38),U38,””)))) -> 1769.445 | X38: BUY
A39: 2018-06-12T12:25:00 | C39: 1773.9 | D39: 1775 | E39: 1773.9 | F39: 1774.5 | G39: 8151 | H39: 1.1 | I39: =IF(A39="","",IF(ROW()>$AA$16+1,AVERAGE(INDIRECT("H" & ROW()-$AA$16+1):H39),"")) -> 2.1 | J39: 2.136152869 | K39: 2.193166151 | L39: 2.1 | M39: 1780.8 | N39: 1768.2 | O39: 1780.2 | P39: 1768.7 | Q39: 1780.75 | R39: 1768.15 | S39: 1780.75 | T39: 1768.15 | U39: 1778.945 | V39: 1769.445 | W39: =IF(AND(W38=U38,F39<=U39),U39,IF(AND(W38=U38,F39>=U39),V39,IF(AND(W38=V38,F39>=V39),V39,IF(AND(W38=V38,F39<=V39),U39,””)))) -> 1769.445 | X39: BUY
A40: 2018-06-12T12:30:00 | C40: 1774.65 | D40: 1775 | E40: 1774.4 | F40: 1774.85 | G40: 62403 | H40: 0.6 | I40: =IF(A40="","",IF(ROW()>$AA$16+1,AVERAGE(INDIRECT("H" & ROW()-$AA$16+1):H40),"")) -> 2.01 | J40: 1.856852347 | K40: 2.033849536 | L40: 2.01 | M40: 1780.88 | N40: 1768.82 | O40: 1780.43 | P40: 1768.97 | Q40: 1780.73 | R40: 1768.67 | S40: 1780.73 | T40: 1768.67 | U40: 1778.945 | V40: 1769.445 | W40: =IF(AND(W39=U39,F40<=U40),U40,IF(AND(W39=U39,F40>=U40),V40,IF(AND(W39=V39,F40>=V40),V40,IF(AND(W39=V39,F40<=V40),U40,””)))) -> 1769.445 | X40: BUY
A41: 2018-06-12T12:35:00 | C41: 1774.9 | D41: 1775.9 | E41: 1774.5 | F41: 1774.95 | G41: 22142 | H41: 1.4 | I41: =IF(A41="","",IF(ROW()>$AA$16+1,AVERAGE(INDIRECT("H" & ROW()-$AA$16+1):H41),"")) -> 2.02 | J41: 1.773788284 | K41: 1.970464583 | L41: 2.02 | M41: 1781.01 | N41: 1768.89 | O41: 1780.56 | P41: 1769.84 | Q41: 1781.26 | R41: 1769.14 | S41: 1781.26 | T41: 1769.14 | U41: 1778.945 | V41: 1769.445 | W41: =IF(AND(W40=U40,F41<=U41),U41,IF(AND(W40=U40,F41>=U41),V41,IF(AND(W40=V40,F41>=V41),V41,IF(AND(W40=V40,F41<=V41),U41,””)))) -> 1769.445 | X41: BUY
A42: 2018-06-12T12:40:00 | C42: 1774.95 | D42: 1777 | E42: 1774.6 | F42: 1776.1 | G42: 65427 | H42: 2.4 | I42: =IF(A42="","",IF(ROW()>$AA$16+1,AVERAGE(INDIRECT("H" & ROW()-$AA$16+1):H42),"")) -> 2.2 | J42: 1.88764496 | K42: 2.013418124 | L42: 2.2 | M42: 1782.7 | N42: 1769.5 | O42: 1781.2 | P42: 1770.4 | Q42: 1782.4 | R42: 1769.2 | S42: 1782.4 | T42: 1769.2 | U42: 1778.945 | V42: 1769.445 | W42: =IF(AND(W41=U41,F42<=U42),U42,IF(AND(W41=U41,F42>=U42),V42,IF(AND(W41=V41,F42>=V42),V42,IF(AND(W41=V41,F42<=V42),U42,””)))) -> 1769.445 | X42: BUY
A43: 2018-06-12T12:45:00 | C43: 1776.25 | D43: 1778.4 | E43: 1775 | F43: 1777.35 | G43: 50092 | H43: 3.4 | I43: =IF(A43="","",IF(ROW()>$AA$16+1,AVERAGE(INDIRECT("H" & ROW()-$AA$16+1):H43),"")) -> 2.5 | J43: 2.162618603 | K43: 2.152076312 | L43: 2.5 | M43: 1784.85 | N43: 1769.85 | O43: 1782.5 | P43: 1770.9 | Q43: 1784.2 | R43: 1769.2 | S43: 1784.2 | T43: 1769.2 | U43: 1778.945 | V43: 1769.445 | W43: =IF(AND(W42=U42,F43<=U43),U43,IF(AND(W42=U42,F43>=U43),V43,IF(AND(W42=V42,F43>=V43),V43,IF(AND(W42=V42,F43<=V43),U43,””)))) -> 1769.445 | X43: BUY
A44: 2018-06-12T12:50:00 | C44: 1777.55 | D44: 1778 | E44: 1777.15 | F44: 1778 | G44: 41670 | H44: 0.85 | I44: =IF(A44="","",IF(ROW()>$AA$16+1,AVERAGE(INDIRECT("H" & ROW()-$AA$16+1):H44),"")) -> 2.36 | J44: 1.923960676 | K44: 2.021868681 | L44: 2.36 | M44: 1785.08 | N44: 1770.92 | O44: 1784.23 | P44: 1770.92 | Q44: 1784.655 | R44: 1770.495 | S44: 1784.655 | T44: 1770.495 | U44: 1778.945 | V44: 1770.495 | W44: =IF(AND(W43=U43,F44<=U44),U44,IF(AND(W43=U43,F44>=U44),V44,IF(AND(W43=V43,F44>=V44),V44,IF(AND(W43=V43,F44<=V44),U44,””)))) -> 1770.495 | X44: BUY
A45: 2018-06-12T12:55:00 | C45: 1778 | D45: 1778.3 | E45: 1775.55 | F45: 1775.55 | G45: 20956 | H45: 2.75 | I45: =IF(A45="","",IF(ROW()>$AA$16+1,AVERAGE(INDIRECT("H" & ROW()-$AA$16+1):H45),"")) -> 2.09 | J45: 2.074149644 | K45: 2.094681813 | L45: 2.09 | M45: 1781.82 | N45: 1769.28 | O45: 1781.82 | P45: 1772.03 | Q45: 1783.195 | R45: 1770.655 | S45: 1783.195 | T45: 1770.655 | U45: 1778.945 | V45: 1770.655 | W45: =IF(AND(W44=U44,F45<=U45),U45,IF(AND(W44=U44,F45>=U45),V45,IF(AND(W44=V44,F45>=V45),V45,IF(AND(W44=V44,F45<=V45),U45,””)))) -> 1770.655 | X45: BUY
A46: 2018-06-12T13:00:00 | C46: 1775.55 | D46: 1775.55 | E46: 1769.5 | F46: 1770 | G46: 45986 | H46: 6.05 | I46: =IF(A46="","",IF(ROW()>$AA$16+1,AVERAGE(INDIRECT("H" & ROW()-$AA$16+1):H46),"")) -> 2.26 | J46: 2.797031527 | K46: 2.490213631 | L46: 2.26 | M46: 1776.78 | N46: 1763.22 | O46: 1776.28 | P46: 1768.77 | Q46: 1779.305 | R46: 1765.745 | S46: 1779.305 | T46: 1765.745 | U46: 1778.945 | V46: 1770.655 | W46: =IF(AND(W45=U45,F46<=U46),U46,IF(AND(W45=U45,F46>=U46),V46,IF(AND(W45=V45,F46>=V46),V46,IF(AND(W45=V45,F46<=V46),U46,””)))) -> 1778.945 | X46: SELL
A47: 2018-06-12T13:05:00 | C47: 1769.95 | D47: 1770.95 | E47: 1769.75 | F47: 1770.95 | G47: 20601 | H47: 1.2 | I47: =IF(A47="","",IF(ROW()>$AA$16+1,AVERAGE(INDIRECT("H" & ROW()-$AA$16+1):H47),"")) -> 2.17 | J47: 2.506662158 | K47: 2.361192268 | L47: 2.17 | M47: 1777.46 | N47: 1764.44 | O47: 1776.26 | P47: 1764.44 | Q47: 1776.86 | R47: 1763.84 | S47: 1776.86 | T47: 1763.84 | U47: 1776.86 | V47: 1763.84 | W47: =IF(AND(W46=U46,F47<=U47),U47,IF(AND(W46=U46,F47>=U47),V47,IF(AND(W46=V46,F47>=V47),V47,IF(AND(W46=V46,F47<=V47),U47,””)))) -> 1776.86 | X47: SELL
A48: 2018-06-12T13:10:00 | C48: 1771 | D48: 1773.95 | E48: 1770.8 | F48: 1773 | G48: 11331 | H48: 3.15 | I48: =IF(A48="","",IF(ROW()>$AA$16+1,AVERAGE(INDIRECT("H" & ROW()-$AA$16+1):H48),"")) -> 2.29 | J48: 2.623632675 | K48: 2.440073041 | L48: 2.29 | M48: 1779.87 | N48: 1766.13 | O48: 1777.67 | P48: 1767.08 | Q48: 1779.245 | R48: 1765.505 | S48: 1779.245 | T48: 1765.505 | U48: 1776.86 | V48: 1765.505 | W48: =IF(AND(W47=U47,F48<=U48),U48,IF(AND(W47=U47,F48>=U48),V48,IF(AND(W47=V47,F48>=V48),V48,IF(AND(W47=V47,F48<=V48),U48,””)))) -> 1776.86 | X48: SELL
A49: 2018-06-12T13:15:00 | C49: 1772.8 | D49: 1773 | E49: 1771 | F49: 1772.9 | G49: 7208 | H49: 2 | I49: =IF(A49="","",IF(ROW()>$AA$16+1,AVERAGE(INDIRECT("H" & ROW()-$AA$16+1):H49),"")) -> 2.38 | J49: 2.510244916 | K49: 2.396065737 | L49: 2.38 | M49: 1780.04 | N49: 1765.76 | O49: 1778.14 | P49: 1765.86 | Q49: 1779.14 | R49: 1764.86 | S49: 1779.14 | T49: 1764.86 | U49: 1776.86 | V49: 1765.505 | W49: =IF(AND(W48=U48,F49<=U49),U49,IF(AND(W48=U48,F49>=U49),V49,IF(AND(W48=V48,F49>=V49),V49,IF(AND(W48=V48,F49<=V49),U49,””)))) -> 1776.86 | X49: SELL
A50: 1.672823532e+19 | H50: 1772.9 | I50: =IF(A50="","",IF(ROW()>$AA$16+1,AVERAGE(INDIRECT("H" & ROW()-$AA$16+1):H50),"")) -> 179.61 | J50: 324.3992913 | K50: 179.4464592 | L50: 179.61 | M50: 538.83 | N50: -538.83 | O50: 538.83 | P50: -538.83 | Q50: 538.83 | R50: -538.83 | S50: 538.83 | T50: -538.83 | U50: 538.83 | V50: 1765.505 | W50: =IF(AND(W49=U49,F50<=U50),U50,IF(AND(W49=U49,F50>=U50),V50,IF(AND(W49=V49,F50>=V50),V50,IF(AND(W49=V49,F50<=V50),U50,””)))) -> 538.83 | X50: SELL
A51: 2018-06-12T13:25:00 | C51: 1773 | D51: 1774.4 | E51: 1771.65 | F51: 1773.7 | G51: 14202 | H51: 1774.4 | I51: =IF(A51="","",IF(ROW()>$AA$16+1,AVERAGE(INDIRECT("H" & ROW()-$AA$16+1):H51),"")) -> 356.91 | J51: 588.0357838 | K51: 338.9418132 | L51: 356.91 | M51: 2844.43 | N51: 702.97 | O51: 2842.38 | P51: 703.67 | Q51: 2843.755 | R51: 702.295 | S51: 2843.755 | T51: 702.295 | U51: 538.83 | V51: 702.295 | W51: =IF(AND(W50=U50,F51<=U51),U51,IF(AND(W50=U50,F51>=U51),V51,IF(AND(W50=V50,F51>=V51),V51,IF(AND(W50=V50,F51<=V51),U51,””)))) -> 702.295 | X51: BUY
A52: 2018-06-12T13:30:00 | C52: 1773.6 | D52: 1777.9 | E52: 1772.5 | F52: 1777.2 | G52: 16896 | H52: 5.4 | I52: =IF(A52="","",IF(ROW()>$AA$16+1,AVERAGE(INDIRECT("H" & ROW()-$AA$16+1):H52),"")) -> 357.21 | J52: 482.1020049 | K52: 305.5876319 | L52: 357.21 | M52: 2848.83 | N52: 705.57 | O52: 2844.13 | P52: 706.27 | Q52: 2846.83 | R52: 703.57 | S52: 2846.83 | T52: 703.57 | U52: 2846.83 | V52: 703.57 | W52: =IF(AND(W51=U51,F52<=U52),U52,IF(AND(W51=U51,F52>=U52),V52,IF(AND(W51=V51,F52>=V52),V52,IF(AND(W51=V51,F52<=V52),U52,””)))) -> 703.57 | X52: BUY
A53: 2018-06-12T13:35:00 | C53: 1777.2 | D53: 1779.9 | E53: 1776.4 | F53: 1779 | G53: 67312 | H53: 3.5 | I53: =IF(A53="","",IF(ROW()>$AA$16+1,AVERAGE(INDIRECT("H" & ROW()-$AA$16+1):H53),"")) -> 357.22 | J53: 395.0834586 | K53: 275.3788687 | L53: 357.22 | M53: 2850.66 | N53: 707.34 | O53: 2848.06 | P53: 708.24 | Q53: 2849.81 | R53: 706.49 | S53: 2849.81 | T53: 706.49 | U53: 2846.83 | V53: 706.49 | W53: =IF(AND(W52=U52,F53<=U53),U53,IF(AND(W52=U52,F53>=U53),V53,IF(AND(W52=V52,F53>=V53),V53,IF(AND(W52=V52,F53<=V53),U53,””)))) -> 706.49 | X53: BUY
A54: 2018-06-12T13:40:00 | C54: 1778.25 | D54: 1779.7 | E54: 1777.8 | F54: 1778.7 | G54: 337373 | H54: 1.9 | I54: =IF(A54="","",IF(ROW()>$AA$16+1,AVERAGE(INDIRECT("H" & ROW()-$AA$16+1):H54),"")) -> 357.325 | J54: 323.595557 | K54: 248.0309819 | L54: 357.325 | M54: 2850.675 | N54: 706.725 | O54: 2849.775 | P54: 707.725 | Q54: 2850.725 | R54: 706.775 | S54: 2850.725 | T54: 706.775 | U54: 2846.83 | V54: 706.775 | W54: =IF(AND(W53=U53,F54<=U54),U54,IF(AND(W53=U53,F54>=U54),V54,IF(AND(W53=V53,F54>=V54),V54,IF(AND(W53=V53,F54<=V54),U54,””)))) -> 706.775 | X54: BUY
A55: 2018-06-12T13:45:00 | C55: 1778.7 | D55: 1781.4 | E55: 1776.3 | F55: 1780.75 | G55: 54391 | H55: 5.1 | I55: =IF(A55="","",IF(ROW()>$AA$16+1,AVERAGE(INDIRECT("H" & ROW()-$AA$16+1):H55),"")) -> 357.56 | J55: 265.6872739 | K55: 223.7378837 | L55: 357.56 | M55: 2853.43 | N55: 708.07 | O55: 2848.98 | P55: 708.72 | Q55: 2851.53 | R55: 706.17 | S55: 2851.53 | T55: 706.17 | U55: 2846.83 | V55: 706.775 | W55: =IF(AND(W54=U54,F55<=U55),U55,IF(AND(W54=U54,F55>=U55),V55,IF(AND(W54=V54,F55>=V55),V55,IF(AND(W54=V54,F55<=V55),U55,””)))) -> 706.775 | X55: BUY
A56: 2018-06-12T13:50:00 | C56: 1780.8 | D56: 1780.85 | E56: 1778.7 | F56: 1779.9 | G56: 70761 | H56: 2.15 | I56: =IF(A56="","",IF(ROW()>$AA$16+1,AVERAGE(INDIRECT("H" & ROW()-$AA$16+1):H56),"")) -> 357.17 | J56: 217.7714059 | K56: 201.5790953 | L56: 357.17 | M56: 2851.41 | N56: 708.39 | O56: 2850.21 | P56: 709.34 | Q56: 2851.285 | R56: 708.265 | S56: 2851.285 | T56: 708.265 | U56: 2846.83 | V56: 708.265 | W56: =IF(AND(W55=U55,F56<=U56),U56,IF(AND(W55=U55,F56>=U56),V56,IF(AND(W55=V55,F56>=V56),V56,IF(AND(W55=V55,F56<=V56),U56,””)))) -> 708.265 | X56: BUY
A57: 2018-06-12T13:55:00 | C57: 1779.9 | D57: 1780.5 | E57: 1778.7 | F57: 1778.7 | G57: 60915 | H57: 1.8 | I57: =IF(A57="","",IF(ROW()>$AA$16+1,AVERAGE(INDIRECT("H" & ROW()-$AA$16+1):H57),"")) -> 357.23 | J57: 178.5038776 | K57: 181.6011858 | L57: 357.23 | M57: 2850.39 | N57: 707.01 | O57: 2850.39 | P57: 708.81 | Q57: 2851.29 | R57: 707.91 | S57: 2851.29 | T57: 707.91 | U57: 2846.83 | V57: 708.265 | W57: =IF(AND(W56=U56,F57<=U57),U57,IF(AND(W56=U56,F57>=U57),V57,IF(AND(W56=V56,F57>=V57),V57,IF(AND(W56=V56,F57<=V57),U57,””)))) -> 708.265 | X57: BUY
A58: 2018-06-12T14:00:00 | C58: 1778.5 | D58: 1781 | E58: 1777.55 | F58: 1780.55 | G58: 22129 | H58: 3.45 | I58: =IF(A58="","",IF(ROW()>$AA$16+1,AVERAGE(INDIRECT("H" & ROW()-$AA$16+1):H58),"")) -> 357.26 | J58: 146.6758998 | K58: 163.7860672 | L58: 357.26 | M58: 2852.33 | N58: 708.77 | O58: 2849.33 | P58: 709.22 | Q58: 2851.055 | R58: 707.495 | S58: 2851.055 | T58: 707.495 | U58: 2846.83 | V58: 708.265 | W58: =IF(AND(W57=U57,F58<=U58),U58,IF(AND(W57=U57,F58>=U58),V58,IF(AND(W57=V57,F58>=V58),V58,IF(AND(W57=V57,F58<=V58),U58,””)))) -> 708.265 | X58: BUY
A59: 2018-06-12T14:05:00 | C59: 1780.5 | D59: 1781.15 | E59: 1779.55 | F59: 1779.9 | G59: 52026 | H59: 1.6 | I59: =IF(A59="","",IF(ROW()>$AA$16+1,AVERAGE(INDIRECT("H" & ROW()-$AA$16+1):H59),"")) -> 357.22 | J59: 120.2984635 | K59: 147.5674605 | L59: 357.22 | M59: 2851.56 | N59: 708.24 | O59: 2851.21 | P59: 709.49 | Q59: 2852.01 | R59: 708.69 | S59: 2852.01 | T59: 708.69 | U59: 2846.83 | V59: 708.69 | W59: =IF(AND(W58=U58,F59<=U59),U59,IF(AND(W58=U58,F59>=U59),V59,IF(AND(W58=V58,F59>=V59),V59,IF(AND(W58=V58,F59<=V59),U59,””)))) -> 708.69 | X59: BUY
A60: 2018-06-12T14:10:00 | C60: 1779.95 | D60: 1783.5 | E60: 1779.65 | F60: 1781.8 | G60: 25398 | H60: 3.85 | I60: =IF(A60="","",IF(ROW()>$AA$16+1,AVERAGE(INDIRECT("H" & ROW()-$AA$16+1):H60),"")) -> 180.315 | J60: 99.12601559 | K60: 133.1957144 | L60: 180.315 | M60: 2322.745 | N60: 1240.855 | O60: 2320.595 | P60: 1242.555 | Q60: 2322.52 | R60: 1240.63 | S60: 2322.52 | T60: 1240.63 | U60: 2322.52 | V60: 1240.63 | W60: =IF(AND(W59=U59,F60<=U60),U60,IF(AND(W59=U59,F60>=U60),V60,IF(AND(W59=V59,F60>=V60),V60,IF(AND(W59=V59,F60<=V60),U60,””)))) -> 1240.63 | X60: BUY
A61: 2018-06-12T14:15:00 | C61: 1781.8 | D61: 1784 | E61: 1781.1 | F61: 1783.35 | G61: 19019 | H61: 2.9 | I61: =IF(A61="","",IF(ROW()>$AA$16+1,AVERAGE(INDIRECT("H" & ROW()-$AA$16+1):H61),"")) -> 3.165 | J61: 81.6303764 | K61: 120.166143 | L61: 3.165 | M61: 1792.845 | N61: 1773.855 | O61: 1790.595 | P61: 1774.505 | Q61: 1792.045 | R61: 1773.055 | S61: 1792.045 | T61: 1773.055 | U61: 1792.045 | V61: 1773.055 | W61: =IF(AND(W60=U60,F61<=U61),U61,IF(AND(W60=U60,F61>=U61),V61,IF(AND(W60=V60,F61>=V61),V61,IF(AND(W60=V60,F61<=V61),U61,””)))) -> 1773.055 | X61: BUY
A62: 2018-06-12T14:20:00 | C62: 1783.3 | D62: 1785 | E62: 1781.5 | F62: 1782 | G62: 35240 | H62: 3.5 | I62: =IF(A62="","",IF(ROW()>$AA$16+1,AVERAGE(INDIRECT("H" & ROW()-$AA$16+1):H62),"")) -> 2.975 | J62: 67.42485341 | K62: 108.4995287 | L62: 2.975 | M62: 1790.925 | N62: 1773.075 | O62: 1790.425 | P62: 1776.075 | Q62: 1792.175 | R62: 1774.325 | S62: 1792.175 | T62: 1774.325 | U62: 1792.045 | V62: 1774.325 | W62: =IF(AND(W61=U61,F62<=U62),U62,IF(AND(W61=U61,F62>=U62),V62,IF(AND(W61=V61,F62>=V62),V62,IF(AND(W61=V61,F62<=V62),U62,””)))) -> 1774.325 | X62: BUY
A63: 2018-06-12T14:25:00 | C63: 1781.45 | D63: 1782 | E63: 1780 | F63: 1781.5 | G63: 18254 | H63: 2 | I63: =IF(A63="","",IF(ROW()>$AA$16+1,AVERAGE(INDIRECT("H" & ROW()-$AA$16+1):H63),"")) -> 2.825 | J63: 55.52942552 | K63: 97.84957582 | L63: 2.825 | M63: 1789.975 | N63: 1773.025 | O63: 1788.475 | P63: 1773.525 | Q63: 1789.475 | R63: 1772.525 | S63: 1789.475 | T63: 1772.525 | U63: 1789.475 | V63: 1774.325 | W63: =IF(AND(W62=U62,F63<=U63),U63,IF(AND(W62=U62,F63>=U63),V63,IF(AND(W62=V62,F63>=V63),V63,IF(AND(W62=V62,F63<=V63),U63,””)))) -> 1774.325 | X63: BUY
A64: 2018-06-12T14:30:00 | C64: 1781.5 | D64: 1783.6 | E64: 1781.05 | F64: 1782 | G64: 20479 | H64: 2.55 | I64: =IF(A64="","",IF(ROW()>$AA$16+1,AVERAGE(INDIRECT("H" & ROW()-$AA$16+1):H64),"")) -> 2.89 | J64: 45.8968027 | K64: 88.31961824 | L64: 2.89 | M64: 1790.67 | N64: 1773.33 | O64: 1789.72 | P64: 1774.93 | Q64: 1790.995 | R64: 1773.655 | S64: 1790.995 | T64: 1773.655 | U64: 1789.475 | V64: 1774.325 | W64: =IF(AND(W63=U63,F64<=U64),U64,IF(AND(W63=U63,F64>=U64),V64,IF(AND(W63=V63,F64>=V64),V64,IF(AND(W63=V63,F64<=V64),U64,””)))) -> 1774.325 | X64: BUY
A65: 2018-06-12T14:35:00 | C65: 1781.95 | D65: 1783.65 | E65: 1781.6 | F65: 1783 | G65: 26564 | H65: 2.05 | I65: =IF(A65="","",IF(ROW()>$AA$16+1,AVERAGE(INDIRECT("H" & ROW()-$AA$16+1):H65),"")) -> 2.585 | J65: 37.92465675 | K65: 79.69265641 | L65: 2.585 | M65: 1790.755 | N65: 1775.245 | O65: 1789.355 | P65: 1775.895 | Q65: 1790.38 | R65: 1774.87 | S65: 1790.38 | T65: 1774.87 | U65: 1789.475 | V65: 1774.87 | W65: =IF(AND(W64=U64,F65<=U65),U65,IF(AND(W64=U64,F65>=U65),V65,IF(AND(W64=V64,F65>=V65),V65,IF(AND(W64=V64,F65<=V65),U65,””)))) -> 1774.87 | X65: BUY
A66: 2018-06-12T14:40:00 | C66: 1782.75 | D66: 1783.3 | E66: 1781.7 | F66: 1783 | G66: 40344 | H66: 1.6 | I66: =IF(A66="","",IF(ROW()>$AA$16+1,AVERAGE(INDIRECT("H" & ROW()-$AA$16+1):H66),"")) -> 2.53 | J66: 31.32017371 | K66: 71.88339077 | L66: 2.53 | M66: 1790.59 | N66: 1775.41 | O66: 1789.29 | P66: 1775.71 | Q66: 1790.09 | R66: 1774.91 | S66: 1790.09 | T66: 1774.91 | U66: 1789.475 | V66: 1774.91 | W66: =IF(AND(W65=U65,F66<=U66),U66,IF(AND(W65=U65,F66>=U66),V66,IF(AND(W65=V65,F66>=V66),V66,IF(AND(W65=V65,F66<=V66),U66,””)))) -> 1774.91 | X66: =IF(A66="","",IF(ROW()>$AA$16+1,IF(F66<W66,"SELL","BUY"),"")) -> BUY
A67: 2018-06-12T14:45:00 | C67: 1783 | D67: 1785 | E67: 1782.5 | F67: 1785 | G67: 51251 | H67: 2.5 | I67: =IF(A67="","",IF(ROW()>$AA$16+1,AVERAGE(INDIRECT("H" & ROW()-$AA$16+1):H67),"")) -> 2.6 | J67: 26.08014212 | K67: 64.94505169 | L67: 2.6 | M67: 1792.8 | N67: 1777.2 | O67: 1790.3 | P67: 1777.2 | Q67: 1791.55 | R67: 1775.95 | S67: 1791.55 | T67: 1775.95 | U67: =IF(A67="","",IF(ROW()>$AA$16+1,IF(OR(S67<U66,F66>U66),S67,U66),"")) -> 1789.475 | V67: =IF(A67="","",IF(ROW()>$AA$16+1,IF(OR(T67>V66,F66<V66),T67,V66),"")) -> 1775.95 | W67: =IF(AND(W66=U66,F67<=U67),U67,IF(AND(W66=U66,F67>=U67),V67,IF(AND(W66=V66,F67>=V67),V67,IF(AND(W66=V66,F67<=V67),U67,””)))) -> 1775.95 | X67: BUY
A68: 2018-06-12T14:50:00 | C68: 1785 | D68: 1785 | E68: 1783 | F68: 1783.3 | G68: 18267 | H68: =IF(A68="","",MAX(D68-E68,ABS(D68-F67),ABS(E68-F67))) -> 2 | I68: =IF(A68="","",IF(ROW()>$AA$16+1,AVERAGE(INDIRECT("H" & ROW()-$AA$16+1):H68),"")) -> 2.455 | J68: =IF(A68="","",IF(ROW(H68)<2+$AA$16,"",IF(ROW(H68)=2+$AA$16,AVERAGE(OFFSET(H68,1-$AA$16,0,$AA$16,1)),2/($AA$16+1)*H68+(1-2/($AA$16+1))*J67))) -> 21.70193447 | K68: =IF(A68="","",IF(ROW(H68)<2+$AA$16,"",IF(ROW(H68)=2+$AA$16,AVERAGE(OFFSET(H68,1-$AA$16,0,$AA$16,1)),1/$AA$16*H68+(1-1/$AA$16)*K67))) -> 58.65054653 | L68: =IF($AA$19="ATR (SMA)",I68,IF($AA$19="ATR (EMA)",J68,K68)) -> 2.455 | M68: =IF(A68="","",IF(ROW()>$AA$16+1,F68 + (L68*$AA$17),"")) -> 1790.665 | N68: =IF(A68="","",IF(ROW()>$AA$16+1,F68 - (L68*$AA$17),"")) -> 1775.935 | O68: =IF(A68="","",IF(ROW()>$AA$16+1,E68 + (L68*$AA$17),"")) -> 1790.365 | P68: =IF(A68="","",IF(ROW()>$AA$16+1,D68 - (L68*$AA$17),"")) -> 1777.635 | Q68: =IF(A68="","",IF(ROW()>$AA$16+1,((D68+E68)/2) + (L68*$AA$17),"")) -> 1791.365 | R68: =IF(A68="","",IF(ROW()>$AA$16+1,((D68+E68)/2) - (L68*$AA$17),"")) -> 1776.635 | S68: =IF($AA$18="ATR SL(CLOSE)",M68,IF($AA$18="ATR SL(HIGH/LOW)",O68,Q68)) -> 1791.365 | T68: 1776.635 | U68: 1789.475 | V68: 1776.635 | W68: =IF(AND(W67=U67,F68<=U68),U68,IF(AND(W67=U67,F68>=U68),V68,IF(AND(W67=V67,F68>=V68),V68,IF(AND(W67=V67,F68<=V68),U68,””)))) -> 1776.635 | X68: BUY
A69: 2018-06-12T14:55:00 | C69: 1783.35 | D69: 1783.35 | E69: 1779 | F69: 1779.95 | G69: 74478 | H69: 4.35 | I69: =IF(A69="","",IF(ROW()>$AA$16+1,AVERAGE(INDIRECT("H" & ROW()-$AA$16+1):H69),"")) -> 2.73 | J69: 18.54703729 | K69: 53.22049187 | L69: 2.73 | M69: 1788.14 | N69: 1771.76 | O69: 1787.19 | P69: 1775.16 | Q69: 1789.365 | R69: 1772.985 | S69: 1789.365 | T69: 1772.985 | U69: 1789.365 | V69: 1776.635 | W69: =IF(AND(W68=U68,F69<=U69),U69,IF(AND(W68=U68,F69>=U69),V69,IF(AND(W68=V68,F69>=V69),V69,IF(AND(W68=V68,F69<=V69),U69,””)))) -> 1776.635 | X69: BUY
A70: 2018-06-12T15:00:00 | C70: 1779.95 | D70: 1782 | E70: 1779.55 | F70: 1781.15 | G70: 26977 | H70: 2.45 | I70: =IF(A70="","",IF(ROW()>$AA$16+1,AVERAGE(INDIRECT("H" & ROW()-$AA$16+1):H70),"")) -> 2.59 | J70: 15.62030324 | K70: 48.14344269 | L70: 2.59 | M70: 1788.92 | N70: 1773.38 | O70: 1787.32 | P70: 1774.23 | Q70: 1788.545 | R70: 1773.005 | S70: 1788.545 | T70: 1773.005 | U70: 1788.545 | V70: 1776.635 | W70: =IF(AND(W69=U69,F70<=U70),U70,IF(AND(W69=U69,F70>=U70),V70,IF(AND(W69=V69,F70>=V70),V70,IF(AND(W69=V69,F70<=V70),U70,””)))) -> 1776.635 | X70: BUY
A71: 2018-06-12T15:05:00 | C71: 1781.2 | D71: 1781.75 | E71: 1779.7 | F71: 1780.15 | G71: 42999 | H71: 2.05 | I71: =IF(A71="","",IF(ROW()>$AA$16+1,AVERAGE(INDIRECT("H" & ROW()-$AA$16+1):H71),"")) -> 2.505 | J71: 13.15297538 | K71: 43.53409842 | L71: 2.505 | M71: 1787.665 | N71: 1772.635 | O71: 1787.215 | P71: 1774.235 | Q71: 1788.24 | R71: 1773.21 | S71: 1788.24 | T71: 1773.21 | U71: 1788.24 | V71: 1776.635 | W71: =IF(AND(W70=U70,F71<=U71),U71,IF(AND(W70=U70,F71>=U71),V71,IF(AND(W70=V70,F71>=V71),V71,IF(AND(W70=V70,F71<=V71),U71,””)))) -> 1776.635 | X71: BUY
A72: 2018-06-12T15:10:00 | C72: 1780.1 | D72: 1780.5 | E72: 1779.35 | F72: 1780.5 | G72: 79404 | H72: 1.15 | I72: =IF(A72="","",IF(ROW()>$AA$16+1,AVERAGE(INDIRECT("H" & ROW()-$AA$16+1):H72),"")) -> 2.27 | J72: 10.97061622 | K72: 39.29568858 | L72: 2.27 | M72: 1787.31 | N72: 1773.69 | O72: 1786.16 | P72: 1773.69 | Q72: 1786.735 | R72: 1773.115 | S72: 1786.735 | T72: 1773.115 | U72: 1786.735 | V72: 1776.635 | W72: =IF(AND(W71=U71,F72<=U72),U72,IF(AND(W71=U71,F72>=U72),V72,IF(AND(W71=V71,F72>=V72),V72,IF(AND(W71=V71,F72<=V72),U72,””)))) -> 1776.635 | X72: BUY
A73: 2018-06-12T15:15:00 | C73: 1780.6 | D73: 1781 | E73: 1779.5 | F73: 1779.95 | G73: 112214 | H73: 1.5 | I73: =IF(A73="","",IF(ROW()>$AA$16+1,AVERAGE(INDIRECT("H" & ROW()-$AA$16+1):H73),"")) -> 2.22 | J73: 9.248685995 | K73: 35.51611972 | L73: 2.22 | M73: 1786.61 | N73: 1773.29 | O73: 1786.16 | P73: 1774.34 | Q73: 1786.91 | R73: 1773.59 | S73: 1786.91 | T73: 1773.59 | U73: 1786.735 | V73: 1776.635 | W73: =IF(AND(W72=U72,F73<=U73),U73,IF(AND(W72=U72,F73>=U73),V73,IF(AND(W72=V72,F73>=V73),V73,IF(AND(W72=V72,F73<=V73),U73,””)))) -> 1776.635 | X73: BUY
A74: 2018-06-12T15:20:00 | C74: 1780 | D74: 1781.8 | E74: 1779.75 | F74: 1780.85 | G74: 139799 | H74: 2.05 | I74: =IF(A74="","",IF(ROW()>$AA$16+1,AVERAGE(INDIRECT("H" & ROW()-$AA$16+1):H74),"")) -> 2.17 | J74: 7.939833996 | K74: 32.16950775 | L74: 2.17 | M74: 1787.36 | N74: 1774.34 | O74: 1786.26 | P74: 1775.29 | Q74: 1787.285 | R74: 1774.265 | S74: 1787.285 | T74: 1774.265 | U74: 1786.735 | V74: 1776.635 | W74: =IF(AND(W73=U73,F74<=U74),U74,IF(AND(W73=U73,F74>=U74),V74,IF(AND(W73=V73,F74>=V74),V74,IF(AND(W73=V73,F74<=V74),U74,””)))) -> 1776.635 | X74: BUY
A75: 2018-06-12T15:25:00 | C75: 1781 | D75: 1784.3 | E75: 1780.5 | F75: 1783 | G75: 137634 | H75: 3.8 | I75: =IF(A75="","",IF(ROW()>$AA$16+1,AVERAGE(INDIRECT("H" & ROW()-$AA$16+1):H75),"")) -> 2.345 | J75: 7.187136906 | K75: 29.33255697 | L75: 2.345 | M75: 1790.035 | N75: 1775.965 | O75: 1787.535 | P75: 1777.265 | Q75: 1789.435 | R75: 1775.365 | S75: 1789.435 | T75: 1775.365 | U75: 1786.735 | V75: 1776.635 | W75: =IF(AND(W74=U74,F75<=U75),U75,IF(AND(W74=U74,F75>=U75),V75,IF(AND(W74=V74,F75>=V75),V75,IF(AND(W74=V74,F75<=V75),U75,””)))) -> 1776.635 | X75: BUY
A76: 2018-06-12T15:30:00 | C76: 1782.95 | D76: 1784.85 | E76: 1780 | F76: 1781.05 | G76: 139848 | H76: 4.85 | I76: =IF(A76="","",IF(ROW()>$AA$16+1,AVERAGE(INDIRECT("H" & ROW()-$AA$16+1):H76),"")) -> 2.67 | J76: 6.762202923 | K76: 26.88430127 | L76: 2.67 | M76: 1789.06 | N76: 1773.04 | O76: 1788.01 | P76: 1776.84 | Q76: 1790.435 | R76: 1774.415 | S76: 1790.435 | T76: 1774.415 | U76: 1786.735 | V76: 1776.635 | W76: =IF(AND(W75=U75,F76<=U76),U76,IF(AND(W75=U75,F76>=U76),V76,IF(AND(W75=V75,F76>=V76),V76,IF(AND(W75=V75,F76<=V76),U76,””)))) -> 1776.635 | X76: BUY
A77: 2018-06-13T09:20:00 | C77: 1815 | D77: 1816.5 | E77: 1800 | F77: 1812.7 | G77: 829956 | H77: 35.45 | I77: =IF(A77="","",IF(ROW()>$AA$16+1,AVERAGE(INDIRECT("H" & ROW()-$AA$16+1):H77),"")) -> 5.965 | J77: 11.97816603 | K77: 27.74087115 | L77: 5.965 | M77: 1830.595 | N77: 1794.805 | O77: 1817.895 | P77: 1798.605 | Q77: 1826.145 | R77: 1790.355 | S77: 1826.145 | T77: 1790.355 | U77: 1786.735 | V77: 1790.355 | W77: =IF(AND(W76=U76,F77<=U77),U77,IF(AND(W76=U76,F77>=U77),V77,IF(AND(W76=V76,F77>=V77),V77,IF(AND(W76=V76,F77<=V77),U77,””)))) -> 1790.355 | X77: BUY
A78: 2018-06-13T09:25:00 | C78: 1812.6 | D78: 1814.2 | E78: 1809 | F78: 1809.65 | G78: 181839 | H78: 5.2 | I78: =IF(A78="","",IF(ROW()>$AA$16+1,AVERAGE(INDIRECT("H" & ROW()-$AA$16+1):H78),"")) -> 6.285 | J78: 10.7457722 | K78: 25.48678403 | L78: 6.285 | M78: 1828.505 | N78: 1790.795 | O78: 1827.855 | P78: 1795.345 | Q78: 1830.455 | R78: 1792.745 | S78: 1830.455 | T78: 1792.745 | U78: 1830.455 | V78: 1792.745 | W78: =IF(AND(W77=U77,F78<=U78),U78,IF(AND(W77=U77,F78>=U78),V78,IF(AND(W77=V77,F78>=V78),V78,IF(AND(W77=V77,F78<=V78),U78,””)))) -> 1792.745 | X78: BUY
A79: 2018-06-13T09:30:00 | C79: 1809.65 | D79: 1811 | E79: 1805.55 | F79: 1808.95 | G79: 140022 | H79: 5.45 | I79: =IF(A79="","",IF(ROW()>$AA$16+1,AVERAGE(INDIRECT("H" & ROW()-$AA$16+1):H79),"")) -> 6.395 | J79: 9.782904531 | K79: 23.48310563 | L79: 6.395 | M79: 1828.135 | N79: 1789.765 | O79: 1824.735 | P79: 1791.815 | Q79: 1827.46 | R79: 1789.09 | S79: 1827.46 | T79: 1789.09 | U79: 1827.46 | V79: 1792.745 | W79: =IF(AND(W78=U78,F79<=U79),U79,IF(AND(W78=U78,F79>=U79),V79,IF(AND(W78=V78,F79>=V79),V79,IF(AND(W78=V78,F79<=V79),U79,””)))) -> 1792.745 | X79: BUY
A80: 2018-06-13T09:35:00 | C80: 1809 | D80: 1809 | E80: 1804.05 | F80: 1805.85 | G80: 111002 | H80: 4.95 | I80: =IF(A80="","",IF(ROW()>$AA$16+1,AVERAGE(INDIRECT("H" & ROW()-$AA$16+1):H80),"")) -> 6.645 | J80: 8.904194616 | K80: 21.62979507 | L80: 6.645 | M80: 1825.785 | N80: 1785.915 | O80: 1823.985 | P80: 1789.065 | Q80: 1826.46 | R80: 1786.59 | S80: 1826.46 | T80: 1786.59 | U80: 1826.46 | V80: 1792.745 | W80: =IF(AND(W79=U79,F80<=U80),U80,IF(AND(W79=U79,F80>=U80),V80,IF(AND(W79=V79,F80>=V80),V80,IF(AND(W79=V79,F80<=V80),U80,””)))) -> 1792.745 | X80: BUY
A81: 2018-06-13T09:40:00 | C81: 1806 | D81: 1811 | E81: 1805 | F81: 1810.85 | G81: 153848 | H81: 6 | I81: =IF(A81="","",IF(ROW()>$AA$16+1,AVERAGE(INDIRECT("H" & ROW()-$AA$16+1):H81),"")) -> 7.04 | J81: 8.376159232 | K81: 20.06681556 | L81: 7.04 | M81: 1831.97 | N81: 1789.73 | O81: 1826.12 | P81: 1789.88 | Q81: 1829.12 | R81: 1786.88 | S81: 1829.12 | T81: 1786.88 | U81: 1826.46 | V81: 1792.745 | W81: =IF(AND(W80=U80,F81<=U81),U81,IF(AND(W80=U80,F81>=U81),V81,IF(AND(W80=V80,F81>=V81),V81,IF(AND(W80=V80,F81<=V81),U81,””)))) -> 1792.745 | X81: BUY
A82: 2018-06-13T09:45:00 | C82: 1810.9 | D82: 1812.75 | E82: 1806 | F82: 1806.35 | G82: 75781 | H82: 6.75 | I82: =IF(A82="","",IF(ROW()>$AA$16+1,AVERAGE(INDIRECT("H" & ROW()-$AA$16+1):H82),"")) -> 7.6 | J82: 8.080493917 | K82: 18.735134 | L82: 7.6 | M82: 1829.15 | N82: 1783.55 | O82: 1828.8 | P82: 1789.95 | Q82: 1832.175 | R82: 1786.575 | S82: 1832.175 | T82: 1786.575 | U82: 1826.46 | V82: 1792.745 | W82: =IF(AND(W81=U81,F82<=U82),U82,IF(AND(W81=U81,F82>=U82),V82,IF(AND(W81=V81,F82>=V82),V82,IF(AND(W81=V81,F82<=V82),U82,””)))) -> 1792.745 | X82: BUY
A83: 2018-06-13T09:50:00 | C83: 1806.35 | D83: 1813 | E83: 1806.15 | F83: 1813 | G83: 61350 | H83: 6.85 | I83: =IF(A83="","",IF(ROW()>$AA$16+1,AVERAGE(INDIRECT("H" & ROW()-$AA$16+1):H83),"")) -> 8.135 | J83: 7.85676775 | K83: 17.5466206 | L83: 8.135 | M83: 1837.405 | N83: 1788.595 | O83: 1830.555 | P83: 1788.595 | Q83: 1833.98 | R83: 1785.17 | S83: 1833.98 | T83: 1785.17 | U83: 1826.46 | V83: 1792.745 | W83: =IF(AND(W82=U82,F83<=U83),U83,IF(AND(W82=U82,F83>=U83),V83,IF(AND(W82=V82,F83>=V83),V83,IF(AND(W82=V82,F83<=V83),U83,””)))) -> 1792.745 | X83: BUY
A84: 2018-06-13T09:55:00 | C84: 1812.8 | D84: 1821 | E84: 1812.8 | F84: 1819.85 | G84: 194977 | H84: 8.2 | I84: =IF(A84="","",IF(ROW()>$AA$16+1,AVERAGE(INDIRECT("H" & ROW()-$AA$16+1):H84),"")) -> 8.75 | J84: 7.919173614 | K84: 16.61195854 | L84: 8.75 | M84: 1846.1 | N84: 1793.6 | O84: 1839.05 | P84: 1794.75 | Q84: 1843.15 | R84: 1790.65 | S84: 1843.15 | T84: 1790.65 | U84: 1826.46 | V84: 1792.745 | W84: =IF(AND(W83=U83,F84<=U84),U84,IF(AND(W83=U83,F84>=U84),V84,IF(AND(W83=V83,F84>=V84),V84,IF(AND(W83=V83,F84<=V84),U84,””)))) -> 1792.745 | X84: BUY
A85: 2018-06-13T10:00:00 | C85: 1819.85 | D85: 1820.5 | E85: 1814 | F85: 1814 | G85: 85823 | H85: 6.5 | I85: =IF(A85="","",IF(ROW()>$AA$16+1,AVERAGE(INDIRECT("H" & ROW()-$AA$16+1):H85),"")) -> 9.02 | J85: 7.661142048 | K85: 15.60076269 | L85: 9.02 | M85: 1841.06 | N85: 1786.94 | O85: 1841.06 | P85: 1793.44 | Q85: 1844.31 | R85: 1790.19 | S85: 1844.31 | T85: 1790.19 | U85: 1826.46 | V85: 1792.745 | W85: =IF(AND(W84=U84,F85<=U85),U85,IF(AND(W84=U84,F85>=U85),V85,IF(AND(W84=V84,F85>=V85),V85,IF(AND(W84=V84,F85<=V85),U85,””)))) -> 1792.745 | X85: BUY
A86: 2018-06-13T10:05:00 | C86: 1814.3 | D86: 1814.85 | E86: 1811.4 | F86: 1814.8 | G86: 54467 | H86: 3.45 | I86: =IF(A86="","",IF(ROW()>$AA$16+1,AVERAGE(INDIRECT("H" & ROW()-$AA$16+1):H86),"")) -> 8.88 | J86: 6.895479857 | K86: 14.38568642 | L86: 8.88 | M86: 1841.44 | N86: 1788.16 | O86: 1838.04 | P86: 1788.21 | Q86: 1839.765 | R86: 1786.485 | S86: 1839.765 | T86: 1786.485 | U86: 1826.46 | V86: 1792.745 | W86: =IF(AND(W85=U85,F86<=U86),U86,IF(AND(W85=U85,F86>=U86),V86,IF(AND(W85=V85,F86>=V86),V86,IF(AND(W85=V85,F86<=V86),U86,””)))) -> 1792.745 | X86: BUY
A87: 2018-06-13T10:10:00 | C87: 1814.75 | D87: 1817.45 | E87: 1814.35 | F87: 1816.9 | G87: 67940 | H87: 3.1 | I87: =IF(A87="","",IF(ROW()>$AA$16+1,AVERAGE(INDIRECT("H" & ROW()-$AA$16+1):H87),"")) -> 5.645 | J87: 6.20539261 | K87: 13.25711778 | L87: 5.645 | M87: 1833.835 | N87: 1799.965 | O87: 1831.285 | P87: 1800.515 | Q87: 1832.835 | R87: 1798.965 | S87: 1832.835 | T87: 1798.965 | U87: 1826.46 | V87: 1798.965 | W87: =IF(AND(W86=U86,F87<=U87),U87,IF(AND(W86=U86,F87>=U87),V87,IF(AND(W86=V86,F87>=V87),V87,IF(AND(W86=V86,F87<=V87),U87,””)))) -> 1798.965 | X87: BUY
A88: 2018-06-13T10:15:00 | C88: 1816.8 | D88: 1816.8 | E88: 1814 | F88: 1814.9 | G88: 40336 | H88: 2.9 | I88: =IF(A88="","",IF(ROW()>$AA$16+1,AVERAGE(INDIRECT("H" & ROW()-$AA$16+1):H88),"")) -> 5.415 | J88: 5.604412136 | K88: 12.221406 | L88: 5.415 | M88: 1831.145 | N88: 1798.655 | O88: 1830.245 | P88: 1800.555 | Q88: 1831.645 | R88: 1799.155 | S88: 1831.645 | T88: 1799.155 | U88: 1826.46 | V88: 1799.155 | W88: =IF(AND(W87=U87,F88<=U88),U88,IF(AND(W87=U87,F88>=U88),V88,IF(AND(W87=V87,F88>=V88),V88,IF(AND(W87=V87,F88<=V88),U88,””)))) -> 1799.155 | X88: BUY
A89: 2018-06-13T10:20:00 | C89: 1814.9 | D89: 1815 | E89: 1813 | F89: 1814.8 | G89: 39848 | H89: 2 | I89: =IF(A89="","",IF(ROW()>$AA$16+1,AVERAGE(INDIRECT("H" & ROW()-$AA$16+1):H89),"")) -> 5.07 | J89: 4.949064475 | K89: 11.1992654 | L89: 5.07 | M89: 1830.01 | N89: 1799.59 | O89: 1828.21 | P89: 1799.79 | Q89: 1829.21 | R89: 1798.79 | S89: 1829.21 | T89: 1798.79 | U89: 1826.46 | V89: 1799.155 | W89: =IF(AND(W88=U88,F89<=U89),U89,IF(AND(W88=U88,F89>=U89),V89,IF(AND(W88=V88,F89>=V89),V89,IF(AND(W88=V88,F89<=V89),U89,””)))) -> 1799.155 | X89: BUY
A90: 2018-06-13T10:25:00 | C90: 1815 | D90: 1815 | E90: 1813.8 | F90: 1814.75 | G90: 28942 | H90: 1.2 | I90: =IF(A90="","",IF(ROW()>$AA$16+1,AVERAGE(INDIRECT("H" & ROW()-$AA$16+1):H90),"")) -> 4.695 | J90: 4.267416388 | K90: 10.19933886 | L90: 4.695 | M90: 1828.835 | N90: 1800.665 | O90: 1827.885 | P90: 1800.915 | Q90: 1828.485 | R90: 1800.315 | S90: 1828.485 | T90: 1800.315 | U90: 1826.46 | V90: 1800.315 | W90: =IF(AND(W89=U89,F90<=U90),U90,IF(AND(W89=U89,F90>=U90),V90,IF(AND(W89=V89,F90>=V90),V90,IF(AND(W89=V89,F90<=V90),U90,””)))) -> 1800.315 | X90: BUY
A91: 2018-06-13T10:30:00 | C91: 1814.75 | D91: 1816 | E91: 1814.4 | F91: 1816 | G91: 32754 | H91: 1.6 | I91: =IF(A91="","",IF(ROW()>$AA$16+1,AVERAGE(INDIRECT("H" & ROW()-$AA$16+1):H91),"")) -> 4.255 | J91: 3.782431591 | K91: 9.339404974 | L91: 4.255 | M91: 1828.765 | N91: 1803.235 | O91: 1827.165 | P91: 1803.235 | Q91: 1827.965 | R91: 1802.435 | S91: 1827.965 | T91: 1802.435 | U91: 1826.46 | V91: 1802.435 | W91: =IF(AND(W90=U90,F91<=U91),U91,IF(AND(W90=U90,F91>=U91),V91,IF(AND(W90=V90,F91>=V91),V91,IF(AND(W90=V90,F91<=V91),U91,””)))) -> 1802.435 | X91: BUY
A92: 2018-06-13T10:35:00 | C92: 1816 | D92: 1817 | E92: 1815.05 | F92: 1815.35 | G92: 31056 | H92: 1.95 | I92: =IF(A92="","",IF(ROW()>$AA$16+1,AVERAGE(INDIRECT("H" & ROW()-$AA$16+1):H92),"")) -> 3.775 | J92: 3.44926221 | K92: 8.600464477 | L92: 3.775 | M92: 1826.675 | N92: 1804.025 | O92: 1826.375 | P92: 1805.675 | Q92: 1827.35 | R92: 1804.7 | S92: 1827.35 | T92: 1804.7 | U92: 1826.46 | V92: 1804.7 | W92: =IF(AND(W91=U91,F92<=U92),U92,IF(AND(W91=U91,F92>=U92),V92,IF(AND(W91=V91,F92>=V92),V92,IF(AND(W91=V91,F92<=V92),U92,””)))) -> 1804.7 | X92: BUY
A93: 2018-06-13T10:40:00 | C93: 1815 | D93: 1815.25 | E93: 1814.45 | F93: 1814.95 | G93: 43937 | H93: 0.9 | I93: =IF(A93="","",IF(ROW()>$AA$16+1,AVERAGE(INDIRECT("H" & ROW()-$AA$16+1):H93),"")) -> 3.18 | J93: 2.98575999 | K93: 7.830418029 | L93: 3.18 | M93: 1824.49 | N93: 1805.41 | O93: 1823.99 | P93: 1805.71 | Q93: 1824.39 | R93: 1805.31 | S93: 1824.39 | T93: 1805.31 | U93: 1824.39 | V93: 1805.31 | W93: =IF(AND(W92=U92,F93<=U93),U93,IF(AND(W92=U92,F93>=U93),V93,IF(AND(W92=V92,F93>=V93),V93,IF(AND(W92=V92,F93<=V93),U93,””)))) -> 1805.31 | X93: BUY
A94: 2018-06-13T10:45:00 | C94: 1815 | D94: 1815.1 | E94: 1814.3 | F94: 1815 | G94: 34765 | H94: 0.8 | I94: =IF(A94="","",IF(ROW()>$AA$16+1,AVERAGE(INDIRECT("H" & ROW()-$AA$16+1):H94),"")) -> 2.44 | J94: 2.588349083 | K94: 7.127376226 | L94: 2.44 | M94: 1822.32 | N94: 1807.68 | O94: 1821.62 | P94: 1807.78 | Q94: 1822.02 | R94: 1807.38 | S94: 1822.02 | T94: 1807.38 | U94: 1822.02 | V94: 1807.38 | W94: =IF(AND(W93=U93,F94<=U94),U94,IF(AND(W93=U93,F94>=U94),V94,IF(AND(W93=V93,F94>=V94),V94,IF(AND(W93=V93,F94<=V94),U94,””)))) -> 1807.38 | X94: BUY
A95: 2018-06-13T10:50:00 | C95: 1815 | D95: 1815 | E95: 1813.9 | F95: 1813.95 | G95: 32920 | H95: 1.1 | I95: =IF(A95="","",IF(ROW()>$AA$16+1,AVERAGE(INDIRECT("H" & ROW()-$AA$16+1):H95),"")) -> 1.9 | J95: 2.317740159 | K95: 6.524638603 | L95: 1.9 | M95: 1819.65 | N95: 1808.25 | O95: 1819.6 | P95: 1809.3 | Q95: 1820.15 | R95: 1808.75 | S95: 1820.15 | T95: 1808.75 | U95: 1820.15 | V95: 1808.75 | W95: =IF(AND(W94=U94,F95<=U95),U95,IF(AND(W94=U94,F95>=U95),V95,IF(AND(W94=V94,F95>=V95),V95,IF(AND(W94=V94,F95<=V95),U95,””)))) -> 1808.75 | X95: BUY
A96: 2018-06-13T10:55:00 | C96: 1814 | D96: 1814 | E96: 1811.3 | F96: 1813.2 | G96: 43079 | H96: 2.7 | I96: =IF(A96="","",IF(ROW()>$AA$16+1,AVERAGE(INDIRECT("H" & ROW()-$AA$16+1):H96),"")) -> 1.825 | J96: 2.387241948 | K96: 6.142174743 | L96: 1.825 | M96: 1818.675 | N96: 1807.725 | O96: 1816.775 | P96: 1808.525 | Q96: 1818.125 | R96: 1807.175 | S96: 1818.125 | T96: 1807.175 | U96: 1818.125 | V96: 1808.75 | W96: =IF(AND(W95=U95,F96<=U96),U96,IF(AND(W95=U95,F96>=U96),V96,IF(AND(W95=V95,F96>=V96),V96,IF(AND(W95=V95,F96<=V96),U96,””)))) -> 1808.75 | X96: BUY
A97: 2018-06-13T11:00:00 | C97: 1813.2 | D97: 1814 | E97: 1810.1 | F97: 1811.9 | G97: 56518 | H97: 3.9 | I97: =IF(A97="","",IF(ROW()>$AA$16+1,AVERAGE(INDIRECT("H" & ROW()-$AA$16+1):H97),"")) -> 1.905 | J97: 2.662288867 | K97: 5.917957269 | L97: 1.905 | M97: 1817.615 | N97: 1806.185 | O97: 1815.815 | P97: 1808.285 | Q97: 1817.765 | R97: 1806.335 | S97: 1817.765 | T97: 1806.335 | U97: 1817.765 | V97: 1808.75 | W97: =IF(AND(W96=U96,F97<=U97),U97,IF(AND(W96=U96,F97>=U97),V97,IF(AND(W96=V96,F97>=V97),V97,IF(AND(W96=V96,F97<=V97),U97,””)))) -> 1808.75 | X97: BUY
A98: 2018-06-13T11:05:00 | C98: 1811.8 | D98: 1813.4 | E98: 1809.75 | F98: 1813.35 | G98: 41676 | H98: 3.65 | I98: =IF(A98="","",IF(ROW()>$AA$16+1,AVERAGE(INDIRECT("H" & ROW()-$AA$16+1):H98),"")) -> 1.98 | J98: 2.841872709 | K98: 5.691161542 | L98: 1.98 | M98: 1819.29 | N98: 1807.41 | O98: 1815.69 | P98: 1807.46 | Q98: 1817.515 | R98: 1805.635 | S98: 1817.515 | T98: 1805.635 | U98: 1817.515 | V98: 1808.75 | W98: =IF(AND(W97=U97,F98<=U98),U98,IF(AND(W97=U97,F98>=U98),V98,IF(AND(W97=V97,F98>=V98),V98,IF(AND(W97=V97,F98<=V98),U98,””)))) -> 1808.75 | X98: BUY
A99: 2018-06-13T11:10:00 | C99: 1813.35 | D99: 1815.25 | E99: 1812.45 | F99: 1814.3 | G99: 31685 | H99: 2.8 | I99: =IF(A99="","",IF(ROW()>$AA$16+1,AVERAGE(INDIRECT("H" & ROW()-$AA$16+1):H99),"")) -> 2.06 | J99: 2.834259489 | K99: 5.402045388 | L99: 2.06 | M99: 1820.48 | N99: 1808.12 | O99: 1818.63 | P99: 1809.07 | Q99: 1820.03 | R99: 1807.67 | S99: 1820.03 | T99: 1807.67 | U99: 1817.515 | V99: 1808.75 | W99: =IF(AND(W98=U98,F99<=U99),U99,IF(AND(W98=U98,F99>=U99),V99,IF(AND(W98=V98,F99>=V99),V99,IF(AND(W98=V98,F99<=V99),U99,””)))) -> 1808.75 | X99: BUY
A100: 2018-06-13T11:15:00 | C100: 1814.3 | D100: 1814.5 | E100: 1813.65 | F100: 1813.65 | G100: 22371 | H100: 0.85 | I100: =IF(A100="","",IF(ROW()>$AA$16+1,AVERAGE(INDIRECT("H" & ROW()-$AA$16+1):H100),"")) -> 2.025 | J100: 2.473485037 | K100: 4.946840849 | L100: 2.025 | M100: 1819.725 | N100: 1807.575 | O100: 1819.725 | P100: 1808.425 | Q100: 1820.15 | R100: 1808 | S100: 1820.15 | T100: 1808 | U100: 1817.515 | V100: 1808.75 | W100: =IF(AND(W99=U99,F100<=U100),U100,IF(AND(W99=U99,F100>=U100),V100,IF(AND(W99=V99,F100>=V100),V100,IF(AND(W99=V99,F100<=V100),U100,””)))) -> 1808.75 | X100: BUY
A101: 2018-06-13T11:20:00 | C101: 1813.65 | D101: 1816 | E101: 1811.95 | F101: 1815 | G101: 28758 | H101: 4.05 | I101: =IF(A101="","",IF(ROW()>$AA$16+1,AVERAGE(INDIRECT("H" & ROW()-$AA$16+1):H101),"")) -> 2.27 | J101: 2.760124121 | K101: 4.857156764 | L101: 2.27 | M101: 1821.81 | N101: 1808.19 | O101: 1818.76 | P101: 1809.19 | Q101: 1820.785 | R101: 1807.165 | S101: 1820.785 | T101: 1807.165 | U101: 1817.515 | V101: 1808.75 | W101: =IF(AND(W100=U100,F101<=U101),U101,IF(AND(W100=U100,F101>=U101),V101,IF(AND(W100=V100,F101>=V101),V101,IF(AND(W100=V100,F101<=V101),U101,””)))) -> 1808.75 | X101: BUY
A102: 2018-06-13T11:25:00 | C102: 1814.9 | D102: 1816 | E102: 1814.25 | F102: 1815.85 | G102: 31830 | H102: 1.75 | I102: =IF(A102="","",IF(ROW()>$AA$16+1,AVERAGE(INDIRECT("H" & ROW()-$AA$16+1):H102),"")) -> 2.25 | J102: 2.57646519 | K102: 4.546441088 | L102: 2.25 | M102: 1822.6 | N102: 1809.1 | O102: 1821 | P102: 1809.25 | Q102: 1821.875 | R102: 1808.375 | S102: 1821.875 | T102: 1808.375 | U102: 1817.515 | V102: 1808.75 | W102: =IF(AND(W101=U101,F102<=U102),U102,IF(AND(W101=U101,F102>=U102),V102,IF(AND(W101=V101,F102>=V102),V102,IF(AND(W101=V101,F102<=V102),U102,””)))) -> 1808.75 | X102: BUY
A103: 2018-06-13T11:30:00 | C103: 1815.85 | D103: 1818 | E103: 1815.5 | F103: 1817.85 | G103: 30893 | H103: 2.5 | I103: =IF(A103="","",IF(ROW()>$AA$16+1,AVERAGE(INDIRECT("H" & ROW()-$AA$16+1):H103),"")) -> 2.41 | J103: 2.562562428 | K103: 4.341796979 | L103: 2.41 | M103: 1825.08 | N103: 1810.62 | O103: 1822.73 | P103: 1810.77 | Q103: 1823.98 | R103: 1809.52 | S103: 1823.98 | T103: 1809.52 | U103: 1817.515 | V103: 1809.52 | W103: =IF(AND(W102=U102,F103<=U103),U103,IF(AND(W102=U102,F103>=U103),V103,IF(AND(W102=V102,F103>=V103),V103,IF(AND(W102=V102,F103<=V103),U103,””)))) -> 1809.52 | X103: BUY
A104: 2018-06-13T11:35:00 | C104: 1817.85 | D104: 1819.9 | E104: 1817 | F104: 1818.45 | G104: 51013 | H104: 2.9 | I104: =IF(A104="","",IF(ROW()>$AA$16+1,AVERAGE(INDIRECT("H" & ROW()-$AA$16+1):H104),"")) -> 2.62 | J104: 2.623914714 | K104: 4.197617281 | L104: 2.62 | M104: 1826.31 | N104: 1810.59 | O104: 1824.86 | P104: 1812.04 | Q104: 1826.31 | R104: 1810.59 | S104: 1826.31 | T104: 1810.59 | U104: 1826.31 | V104: 1810.59 | W104: =IF(AND(W103=U103,F104<=U104),U104,IF(AND(W103=U103,F104>=U104),V104,IF(AND(W103=V103,F104>=V104),V104,IF(AND(W103=V103,F104<=V104),U104,””)))) -> 1810.59 | X104: BUY
A105: 2018-06-13T11:40:00 | C105: 1818.5 | D105: 1818.5 | E105: 1816.6 | F105: 1817.75 | G105: 25096 | H105: 1.9 | I105: =IF(A105="","",IF(ROW()>$AA$16+1,AVERAGE(INDIRECT("H" & ROW()-$AA$16+1):H105),"")) -> 2.7 | J105: 2.492293857 | K105: 3.967855553 | L105: 2.7 | M105: 1825.85 | N105: 1809.65 | O105: 1824.7 | P105: 1810.4 | Q105: 1825.65 | R105: 1809.45 | S105: 1825.65 | T105: 1809.45 | U105: 1825.65 | V105: 1810.59 | W105: =IF(AND(W104=U104,F105<=U105),U105,IF(AND(W104=U104,F105>=U105),V105,IF(AND(W104=V104,F105>=V105),V105,IF(AND(W104=V104,F105<=V105),U105,””)))) -> 1810.59 | X105: BUY
A106: 2018-06-13T11:45:00 | C106: 1817.8 | D106: 1817.9 | E106: 1816 | F106: 1817 | G106: 32447 | H106: 1.9 | I106: =IF(A106="","",IF(ROW()>$AA$16+1,AVERAGE(INDIRECT("H" & ROW()-$AA$16+1):H106),"")) -> 2.62 | J106: 2.384604065 | K106: 3.761069998 | L106: 2.62 | M106: 1824.86 | N106: 1809.14 | O106: 1823.86 | P106: 1810.04 | Q106: 1824.81 | R106: 1809.09 | S106: 1824.81 | T106: 1809.09 | U106: 1824.81 | V106: 1810.59 | W106: =IF(AND(W105=U105,F106<=U106),U106,IF(AND(W105=U105,F106>=U106),V106,IF(AND(W105=V105,F106>=V106),V106,IF(AND(W105=V105,F106<=V106),U106,””)))) -> 1810.59 | X106: BUY
A107: 2018-06-13T11:50:00 | C107: 1816.6 | D107: 1817 | E107: 1815.3 | F107: 1815.95 | G107: 26601 | H107: 1.7 | I107: =IF(A107="","",IF(ROW()>$AA$16+1,AVERAGE(INDIRECT("H" & ROW()-$AA$16+1):H107),"")) -> 2.4 | J107: 2.260130598 | K107: 3.554962998 | L107: 2.4 | M107: 1823.15 | N107: 1808.75 | O107: 1822.5 | P107: 1809.8 | Q107: 1823.35 | R107: 1808.95 | S107: 1823.35 | T107: 1808.95 | U107: 1823.35 | V107: 1810.59 | W107: =IF(AND(W106=U106,F107<=U107),U107,IF(AND(W106=U106,F107>=U107),V107,IF(AND(W106=V106,F107>=V107),V107,IF(AND(W106=V106,F107<=V107),U107,””)))) -> 1810.59 | X107: BUY
A108: 2018-06-13T11:55:00 | C108: 1816 | D108: 1816.5 | E108: 1813.2 | F108: 1814.05 | G108: 33303 | H108: 3.3 | I108: =IF(A108="","",IF(ROW()>$AA$16+1,AVERAGE(INDIRECT("H" & ROW()-$AA$16+1):H108),"")) -> 2.365 | J108: 2.449197762 | K108: 3.529466698 | L108: 2.365 | M108: 1821.145 | N108: 1806.955 | O108: 1820.295 | P108: 1809.405 | Q108: 1821.945 | R108: 1807.755 | S108: 1821.945 | T108: 1807.755 | U108: 1821.945 | V108: 1810.59 | W108: =IF(AND(W107=U107,F108<=U108),U108,IF(AND(W107=U107,F108>=U108),V108,IF(AND(W107=V107,F108>=V108),V108,IF(AND(W107=V107,F108<=V108),U108,””)))) -> 1810.59 | X108: BUY
A109: 2018-06-13T12:00:00 | C109: 1814.05 | D109: 1816 | E109: 1813.2 | F109: 1815 | G109: 22576 | H109: 2.8 | I109: =IF(A109="","",IF(ROW()>$AA$16+1,AVERAGE(INDIRECT("H" & ROW()-$AA$16+1):H109),"")) -> 2.365 | J109: 2.512979987 | K109: 3.456520028 | L109: 2.365 | M109: 1822.095 | N109: 1807.905 | O109: 1820.295 | P109: 1808.905 | Q109: 1821.695 | R109: 1807.505 | S109: 1821.695 | T109: 1807.505 | U109: 1821.695 | V109: 1810.59 | W109: =IF(AND(W108=U108,F109<=U109),U109,IF(AND(W108=U108,F109>=U109),V109,IF(AND(W108=V108,F109>=V109),V109,IF(AND(W108=V108,F109<=V109),U109,””)))) -> 1810.59 | X109: BUY
A110: 2018-06-13T12:05:00 | C110: 1815 | D110: 1816 | E110: 1814.95 | F110: 1815.95 | G110: 26850 | H110: 1.05 | I110: =IF(A110="","",IF(ROW()>$AA$16+1,AVERAGE(INDIRECT("H" & ROW()-$AA$16+1):H110),"")) -> 2.385 | J110: 2.246983626 | K110: 3.215868025 | L110: 2.385 | M110: 1823.105 | N110: 1808.795 | O110: 1822.105 | P110: 1808.845 | Q110: 1822.63 | R110: 1808.32 | S110: 1822.63 | T110: 1808.32 | U110: 1821.695 | V110: 1810.59 | W110: =IF(AND(W109=U109,F110<=U110),U110,IF(AND(W109=U109,F110>=U110),V110,IF(AND(W109=V109,F110>=V110),V110,IF(AND(W109=V109,F110<=V110),U110,””)))) -> 1810.59 | X110: BUY
A111: 2018-06-13T12:10:00 | C111: 1815.95 | D111: 1818.55 | E111: 1815.95 | F111: 1817 | G111: 32030 | H111: 2.6 | I111: =IF(A111="","",IF(ROW()>$AA$16+1,AVERAGE(INDIRECT("H" & ROW()-$AA$16+1):H111),"")) -> 2.24 | J111: 2.311168421 | K111: 3.154281223 | L111: 2.24 | M111: 1823.72 | N111: 1810.28 | O111: 1822.67 | P111: 1811.83 | Q111: 1823.97 | R111: 1810.53 | S111: 1823.97 | T111: 1810.53 | U111: 1821.695 | V111: 1810.59 | W111: =IF(AND(W110=U110,F111<=U111),U111,IF(AND(W110=U110,F111>=U111),V111,IF(AND(W110=V110,F111>=V111),V111,IF(AND(W110=V110,F111<=V111),U111,””)))) -> 1810.59 | X111: BUY
A112: 2018-06-13T12:15:00 | C112: 1817 | D112: 1817 | E112: 1815.75 | F112: 1817 | G112: 30251 | H112: 1.25 | I112: =IF(A112="","",IF(ROW()>$AA$16+1,AVERAGE(INDIRECT("H" & ROW()-$AA$16+1):H112),"")) -> 2.19 | J112: 2.118228708 | K112: 2.963853101 | L112: 2.19 | M112: 1823.57 | N112: 1810.43 | O112: 1822.32 | P112: 1810.43 | Q112: 1822.945 | R112: 1809.805 | S112: 1822.945 | T112: 1809.805 | U112: 1821.695 | V112: 1810.59 | W112: =IF(AND(W111=U111,F112<=U112),U112,IF(AND(W111=U111,F112>=U112),V112,IF(AND(W111=V111,F112>=V112),V112,IF(AND(W111=V111,F112<=V112),U112,””)))) -> 1810.59 | X112: BUY
A113: 2018-06-13T12:20:00 | C113: 1817 | D113: 1817 | E113: 1816.05 | F113: 1817 | G113: 33634 | H113: 0.95 | I113: =IF(A113="","",IF(ROW()>$AA$16+1,AVERAGE(INDIRECT("H" & ROW()-$AA$16+1):H113),"")) -> 2.035 | J113: 1.905823489 | K113: 2.762467791 | L113: 2.035 | M113: 1823.105 | N113: 1810.895 | O113: 1822.155 | P113: 1810.895 | Q113: 1822.63 | R113: 1810.42 | S113: 1822.63 | T113: 1810.42 | U113: 1821.695 | V113: 1810.59 | W113: =IF(AND(W112=U112,F113<=U113),U113,IF(AND(W112=U112,F113>=U113),V113,IF(AND(W112=V112,F113>=V113),V113,IF(AND(W112=V112,F113<=V113),U113,””)))) -> 1810.59 | X113: BUY
A114: 2018-06-13T12:25:00 | C114: 1817 | D114: 1817 | E114: 1816.65 | F114: 1816.95 | G114: 26294 | H114: 0.35 | I114: =IF(A114="","",IF(ROW()>$AA$16+1,AVERAGE(INDIRECT("H" & ROW()-$AA$16+1):H114),"")) -> 1.78 | J114: 1.622946491 | K114: 2.521221011 | L114: 1.78 | M114: 1822.29 | N114: 1811.61 | O114: 1821.99 | P114: 1811.66 | Q114: 1822.165 | R114: 1811.485 | S114: 1822.165 | T114: 1811.485 | U114: 1821.695 | V114: 1811.485 | W114: =IF(AND(W113=U113,F114<=U114),U114,IF(AND(W113=U113,F114>=U114),V114,IF(AND(W113=V113,F114>=V114),V114,IF(AND(W113=V113,F114<=V114),U114,””)))) -> 1811.485 | X114: BUY
A115: 2018-06-13T12:30:00 | C115: 1817 | D115: 1819.5 | E115: 1816.85 | F115: 1819 | G115: 45264 | H115: 2.65 | I115: =IF(A115="","",IF(ROW()>$AA$16+1,AVERAGE(INDIRECT("H" & ROW()-$AA$16+1):H115),"")) -> 1.855 | J115: 1.809683492 | K115: 2.53409891 | L115: 1.855 | M115: 1824.565 | N115: 1813.435 | O115: 1822.415 | P115: 1813.935 | Q115: 1823.74 | R115: 1812.61 | S115: 1823.74 | T115: 1812.61 | U115: 1821.695 | V115: 1812.61 | W115: =IF(AND(W114=U114,F115<=U115),U115,IF(AND(W114=U114,F115>=U115),V115,IF(AND(W114=V114,F115>=V115),V115,IF(AND(W114=V114,F115<=V115),U115,””)))) -> 1812.61 | X115: BUY
A116: 2018-06-13T12:35:00 | C116: 1819 | D116: 1819.8 | E116: 1817.65 | F116: 1818.2 | G116: 58222 | H116: 2.15 | I116: =IF(A116="","",IF(ROW()>$AA$16+1,AVERAGE(INDIRECT("H" & ROW()-$AA$16+1):H116),"")) -> 1.88 | J116: 1.871559221 | K116: 2.495689019 | L116: 1.88 | M116: 1823.84 | N116: 1812.56 | O116: 1823.29 | P116: 1814.16 | Q116: 1824.365 | R116: 1813.085 | S116: 1824.365 | T116: 1813.085 | U116: 1821.695 | V116: 1813.085 | W116: =IF(AND(W115=U115,F116<=U116),U116,IF(AND(W115=U115,F116>=U116),V116,IF(AND(W115=V115,F116>=V116),V116,IF(AND(W115=V115,F116<=V116),U116,””)))) -> 1813.085 | X116: BUY
A117: 2018-06-13T12:40:00 | C117: 1818.4 | D117: 1819 | E117: 1817.15 | F117: 1817.45 | G117: 37211 | H117: 1.85 | I117: =IF(A117="","",IF(ROW()>$AA$16+1,AVERAGE(INDIRECT("H" & ROW()-$AA$16+1):H117),"")) -> 1.895 | J117: 1.867639363 | K117: 2.431120117 | L117: 1.895 | M117: 1823.135 | N117: 1811.765 | O117: 1822.835 | P117: 1813.315 | Q117: 1823.76 | R117: 1812.39 | S117: 1823.76 | T117: 1812.39 | U117: 1821.695 | V117: 1813.085 | W117: =IF(AND(W116=U116,F117<=U117),U117,IF(AND(W116=U116,F117>=U117),V117,IF(AND(W116=V116,F117>=V117),V117,IF(AND(W116=V116,F117<=V117),U117,””)))) -> 1813.085 | X117: BUY
A118: 2018-06-13T12:45:00 | C118: 1817.5 | D118: 1820 | E118: 1816.5 | F118: 1819.65 | G118: 58662 | H118: 3.5 | I118: =IF(A118="","",IF(ROW()>$AA$16+1,AVERAGE(INDIRECT("H" & ROW()-$AA$16+1):H118),"")) -> 1.915 | J118: 2.164432206 | K118: 2.538008106 | L118: 1.915 | M118: 1825.395 | N118: 1813.905 | O118: 1822.245 | P118: 1814.255 | Q118: 1823.995 | R118: 1812.505 | S118: 1823.995 | T118: 1812.505 | U118: 1821.695 | V118: 1813.085 | W118: =IF(AND(W117=U117,F118<=U118),U118,IF(AND(W117=U117,F118>=U118),V118,IF(AND(W117=V117,F118>=V118),V118,IF(AND(W117=V117,F118<=V118),U118,””)))) -> 1813.085 | X118: BUY
A119: 2018-06-13T12:50:00 | C119: 1819.6 | D119: 1820 | E119: 1818.7 | F119: 1819.05 | G119: 50811 | H119: 1.3 | I119: =IF(A119="","",IF(ROW()>$AA$16+1,AVERAGE(INDIRECT("H" & ROW()-$AA$16+1):H119),"")) -> 1.765 | J119: 2.007262714 | K119: 2.414207295 | L119: 1.765 | M119: 1824.345 | N119: 1813.755 | O119: 1823.995 | P119: 1814.705 | Q119: 1824.645 | R119: 1814.055 | S119: 1824.645 | T119: 1814.055 | U119: 1821.695 | V119: 1814.055 | W119: =IF(AND(W118=U118,F119<=U119),U119,IF(AND(W118=U118,F119>=U119),V119,IF(AND(W118=V118,F119>=V119),V119,IF(AND(W118=V118,F119<=V119),U119,””)))) -> 1814.055 | X119: BUY
A120: 2018-06-13T12:55:00 | C120: 1819.25 | D120: 1823.5 | E120: 1819.25 | F120: 1823.5 | G120: 134076 | H120: 4.45 | I120: =IF(A120="","",IF(ROW()>$AA$16+1,AVERAGE(INDIRECT("H" & ROW()-$AA$16+1):H120),"")) -> 2.105 | J120: 2.451396766 | K120: 2.617786566 | L120: 2.105 | M120: 1829.815 | N120: 1817.185 | O120: 1825.565 | P120: 1817.185 | Q120: 1827.69 | R120: 1815.06 | S120: 1827.69 | T120: 1815.06 | U120: 1821.695 | V120: 1815.06 | W120: =IF(AND(W119=U119,F120<=U120),U120,IF(AND(W119=U119,F120>=U120),V120,IF(AND(W119=V119,F120>=V120),V120,IF(AND(W119=V119,F120<=V120),U120,””)))) -> 1815.06 | X120: BUY
A121: 2018-06-13T13:00:00 | C121: 1823.6 | D121: 1823.6 | E121: 1819.6 | F121: 1822.5 | G121: 63902 | H121: 4 | I121: =IF(A121="","",IF(ROW()>$AA$16+1,AVERAGE(INDIRECT("H" & ROW()-$AA$16+1):H121),"")) -> 2.245 | J121: 2.73296099 | K121: 2.756007909 | L121: 2.245 | M121: 1829.235 | N121: 1815.765 | O121: 1826.335 | P121: 1816.865 | Q121: 1828.335 | R121: 1814.865 | S121: 1828.335 | T121: 1814.865 | U121: 1828.335 | V121: 1815.06 | W121: =IF(AND(W120=U120,F121<=U121),U121,IF(AND(W120=U120,F121>=U121),V121,IF(AND(W120=V120,F121>=V121),V121,IF(AND(W120=V120,F121<=V121),U121,””)))) -> 1815.06 | X121: BUY
A122: 2018-06-13T13:05:00 | C122: 1822.5 | D122: 1823.85 | E122: 1821.45 | F122: 1822.9 | G122: 66308 | H122: 2.4 | I122: =IF(A122="","",IF(ROW()>$AA$16+1,AVERAGE(INDIRECT("H" & ROW()-$AA$16+1):H122),"")) -> 2.36 | J122: 2.672422628 | K122: 2.720407118 | L122: 2.36 | M122: 1829.98 | N122: 1815.82 | O122: 1828.53 | P122: 1816.77 | Q122: 1829.73 | R122: 1815.57 | S122: 1829.73 | T122: 1815.57 | U122: 1828.335 | V122: 1815.57 | W122: =IF(AND(W121=U121,F122<=U122),U122,IF(AND(W121=U121,F122>=U122),V122,IF(AND(W121=V121,F122>=V122),V122,IF(AND(W121=V121,F122<=V122),U122,””)))) -> 1815.57 | X122: BUY
A123: 2018-06-13T13:10:00 | C123: 1823 | D123: 1825 | E123: 1822.3 | F123: 1825 | G123: 91971 | H123: 2.7 | I123: =IF(A123="","",IF(ROW()>$AA$16+1,AVERAGE(INDIRECT("H" & ROW()-$AA$16+1):H123),"")) -> 2.535 | J123: 2.677436696 | K123: 2.718366406 | L123: 2.535 | M123: 1832.605 | N123: 1817.395 | O123: 1829.905 | P123: 1817.395 | Q123: 1831.255 | R123: 1816.045 | S123: 1831.255 | T123: 1816.045 | U123: 1828.335 | V123: 1816.045 | W123: =IF(AND(W122=U122,F123<=U123),U123,IF(AND(W122=U122,F123>=U123),V123,IF(AND(W122=V122,F123>=V123),V123,IF(AND(W122=V122,F123<=V123),U123,””)))) -> 1816.045 | X123: BUY
A124: 1.163828536e+22 | H124: 1825 | I124: =IF(A124="","",IF(ROW()>$AA$16+1,AVERAGE(INDIRECT("H" & ROW()-$AA$16+1):H124),"")) -> 185 | J124: 334.0088118 | K124: 184.9465298 | L124: 185 | M124: 555 | N124: -555 | O124: 555 | P124: -555 | Q124: 555 | R124: -555 | S124: 555 | T124: -555 | U124: 555 | V124: 1816.045 | W124: =IF(AND(W123=U123,F124<=U124),U124,IF(AND(W123=U123,F124>=U124),V124,IF(AND(W123=V123,F124>=V124),V124,IF(AND(W123=V123,F124<=V124),U124,””)))) -> 555 | X124: SELL
A125: 2018-06-13T13:20:00 | C125: 1826.15 | D125: 1828.5 | E125: 1825.4 | F125: 1827.95 | G125: 47942 | H125: 1828.5 | I125: =IF(A125="","",IF(ROW()>$AA$16+1,AVERAGE(INDIRECT("H" & ROW()-$AA$16+1):H125),"")) -> 367.585 | J125: 605.7344824 | K125: 349.3018768 | L125: 367.585 | M125: 2930.705 | N125: 725.195 | O125: 2928.155 | P125: 725.745 | Q125: 2929.705 | R125: 724.195 | S125: 2929.705 | T125: 724.195 | U125: 555 | V125: 724.195 | W125: =IF(AND(W124=U124,F125<=U125),U125,IF(AND(W124=U124,F125>=U125),V125,IF(AND(W124=V124,F125>=V125),V125,IF(AND(W124=V124,F125<=V125),U125,””)))) -> 724.195 | X125: BUY
A126: 2018-06-13T13:25:00 | C126: 1828.1 | D126: 1829 | E126: 1826.4 | F126: 1828.2 | G126: 49675 | H126: 2.6 | I126: =IF(A126="","",IF(ROW()>$AA$16+1,AVERAGE(INDIRECT("H" & ROW()-$AA$16+1):H126),"")) -> 367.63 | J126: 496.0736674 | K126: 314.6316891 | L126: 367.63 | M126: 2931.09 | N126: 725.31 | O126: 2929.29 | P126: 726.11 | Q126: 2930.59 | R126: 724.81 | S126: 2930.59 | T126: 724.81 | U126: 2930.59 | V126: 724.81 | W126: =IF(AND(W125=U125,F126<=U126),U126,IF(AND(W125=U125,F126>=U126),V126,IF(AND(W125=V125,F126>=V126),V126,IF(AND(W125=V125,F126<=V126),U126,””)))) -> 724.81 | X126: BUY
A127: 2018-06-13T13:30:00 | C127: 1828.1 | D127: 1831.4 | E127: 1828.1 | F127: 1831 | G127: 108042 | H127: 3.3 | I127: =IF(A127="","",IF(ROW()>$AA$16+1,AVERAGE(INDIRECT("H" & ROW()-$AA$16+1):H127),"")) -> 367.775 | J127: 406.4784552 | K127: 283.4985202 | L127: 367.775 | M127: 2934.325 | N127: 727.675 | O127: 2931.425 | P127: 728.075 | Q127: 2933.075 | R127: 726.425 | S127: 2933.075 | T127: 726.425 | U127: 2930.59 | V127: 726.425 | W127: =IF(AND(W126=U126,F127<=U127),U127,IF(AND(W126=U126,F127>=U127),V127,IF(AND(W126=V126,F127>=V127),V127,IF(AND(W126=V126,F127<=V127),U127,””)))) -> 726.425 | X127: BUY
A128: 2018-06-13T13:35:00 | C128: 1830.95 | D128: 1831.5 | E128: 1828.7 | F128: 1829.95 | G128: 102711 | H128: 2.8 | I128: =IF(A128="","",IF(ROW()>$AA$16+1,AVERAGE(INDIRECT("H" & ROW()-$AA$16+1):H128),"")) -> 367.705 | J128: 333.0823724 | K128: 255.4286682 | L128: 367.705 | M128: 2933.065 | N128: 726.835 | O128: 2931.815 | P128: 728.385 | Q128: 2933.215 | R128: 726.985 | S128: 2933.215 | T128: 726.985 | U128: 2930.59 | V128: 726.985 | W128: =IF(AND(W127=U127,F128<=U128),U128,IF(AND(W127=U127,F128>=U128),V128,IF(AND(W127=V127,F128>=V128),V128,IF(AND(W127=V127,F128<=V128),U128,””)))) -> 726.985 | X128: BUY
A129: 2018-06-13T13:40:00 | C129: 1829.95 | D129: 1830 | E129: 1828.1 | F129: 1829.7 | G129: 52328 | H129: 1.9 | I129: =IF(A129="","",IF(ROW()>$AA$16+1,AVERAGE(INDIRECT("H" & ROW()-$AA$16+1):H129),"")) -> 367.765 | J129: 272.8673956 | K129: 230.0758014 | L129: 367.765 | M129: 2932.995 | N129: 726.405 | O129: 2931.395 | P129: 726.705 | Q129: 2932.345 | R129: 725.755 | S129: 2932.345 | T129: 725.755 | U129: 2930.59 | V129: 726.985 | W129: =IF(AND(W128=U128,F129<=U129),U129,IF(AND(W128=U128,F129>=U129),V129,IF(AND(W128=V128,F129>=V129),V129,IF(AND(W128=V128,F129<=V129),U129,””)))) -> 726.985 | X129: BUY
A130: 2018-06-13T13:45:00 | C130: 1829.7 | D130: 1830 | E130: 1826.6 | F130: 1826.95 | G130: 50360 | H130: 3.4 | I130: =IF(A130="","",IF(ROW()>$AA$16+1,AVERAGE(INDIRECT("H" & ROW()-$AA$16+1):H130),"")) -> 367.66 | J130: 223.8733237 | K130: 207.4082212 | L130: 367.66 | M130: 2929.93 | N130: 723.97 | O130: 2929.58 | P130: 727.02 | Q130: 2931.28 | R130: 725.32 | S130: 2931.28 | T130: 725.32 | U130: 2930.59 | V130: 726.985 | W130: =IF(AND(W129=U129,F130<=U130),U130,IF(AND(W129=U129,F130>=U130),V130,IF(AND(W129=V129,F130>=V130),V130,IF(AND(W129=V129,F130<=V130),U130,””)))) -> 726.985 | X130: =IF(A130="","",IF(ROW()>$AA$16+1,IF(F130<W130,"SELL","BUY"),"")) -> BUY
A131: 2018-06-13T13:50:00 | C131: 1827 | D131: 1828.55 | E131: 1826.85 | F131: 1827.75 | G131: 36677 | H131: 1.7 | I131: =IF(A131="","",IF(ROW()>$AA$16+1,AVERAGE(INDIRECT("H" & ROW()-$AA$16+1):H131),"")) -> 367.43 | J131: 183.4781739 | K131: 186.8373991 | L131: 367.43 | M131: 2930.04 | N131: 725.46 | O131: 2929.14 | P131: 726.26 | Q131: 2929.99 | R131: 725.41 | S131: 2929.99 | T131: 725.41 | U131: =IF(A131="","",IF(ROW()>$AA$16+1,IF(OR(S131<U130,F130>U130),S131,U130),"")) -> 2929.99 | V131: =IF(A131="","",IF(ROW()>$AA$16+1,IF(OR(T131>V130,F130<V130),T131,V130),"")) -> 726.985 | W131: =IF(AND(W130=U130,F131<=U131),U131,IF(AND(W130=U130,F131>=U131),V131,IF(AND(W130=V130,F131>=V131),V131,IF(AND(W130=V130,F131<=V131),U131,””)))) -> 726.985 | X131: BUY
A132: 2018-06-13T13:55:00 | C132: 1827.65 | D132: 1828.95 | E132: 1827 | F132: 1828 | G132: 35437 | H132: =IF(A132="","",MAX(D132-E132,ABS(D132-F131),ABS(E132-F131))) -> 1.95 | I132: =IF(A132="","",IF(ROW()>$AA$16+1,AVERAGE(INDIRECT("H" & ROW()-$AA$16+1):H132),"")) -> 367.385 | J132: =IF(A132="","",IF(ROW(H132)<2+$AA$16,"",IF(ROW(H132)=2+$AA$16,AVERAGE(OFFSET(H132,1-$AA$16,0,$AA$16,1)),2/($AA$16+1)*H132+(1-2/($AA$16+1))*J131))) -> 150.4730514 | K132: =IF(A132="","",IF(ROW(H132)<2+$AA$16,"",IF(ROW(H132)=2+$AA$16,AVERAGE(OFFSET(H132,1-$AA$16,0,$AA$16,1)),1/$AA$16*H132+(1-1/$AA$16)*K131))) -> 168.3486592 | L132: =IF($AA$19="ATR (SMA)",I132,IF($AA$19="ATR (EMA)",J132,K132)) -> 367.385 | M132: =IF(A132="","",IF(ROW()>$AA$16+1,F132 + (L132*$AA$17),"")) -> 2930.155 | N132: =IF(A132="","",IF(ROW()>$AA$16+1,F132 - (L132*$AA$17),"")) -> 725.845 | O132: =IF(A132="","",IF(ROW()>$AA$16+1,E132 + (L132*$AA$17),"")) -> 2929.155 | P132: =IF(A132="","",IF(ROW()>$AA$16+1,D132 - (L132*$AA$17),"")) -> 726.795 | Q132: =IF(A132="","",IF(ROW()>$AA$16+1,((D132+E132)/2) + (L132*$AA$17),"")) -> 2930.13 | R132: =IF(A132="","",IF(ROW()>$AA$16+1,((D132+E132)/2) - (L132*$AA$17),"")) -> 725.82 | S132: =IF($AA$18="ATR SL(CLOSE)",M132,IF($AA$18="ATR SL(HIGH/LOW)",O132,Q132)) -> 2930.13 | T132: 725.82 | U132: 2929.99 | V132: 726.985 | W132: =IF(AND(W131=U131,F132<=U132),U132,IF(AND(W131=U131,F132>=U132),V132,IF(AND(W131=V131,F132>=V132),V132,IF(AND(W131=V131,F132<=V132),U132,””)))) -> 726.985 | X132: BUY
A133: 2018-06-13T14:00:00 | C133: 1827.95 | D133: 1828 | E133: 1827 | F133: 1827.95 | G133: 32856 | H133: 1 | I133: =IF(A133="","",IF(ROW()>$AA$16+1,AVERAGE(INDIRECT("H" & ROW()-$AA$16+1):H133),"")) -> 367.215 | J133: 123.296133 | K133: 151.6137933 | L133: 367.215 | M133: 2929.595 | N133: 726.305 | O133: 2928.645 | P133: 726.355 | Q133: 2929.145 | R133: 725.855 | S133: 2929.145 | T133: 725.855 | U133: 2929.145 | V133: 726.985 | W133: =IF(AND(W132=U132,F133<=U133),U133,IF(AND(W132=U132,F133>=U133),V133,IF(AND(W132=V132,F133>=V133),V133,IF(AND(W132=V132,F133<=V133),U133,””)))) -> 726.985 | X133: BUY
A134: 2018-06-13T14:05:00 | C134: 1828 | D134: 1828.05 | E134: 1826.6 | F134: 1827.95 | G134: 32052 | H134: 1.45 | I134: =IF(A134="","",IF(ROW()>$AA$16+1,AVERAGE(INDIRECT("H" & ROW()-$AA$16+1):H134),"")) -> 184.86 | J134: 101.1422906 | K134: 136.5974139 | L134: 184.86 | M134: 2382.53 | N134: 1273.37 | O134: 2381.18 | P134: 1273.47 | Q134: 2381.905 | R134: 1272.745 | S134: 2381.905 | T134: 1272.745 | U134: 2381.905 | V134: 1272.745 | W134: =IF(AND(W133=U133,F134<=U134),U134,IF(AND(W133=U133,F134>=U134),V134,IF(AND(W133=V133,F134>=V134),V134,IF(AND(W133=V133,F134<=V134),U134,””)))) -> 1272.745 | X134: BUY
A135: 2018-06-13T14:10:00 | C135: 1827.75 | D135: 1828 | E135: 1821.7 | F135: 1825.1 | G135: 67054 | H135: 6.3 | I135: =IF(A135="","",IF(ROW()>$AA$16+1,AVERAGE(INDIRECT("H" & ROW()-$AA$16+1):H135),"")) -> 2.64 | J135: 83.89823776 | K135: 123.5676726 | L135: 2.64 | M135: 1833.02 | N135: 1817.18 | O135: 1829.62 | P135: 1820.08 | Q135: 1832.77 | R135: 1816.93 | S135: 1832.77 | T135: 1816.93 | U135: 1832.77 | V135: 1816.93 | W135: =IF(AND(W134=U134,F135<=U135),U135,IF(AND(W134=U134,F135>=U135),V135,IF(AND(W134=V134,F135>=V135),V135,IF(AND(W134=V134,F135<=V135),U135,””)))) -> 1816.93 | X135: BUY
A136: 2018-06-13T14:15:00 | C136: 1825 | D136: 1827.05 | E136: 1824.75 | F136: 1826.65 | G136: 38808 | H136: 2.3 | I136: =IF(A136="","",IF(ROW()>$AA$16+1,AVERAGE(INDIRECT("H" & ROW()-$AA$16+1):H136),"")) -> 2.61 | J136: 69.06219453 | K136: 111.4409053 | L136: 2.61 | M136: 1834.48 | N136: 1818.82 | O136: 1832.58 | P136: 1819.22 | Q136: 1833.73 | R136: 1818.07 | S136: 1833.73 | T136: 1818.07 | U136: 1832.77 | V136: 1818.07 | W136: =IF(AND(W135=U135,F136<=U136),U136,IF(AND(W135=U135,F136>=U136),V136,IF(AND(W135=V135,F136>=V136),V136,IF(AND(W135=V135,F136<=V136),U136,””)))) -> 1818.07 | X136: BUY
A137: 2018-06-13T14:20:00 | C137: 1826.5 | D137: 1828.25 | E137: 1825.45 | F137: 1827.5 | G137: 27108 | H137: 2.8 | I137: =IF(A137="","",IF(ROW()>$AA$16+1,AVERAGE(INDIRECT("H" & ROW()-$AA$16+1):H137),"")) -> 2.56 | J137: 57.0145228 | K137: 100.5768148 | L137: 2.56 | M137: 1835.18 | N137: 1819.82 | O137: 1833.13 | P137: 1820.57 | Q137: 1834.53 | R137: 1819.17 | S137: 1834.53 | T137: 1819.17 | U137: 1832.77 | V137: 1819.17 | W137: =IF(AND(W136=U136,F137<=U137),U137,IF(AND(W136=U136,F137>=U137),V137,IF(AND(W136=V136,F137>=V137),V137,IF(AND(W136=V136,F137<=V137),U137,””)))) -> 1819.17 | X137: BUY
A138: 2018-06-13T14:25:00 | C138: 1826.6 | D138: 1828.75 | E138: 1826.6 | F138: 1827 | G138: 48148 | H138: 2.15 | I138: =IF(A138="","",IF(ROW()>$AA$16+1,AVERAGE(INDIRECT("H" & ROW()-$AA$16+1):H138),"")) -> 2.495 | J138: 47.03915502 | K138: 90.73413329 | L138: 2.495 | M138: 1834.485 | N138: 1819.515 | O138: 1834.085 | P138: 1821.265 | Q138: 1835.16 | R138: 1820.19 | S138: 1835.16 | T138: 1820.19 | U138: 1832.77 | V138: 1820.19 | W138: =IF(AND(W137=U137,F138<=U138),U138,IF(AND(W137=U137,F138>=U138),V138,IF(AND(W137=V137,F138>=V138),V138,IF(AND(W137=V137,F138<=V138),U138,””)))) -> 1820.19 | X138: BUY
A139: 2018-06-13T14:30:00 | C139: 1827 | D139: 1827 | E139: 1826.6 | F139: 1827 | G139: 37171 | H139: 0.4 | I139: =IF(A139="","",IF(ROW()>$AA$16+1,AVERAGE(INDIRECT("H" & ROW()-$AA$16+1):H139),"")) -> 2.345 | J139: 38.55930865 | K139: 81.70071996 | L139: 2.345 | M139: 1834.035 | N139: 1819.965 | O139: 1833.635 | P139: 1819.965 | Q139: 1833.835 | R139: 1819.765 | S139: 1833.835 | T139: 1819.765 | U139: 1832.77 | V139: 1820.19 | W139: =IF(AND(W138=U138,F139<=U139),U139,IF(AND(W138=U138,F139>=U139),V139,IF(AND(W138=V138,F139>=V139),V139,IF(AND(W138=V138,F139<=V139),U139,””)))) -> 1820.19 | X139: BUY
A140: 2018-06-13T14:35:00 | C140: 1827 | D140: 1827.6 | E140: 1823.15 | F140: 1823.65 | G140: 51554 | H140: 4.45 | I140: =IF(A140="","",IF(ROW()>$AA$16+1,AVERAGE(INDIRECT("H" & ROW()-$AA$16+1):H140),"")) -> 2.45 | J140: 32.35761617 | K140: 73.97564796 | L140: 2.45 | M140: 1831 | N140: 1816.3 | O140: 1830.5 | P140: 1820.25 | Q140: 1832.725 | R140: 1818.025 | S140: 1832.725 | T140: 1818.025 | U140: 1832.725 | V140: 1820.19 | W140: =IF(AND(W139=U139,F140<=U140),U140,IF(AND(W139=U139,F140>=U140),V140,IF(AND(W139=V139,F140>=V140),V140,IF(AND(W139=V139,F140<=V140),U140,””)))) -> 1820.19 | X140: BUY
A141: 2018-06-13T14:40:00 | C141: 1823.8 | D141: 1827 | E141: 1823.7 | F141: 1825.95 | G141: 42034 | H141: 3.35 | I141: =IF(A141="","",IF(ROW()>$AA$16+1,AVERAGE(INDIRECT("H" & ROW()-$AA$16+1):H141),"")) -> 2.615 | J141: 27.08350414 | K141: 66.91308317 | L141: 2.615 | M141: 1833.795 | N141: 1818.105 | O141: 1831.545 | P141: 1819.155 | Q141: 1833.195 | R141: 1817.505 | S141: 1833.195 | T141: 1817.505 | U141: 1832.725 | V141: 1820.19 | W141: =IF(AND(W140=U140,F141<=U141),U141,IF(AND(W140=U140,F141>=U141),V141,IF(AND(W140=V140,F141>=V141),V141,IF(AND(W140=V140,F141<=V141),U141,””)))) -> 1820.19 | X141: BUY
A142: 2018-06-13T14:45:00 | C142: 1825.95 | D142: 1826.05 | E142: 1824.95 | F142: 1824.95 | G142: 35698 | H142: 1.1 | I142: =IF(A142="","",IF(ROW()>$AA$16+1,AVERAGE(INDIRECT("H" & ROW()-$AA$16+1):H142),"")) -> 2.53 | J142: 22.35923066 | K142: 60.33177485 | L142: 2.53 | M142: 1832.54 | N142: 1817.36 | O142: 1832.54 | P142: 1818.46 | Q142: 1833.09 | R142: 1817.91 | S142: 1833.09 | T142: 1817.91 | U142: 1832.725 | V142: 1820.19 | W142: =IF(AND(W141=U141,F142<=U142),U142,IF(AND(W141=U141,F142>=U142),V142,IF(AND(W141=V141,F142>=V142),V142,IF(AND(W141=V141,F142<=V142),U142,””)))) -> 1820.19 | X142: BUY
A143: 2018-06-13T14:50:00 | C143: 1824.95 | D143: 1825.65 | E143: 1821.75 | F143: 1821.75 | G143: 62425 | H143: 3.9 | I143: =IF(A143="","",IF(ROW()>$AA$16+1,AVERAGE(INDIRECT("H" & ROW()-$AA$16+1):H143),"")) -> 2.82 | J143: 19.0030069 | K143: 54.68859737 | L143: 2.82 | M143: 1830.21 | N143: 1813.29 | O143: 1830.21 | P143: 1817.19 | Q143: 1832.16 | R143: 1815.24 | S143: 1832.16 | T143: 1815.24 | U143: 1832.16 | V143: 1820.19 | W143: =IF(AND(W142=U142,F143<=U143),U143,IF(AND(W142=U142,F143>=U143),V143,IF(AND(W142=V142,F143>=V143),V143,IF(AND(W142=V142,F143<=V143),U143,””)))) -> 1820.19 | X143: BUY
A144: 2018-06-13T14:55:00 | C144: 1821.95 | D144: 1821.95 | E144: 1818.05 | F144: 1819 | G144: 114872 | H144: 3.9 | I144: =IF(A144="","",IF(ROW()>$AA$16+1,AVERAGE(INDIRECT("H" & ROW()-$AA$16+1):H144),"")) -> 3.065 | J144: 16.25700565 | K144: 49.60973763 | L144: 3.065 | M144: 1828.195 | N144: 1809.805 | O144: 1827.245 | P144: 1812.755 | Q144: 1829.195 | R144: 1810.805 | S144: 1829.195 | T144: 1810.805 | U144: 1829.195 | V144: 1820.19 | W144: =IF(AND(W143=U143,F144<=U144),U144,IF(AND(W143=U143,F144>=U144),V144,IF(AND(W143=V143,F144>=V144),V144,IF(AND(W143=V143,F144<=V144),U144,””)))) -> 1829.195 | X144: SELL
A145: 2018-06-13T15:00:00 | C145: 1820 | D145: 1823.35 | E145: 1818.5 | F145: 1822.6 | G145: 60413 | H145: 4.85 | I145: =IF(A145="","",IF(ROW()>$AA$16+1,AVERAGE(INDIRECT("H" & ROW()-$AA$16+1):H145),"")) -> 2.92 | J145: 14.18300462 | K145: 45.13376387 | L145: 2.92 | M145: 1831.36 | N145: 1813.84 | O145: 1827.26 | P145: 1814.59 | Q145: 1829.685 | R145: 1812.165 | S145: 1829.685 | T145: 1812.165 | U145: 1829.195 | V145: 1812.165 | W145: =IF(AND(W144=U144,F145<=U145),U145,IF(AND(W144=U144,F145>=U145),V145,IF(AND(W144=V144,F145>=V145),V145,IF(AND(W144=V144,F145<=V145),U145,””)))) -> 1829.195 | X145: SELL
A146: 2018-06-13T15:05:00 | C146: 1822.65 | D146: 1825 | E146: 1821.75 | F146: 1821.95 | G146: 72248 | H146: 3.25 | I146: =IF(A146="","",IF(ROW()>$AA$16+1,AVERAGE(INDIRECT("H" & ROW()-$AA$16+1):H146),"")) -> 3.015 | J146: 12.1951856 | K146: 40.94538748 | L146: 3.015 | M146: 1830.995 | N146: 1812.905 | O146: 1830.795 | P146: 1815.955 | Q146: 1832.42 | R146: 1814.33 | S146: 1832.42 | T146: 1814.33 | U146: 1829.195 | V146: 1814.33 | W146: =IF(AND(W145=U145,F146<=U146),U146,IF(AND(W145=U145,F146>=U146),V146,IF(AND(W145=V145,F146>=V146),V146,IF(AND(W145=V145,F146<=V146),U146,””)))) -> 1829.195 | X146: SELL
A147: 2018-06-13T15:10:00 | C147: 1821.95 | D147: 1825 | E147: 1820.35 | F147: 1824.6 | G147: 79149 | H147: 4.65 | I147: =IF(A147="","",IF(ROW()>$AA$16+1,AVERAGE(INDIRECT("H" & ROW()-$AA$16+1):H147),"")) -> 3.2 | J147: 10.82333367 | K147: 37.31584873 | L147: 3.2 | M147: 1834.2 | N147: 1815 | O147: 1829.95 | P147: 1815.4 | Q147: 1832.275 | R147: 1813.075 | S147: 1832.275 | T147: 1813.075 | U147: 1829.195 | V147: 1814.33 | W147: =IF(AND(W146=U146,F147<=U147),U147,IF(AND(W146=U146,F147>=U147),V147,IF(AND(W146=V146,F147>=V147),V147,IF(AND(W146=V146,F147<=V147),U147,””)))) -> 1829.195 | X147: SELL
A148: 2018-06-13T15:15:00 | C148: 1824.6 | D148: 1826.95 | E148: 1823.1 | F148: 1826.5 | G148: 96359 | H148: 3.85 | I148: =IF(A148="","",IF(ROW()>$AA$16+1,AVERAGE(INDIRECT("H" & ROW()-$AA$16+1):H148),"")) -> 3.37 | J148: 9.555454822 | K148: 33.96926386 | L148: 3.37 | M148: 1836.61 | N148: 1816.39 | O148: 1833.21 | P148: 1816.84 | Q148: 1835.135 | R148: 1814.915 | S148: 1835.135 | T148: 1814.915 | U148: 1829.195 | V148: 1814.915 | W148: =IF(AND(W147=U147,F148<=U148),U148,IF(AND(W147=U147,F148>=U148),V148,IF(AND(W147=V147,F148>=V148),V148,IF(AND(W147=V147,F148<=V148),U148,””)))) -> 1829.195 | X148: SELL
A149: 2018-06-13T15:20:00 | C149: 1826 | D149: 1826 | E149: 1823 | F149: 1824.2 | G149: 124367 | H149: 3.5 | I149: =IF(A149="","",IF(ROW()>$AA$16+1,AVERAGE(INDIRECT("H" & ROW()-$AA$16+1):H149),"")) -> 3.68 | J149: 8.454463036 | K149: 30.92233747 | L149: 3.68 | M149: 1835.24 | N149: 1813.16 | O149: 1834.04 | P149: 1814.96 | Q149: 1835.54 | R149: 1813.46 | S149: 1835.54 | T149: 1813.46 | U149: 1829.195 | V149: 1814.915 | W149: =IF(AND(W148=U148,F149<=U149),U149,IF(AND(W148=U148,F149>=U149),V149,IF(AND(W148=V148,F149>=V149),V149,IF(AND(W148=V148,F149<=V149),U149,””)))) -> 1829.195 | X149: SELL
A150: 2018-06-13T15:25:00 | C150: 1824 | D150: 1825.25 | E150: 1822.3 | F150: 1823.75 | G150: 120071 | H150: 2.95 | I150: =IF(A150="","",IF(ROW()>$AA$16+1,AVERAGE(INDIRECT("H" & ROW()-$AA$16+1):H150),"")) -> 3.53 | J150: 7.453651575 | K150: 28.12510373 | L150: 3.53 | M150: 1834.34 | N150: 1813.16 | O150: 1832.89 | P150: 1814.66 | Q150: 1834.365 | R150: 1813.185 | S150: 1834.365 | T150: 1813.185 | U150: 1829.195 | V150: 1814.915 | W150: =IF(AND(W149=U149,F150<=U150),U150,IF(AND(W149=U149,F150>=U150),V150,IF(AND(W149=V149,F150>=V150),V150,IF(AND(W149=V149,F150<=V150),U150,””)))) -> 1829.195 | X150: SELL
A151: 2018-06-13T15:30:00 | C151: 1822.3 | D151: 1825 | E151: 1821 | F151: 1824 | G151: 100063 | H151: 4 | I151: =IF(A151="","",IF(ROW()>$AA$16+1,AVERAGE(INDIRECT("H" & ROW()-$AA$16+1):H151),"")) -> 3.595 | J151: 6.825714925 | K151: 25.71259335 | L151: 3.595 | M151: 1834.785 | N151: 1813.215 | O151: 1831.785 | P151: 1814.215 | Q151: 1833.785 | R151: 1812.215 | S151: 1833.785 | T151: 1812.215 | U151: 1829.195 | V151: 1814.915 | W151: =IF(AND(W150=U150,F151<=U151),U151,IF(AND(W150=U150,F151>=U151),V151,IF(AND(W150=V150,F151>=V151),V151,IF(AND(W150=V150,F151<=V151),U151,””)))) -> 1829.195 | X151: SELL
A152: 2018-06-14T09:20:00 | C152: 1828.2 | D152: 1828.2 | E152: 1816.1 | F152: 1816.3 | G152: 219590 | H152: 12.1 | I152: =IF(A152="","",IF(ROW()>$AA$16+1,AVERAGE(INDIRECT("H" & ROW()-$AA$16+1):H152),"")) -> 4.695 | J152: 7.784675848 | K152: 24.35133402 | L152: 4.695 | M152: 1830.385 | N152: 1802.215 | O152: 1830.185 | P152: 1814.115 | Q152: 1836.235 | R152: 1808.065 | S152: 1836.235 | T152: 1808.065 | U152: 1829.195 | V152: 1814.915 | W152: =IF(AND(W151=U151,F152<=U152),U152,IF(AND(W151=U151,F152>=U152),V152,IF(AND(W151=V151,F152>=V152),V152,IF(AND(W151=V151,F152<=V152),U152,””)))) -> 1829.195 | X152: SELL
A153: 2018-06-14T09:25:00 | C153: 1816.2 | D153: 1816.35 | E153: 1806.25 | F153: 1809.05 | G153: 122476 | H153: 10.1 | I153: =IF(A153="","",IF(ROW()>$AA$16+1,AVERAGE(INDIRECT("H" & ROW()-$AA$16+1):H153),"")) -> 5.315 | J153: 8.205643876 | K153: 22.92620062 | L153: 5.315 | M153: 1824.995 | N153: 1793.105 | O153: 1822.195 | P153: 1800.405 | Q153: 1827.245 | R153: 1795.355 | S153: 1827.245 | T153: 1795.355 | U153: 1827.245 | V153: 1814.915 | W153: =IF(AND(W152=U152,F153<=U153),U153,IF(AND(W152=U152,F153>=U153),V153,IF(AND(W152=V152,F153>=V153),V153,IF(AND(W152=V152,F153<=V153),U153,””)))) -> 1827.245 | X153: SELL
A154: 2018-06-14T09:30:00 | C154: 1809 | D154: 1810.05 | E154: 1805.1 | F154: 1807.15 | G154: 75529 | H154: 4.95 | I154: =IF(A154="","",IF(ROW()>$AA$16+1,AVERAGE(INDIRECT("H" & ROW()-$AA$16+1):H154),"")) -> 5.42 | J154: 7.613708625 | K154: 21.12858055 | L154: 5.42 | M154: 1823.41 | N154: 1790.89 | O154: 1821.36 | P154: 1793.79 | Q154: 1823.835 | R154: 1791.315 | S154: 1823.835 | T154: 1791.315 | U154: 1823.835 | V154: 1791.315 | W154: =IF(AND(W153=U153,F154<=U154),U154,IF(AND(W153=U153,F154>=U154),V154,IF(AND(W153=V153,F154>=V154),V154,IF(AND(W153=V153,F154<=V154),U154,””)))) -> 1823.835 | X154: SELL
A155: 2018-06-14T09:35:00 | C155: 1807.65 | D155: 1813 | E155: 1806.9 | F155: 1811.65 | G155: 44021 | H155: 6.1 | I155: =IF(A155="","",IF(ROW()>$AA$16+1,AVERAGE(INDIRECT("H" & ROW()-$AA$16+1):H155),"")) -> 5.545 | J155: 7.338488875 | K155: 19.6257225 | L155: 5.545 | M155: 1828.285 | N155: 1795.015 | O155: 1823.535 | P155: 1796.365 | Q155: 1826.585 | R155: 1793.315 | S155: 1826.585 | T155: 1793.315 | U155: 1823.835 | V155: 1793.315 | W155: =IF(AND(W154=U154,F155<=U155),U155,IF(AND(W154=U154,F155>=U155),V155,IF(AND(W154=V154,F155>=V155),V155,IF(AND(W154=V154,F155<=V155),U155,””)))) -> 1823.835 | X155: SELL
A156: 2018-06-14T09:40:00 | C156: 1811.5 | D156: 1812.65 | E156: 1809 | F156: 1810.3 | G156: 40121 | H156: 3.65 | I156: =IF(A156="","",IF(ROW()>$AA$16+1,AVERAGE(INDIRECT("H" & ROW()-$AA$16+1):H156),"")) -> 5.585 | J156: 6.667854534 | K156: 18.02815025 | L156: 5.585 | M156: 1827.055 | N156: 1793.545 | O156: 1825.755 | P156: 1795.895 | Q156: 1827.58 | R156: 1794.07 | S156: 1827.58 | T156: 1794.07 | U156: 1823.835 | V156: 1794.07 | W156: =IF(AND(W155=U155,F156<=U156),U156,IF(AND(W155=U155,F156>=U156),V156,IF(AND(W155=V155,F156>=V156),V156,IF(AND(W155=V155,F156<=V156),U156,””)))) -> 1823.835 | X156: SELL
A157: 2018-06-14T09:45:00 | C157: 1810.3 | D157: 1810.45 | E157: 1806.5 | F157: 1808.55 | G157: 27783 | H157: 3.95 | I157: =IF(A157="","",IF(ROW()>$AA$16+1,AVERAGE(INDIRECT("H" & ROW()-$AA$16+1):H157),"")) -> 5.515 | J157: 6.173699165 | K157: 16.62033522 | L157: 5.515 | M157: 1825.095 | N157: 1792.005 | O157: 1823.045 | P157: 1793.905 | Q157: 1825.02 | R157: 1791.93 | S157: 1825.02 | T157: 1791.93 | U157: 1823.835 | V157: 1794.07 | W157: =IF(AND(W156=U156,F157<=U157),U157,IF(AND(W156=U156,F157>=U157),V157,IF(AND(W156=V156,F157>=V157),V157,IF(AND(W156=V156,F157<=V157),U157,””)))) -> 1823.835 | X157: SELL
A158: 2018-06-14T09:50:00 | C158: 1808.55 | D158: 1810 | E158: 1808.15 | F158: 1809.9 | G158: 18964 | H158: 1.85 | I158: =IF(A158="","",IF(ROW()>$AA$16+1,AVERAGE(INDIRECT("H" & ROW()-$AA$16+1):H158),"")) -> 5.315 | J158: 5.387572044 | K158: 15.1433017 | L158: 5.315 | M158: 1825.845 | N158: 1793.955 | O158: 1824.095 | P158: 1794.055 | Q158: 1825.02 | R158: 1793.13 | S158: 1825.02 | T158: 1793.13 | U158: 1823.835 | V158: 1794.07 | W158: =IF(AND(W157=U157,F158<=U158),U158,IF(AND(W157=U157,F158>=U158),V158,IF(AND(W157=V157,F158>=V158),V158,IF(AND(W157=V157,F158<=V158),U158,””)))) -> 1823.835 | X158: SELL
A159: 2018-06-14T09:55:00 | C159: 1809.75 | D159: 1811.2 | E159: 1808.45 | F159: 1808.45 | G159: 31677 | H159: 2.75 | I159: =IF(A159="","",IF(ROW()>$AA$16+1,AVERAGE(INDIRECT("H" & ROW()-$AA$16+1):H159),"")) -> 5.24 | J159: 4.90801349 | K159: 13.90397153 | L159: 5.24 | M159: 1824.17 | N159: 1792.73 | O159: 1824.17 | P159: 1795.48 | Q159: 1825.545 | R159: 1794.105 | S159: 1825.545 | T159: 1794.105 | U159: 1823.835 | V159: 1794.105 | W159: =IF(AND(W158=U158,F159<=U159),U159,IF(AND(W158=U158,F159>=U159),V159,IF(AND(W158=V158,F159>=V159),V159,IF(AND(W158=V158,F159<=V159),U159,””)))) -> 1823.835 | X159: SELL
A160: 2018-06-14T10:00:00 | C160: 1808.45 | D160: 1810.8 | E160: 1808.05 | F160: 1808.05 | G160: 19957 | H160: 2.75 | I160: =IF(A160="","",IF(ROW()>$AA$16+1,AVERAGE(INDIRECT("H" & ROW()-$AA$16+1):H160),"")) -> 5.22 | J160: 4.515647401 | K160: 12.78857438 | L160: 5.22 | M160: 1823.71 | N160: 1792.39 | O160: 1823.71 | P160: 1795.14 | Q160: 1825.085 | R160: 1793.765 | S160: 1825.085 | T160: 1793.765 | U160: 1823.835 | V160: 1794.105 | W160: =IF(AND(W159=U159,F160<=U160),U160,IF(AND(W159=U159,F160>=U160),V160,IF(AND(W159=V159,F160>=V160),V160,IF(AND(W159=V159,F160<=V160),U160,””)))) -> 1823.835 | X160: SELL
A161: 2018-06-14T10:05:00 | C161: 1808.15 | D161: 1808.15 | E161: 1803.45 | F161: 1805 | G161: 51483 | H161: 4.7 | I161: =IF(A161="","",IF(ROW()>$AA$16+1,AVERAGE(INDIRECT("H" & ROW()-$AA$16+1):H161),"")) -> 5.29 | J161: 4.549166055 | K161: 11.97971694 | L161: 5.29 | M161: 1820.87 | N161: 1789.13 | O161: 1819.32 | P161: 1792.28 | Q161: 1821.67 | R161: 1789.93 | S161: 1821.67 | T161: 1789.93 | U161: 1821.67 | V161: 1794.105 | W161: =IF(AND(W160=U160,F161<=U161),U161,IF(AND(W160=U160,F161>=U161),V161,IF(AND(W160=V160,F161>=V161),V161,IF(AND(W160=V160,F161<=V161),U161,””)))) -> 1821.67 | X161: SELL
A162: 2018-06-14T10:10:00 | C162: 1805 | D162: 1805.3 | E162: 1803.2 | F162: 1804.25 | G162: 25896 | H162: 2.1 | I162: =IF(A162="","",IF(ROW()>$AA$16+1,AVERAGE(INDIRECT("H" & ROW()-$AA$16+1):H162),"")) -> 4.29 | J162: 4.103863136 | K162: 10.99174525 | L162: 4.29 | M162: 1817.12 | N162: 1791.38 | O162: 1816.07 | P162: 1792.43 | Q162: 1817.12 | R162: 1791.38 | S162: 1817.12 | T162: 1791.38 | U162: 1817.12 | V162: 1794.105 | W162: =IF(AND(W161=U161,F162<=U162),U162,IF(AND(W161=U161,F162>=U162),V162,IF(AND(W161=V161,F162>=V162),V162,IF(AND(W161=V161,F162<=V162),U162,””)))) -> 1817.12 | X162: SELL
A163: 2018-06-14T10:15:00 | C163: 1804.3 | D163: 1804.5 | E163: 1792.35 | F163: 1798.75 | G163: 160842 | H163: 12.15 | I163: =IF(A163="","",IF(ROW()>$AA$16+1,AVERAGE(INDIRECT("H" & ROW()-$AA$16+1):H163),"")) -> 4.495 | J163: 5.566797112 | K163: 11.10757072 | L163: 4.495 | M163: 1812.235 | N163: 1785.265 | O163: 1805.835 | P163: 1791.015 | Q163: 1811.91 | R163: 1784.94 | S163: 1811.91 | T163: 1784.94 | U163: 1811.91 | V163: 1794.105 | W163: =IF(AND(W162=U162,F163<=U163),U163,IF(AND(W162=U162,F163>=U163),V163,IF(AND(W162=V162,F163>=V163),V163,IF(AND(W162=V162,F163<=V163),U163,””)))) -> 1811.91 | X163: SELL
A164: 2018-06-14T10:20:00 | C164: 1798.75 | D164: 1801.7 | E164: 1795.25 | F164: 1795.85 | G164: 72241 | H164: 6.45 | I164: =IF(A164="","",IF(ROW()>$AA$16+1,AVERAGE(INDIRECT("H" & ROW()-$AA$16+1):H164),"")) -> 4.645 | J164: 5.727379455 | K164: 10.64181365 | L164: 4.645 | M164: 1809.785 | N164: 1781.915 | O164: 1809.185 | P164: 1787.765 | Q164: 1812.41 | R164: 1784.54 | S164: 1812.41 | T164: 1784.54 | U164: 1811.91 | V164: 1794.105 | W164: =IF(AND(W163=U163,F164<=U164),U164,IF(AND(W163=U163,F164>=U164),V164,IF(AND(W163=V163,F164>=V164),V164,IF(AND(W163=V163,F164<=V164),U164,””)))) -> 1811.91 | X164: SELL
A165: 2018-06-14T10:25:00 | C165: 1795.85 | D165: 1796 | E165: 1791.85 | F165: 1793.2 | G165: 65385 | H165: 4.15 | I165: =IF(A165="","",IF(ROW()>$AA$16+1,AVERAGE(INDIRECT("H" & ROW()-$AA$16+1):H165),"")) -> 4.45 | J165: 5.44058319 | K165: 9.992632285 | L165: 4.45 | M165: 1806.55 | N165: 1779.85 | O165: 1805.2 | P165: 1782.65 | Q165: 1807.275 | R165: 1780.575 | S165: 1807.275 | T165: 1780.575 | U165: 1807.275 | V165: 1794.105 | W165: =IF(AND(W164=U164,F165<=U165),U165,IF(AND(W164=U164,F165>=U165),V165,IF(AND(W164=V164,F165>=V165),V165,IF(AND(W164=V164,F165<=V165),U165,””)))) -> 1807.275 | X165: SELL
A166: 2018-06-14T10:30:00 | C166: 1793.65 | D166: 1794 | E166: 1792 | F166: 1793.2 | G166: 48140 | H166: 2 | I166: =IF(A166="","",IF(ROW()>$AA$16+1,AVERAGE(INDIRECT("H" & ROW()-$AA$16+1):H166),"")) -> 4.285 | J166: 4.81502261 | K166: 9.193369056 | L166: 4.285 | M166: 1806.055 | N166: 1780.345 | O166: 1804.855 | P166: 1781.145 | Q166: 1805.855 | R166: 1780.145 | S166: 1805.855 | T166: 1780.145 | U166: 1805.855 | V166: 1780.145 | W166: =IF(AND(W165=U165,F166<=U166),U166,IF(AND(W165=U165,F166>=U166),V166,IF(AND(W165=V165,F166>=V166),V166,IF(AND(W165=V165,F166<=V166),U166,””)))) -> 1805.855 | X166: SELL
A167: 2018-06-14T10:35:00 | C167: 1793.2 | D167: 1797 | E167: 1793.15 | F167: 1796.75 | G167: 30488 | H167: 3.85 | I167: =IF(A167="","",IF(ROW()>$AA$16+1,AVERAGE(INDIRECT("H" & ROW()-$AA$16+1):H167),"")) -> 4.275 | J167: 4.639563954 | K167: 8.659032151 | L167: 4.275 | M167: 1809.575 | N167: 1783.925 | O167: 1805.975 | P167: 1784.175 | Q167: 1807.9 | R167: 1782.25 | S167: 1807.9 | T167: 1782.25 | U167: 1805.855 | V167: 1782.25 | W167: =IF(AND(W166=U166,F167<=U167),U167,IF(AND(W166=U166,F167>=U167),V167,IF(AND(W166=V166,F167>=V167),V167,IF(AND(W166=V166,F167<=V167),U167,””)))) -> 1805.855 | X167: SELL
A168: 2018-06-14T10:40:00 | C168: 1796.75 | D168: 1798.9 | E168: 1796.05 | F168: 1796.15 | G168: 45845 | H168: 2.85 | I168: =IF(A168="","",IF(ROW()>$AA$16+1,AVERAGE(INDIRECT("H" & ROW()-$AA$16+1):H168),"")) -> 4.375 | J168: 4.31418869 | K168: 8.078128936 | L168: 4.375 | M168: 1809.275 | N168: 1783.025 | O168: 1809.175 | P168: 1785.775 | Q168: 1810.6 | R168: 1784.35 | S168: 1810.6 | T168: 1784.35 | U168: 1805.855 | V168: 1784.35 | W168: =IF(AND(W167=U167,F168<=U168),U168,IF(AND(W167=U167,F168>=U168),V168,IF(AND(W167=V167,F168>=V168),V168,IF(AND(W167=V167,F168<=V168),U168,””)))) -> 1805.855 | X168: SELL
A169: 2018-06-14T10:45:00 | C169: 1796.15 | D169: 1796.2 | E169: 1792.7 | F169: 1795.8 | G169: 37700 | H169: 3.5 | I169: =IF(A169="","",IF(ROW()>$AA$16+1,AVERAGE(INDIRECT("H" & ROW()-$AA$16+1):H169),"")) -> 4.45 | J169: 4.166154382 | K169: 7.620316042 | L169: 4.45 | M169: 1809.15 | N169: 1782.45 | O169: 1806.05 | P169: 1782.85 | Q169: 1807.8 | R169: 1781.1 | S169: 1807.8 | T169: 1781.1 | U169: 1805.855 | V169: 1784.35 | W169: =IF(AND(W168=U168,F169<=U169),U169,IF(AND(W168=U168,F169>=U169),V169,IF(AND(W168=V168,F169>=V169),V169,IF(AND(W168=V168,F169<=V169),U169,””)))) -> 1805.855 | X169: SELL
A170: 2018-06-14T10:50:00 | C170: 1795.7 | D170: 1798 | E170: 1795.25 | F170: 1797.1 | G170: 17596 | H170: 2.75 | I170: =IF(A170="","",IF(ROW()>$AA$16+1,AVERAGE(INDIRECT("H" & ROW()-$AA$16+1):H170),"")) -> 4.45 | J170: 3.908671767 | K170: 7.133284438 | L170: 4.45 | M170: 1810.45 | N170: 1783.75 | O170: 1808.6 | P170: 1784.65 | Q170: 1809.975 | R170: 1783.275 | S170: 1809.975 | T170: 1783.275 | U170: 1805.855 | V170: 1784.35 | W170: =IF(AND(W169=U169,F170<=U170),U170,IF(AND(W169=U169,F170>=U170),V170,IF(AND(W169=V169,F170>=V170),V170,IF(AND(W169=V169,F170<=V170),U170,””)))) -> 1805.855 | X170: SELL
A171: 2018-06-14T10:55:00 | C171: 1797.45 | D171: 1797.5 | E171: 1795.4 | F171: 1796.25 | G171: 16418 | H171: 2.1 | I171: =IF(A171="","",IF(ROW()>$AA$16+1,AVERAGE(INDIRECT("H" & ROW()-$AA$16+1):H171),"")) -> 4.19 | J171: 3.579822355 | K171: 6.629955994 | L171: 4.19 | M171: 1808.82 | N171: 1783.68 | O171: 1807.97 | P171: 1784.93 | Q171: 1809.02 | R171: 1783.88 | S171: 1809.02 | T171: 1783.88 | U171: 1805.855 | V171: 1784.35 | W171: =IF(AND(W170=U170,F171<=U171),U171,IF(AND(W170=U170,F171>=U171),V171,IF(AND(W170=V170,F171>=V171),V171,IF(AND(W170=V170,F171<=V171),U171,””)))) -> 1805.855 | X171: SELL
A172: 2018-06-14T11:00:00 | C172: 1796.25 | D172: 1797 | E172: 1795.05 | F172: 1795.3 | G172: 11975 | H172: 1.95 | I172: =IF(A172="","",IF(ROW()>$AA$16+1,AVERAGE(INDIRECT("H" & ROW()-$AA$16+1):H172),"")) -> 4.175 | J172: 3.283491018 | K172: 6.161960395 | L172: 4.175 | M172: 1807.825 | N172: 1782.775 | O172: 1807.575 | P172: 1784.475 | Q172: 1808.55 | R172: 1783.5 | S172: 1808.55 | T172: 1783.5 | U172: 1805.855 | V172: 1784.35 | W172: =IF(AND(W171=U171,F172<=U172),U172,IF(AND(W171=U171,F172>=U172),V172,IF(AND(W171=V171,F172>=V172),V172,IF(AND(W171=V171,F172<=V172),U172,””)))) -> 1805.855 | X172: SELL
A173: 2018-06-14T11:05:00 | C173: 1795.25 | D173: 1797 | E173: 1795.05 | F173: 1796.9 | G173: 17602 | H173: 1.95 | I173: =IF(A173="","",IF(ROW()>$AA$16+1,AVERAGE(INDIRECT("H" & ROW()-$AA$16+1):H173),"")) -> 3.155 | J173: 3.041038105 | K173: 5.740764355 | L173: 3.155 | M173: 1806.365 | N173: 1787.435 | O173: 1804.515 | P173: 1787.535 | Q173: 1805.49 | R173: 1786.56 | S173: 1805.49 | T173: 1786.56 | U173: 1805.49 | V173: 1786.56 | W173: =IF(AND(W172=U172,F173<=U173),U173,IF(AND(W172=U172,F173>=U173),V173,IF(AND(W172=V172,F173>=V173),V173,IF(AND(W172=V172,F173<=V173),U173,””)))) -> 1805.49 | X173: SELL
A174: 2018-06-14T11:10:00 | C174: 1797 | D174: 1798 | E174: 1795.2 | F174: 1795.95 | G174: 29864 | H174: 2.8 | I174: =IF(A174="","",IF(ROW()>$AA$16+1,AVERAGE(INDIRECT("H" & ROW()-$AA$16+1):H174),"")) -> 2.79 | J174: 2.997212995 | K174: 5.44668792 | L174: 2.79 | M174: 1804.32 | N174: 1787.58 | O174: 1803.57 | P174: 1789.63 | Q174: 1804.97 | R174: 1788.23 | S174: 1804.97 | T174: 1788.23 | U174: 1804.97 | V174: 1788.23 | W174: =IF(AND(W173=U173,F174<=U174),U174,IF(AND(W173=U173,F174>=U174),V174,IF(AND(W173=V173,F174>=V174),V174,IF(AND(W173=V173,F174<=V174),U174,””)))) -> 1804.97 | X174: SELL
A175: 2018-06-14T11:15:00 | C175: 1795.95 | D175: 1796 | E175: 1793.05 | F175: 1793.75 | G175: 20633 | H175: 2.95 | I175: =IF(A175="","",IF(ROW()>$AA$16+1,AVERAGE(INDIRECT("H" & ROW()-$AA$16+1):H175),"")) -> 2.67 | J175: 2.988628814 | K175: 5.197019128 | L175: 2.67 | M175: 1801.76 | N175: 1785.74 | O175: 1801.06 | P175: 1787.99 | Q175: 1802.535 | R175: 1786.515 | S175: 1802.535 | T175: 1786.515 | U175: 1802.535 | V175: 1788.23 | W175: =IF(AND(W174=U174,F175<=U175),U175,IF(AND(W174=U174,F175>=U175),V175,IF(AND(W174=V174,F175>=V175),V175,IF(AND(W174=V174,F175<=V175),U175,””)))) -> 1802.535 | X175: SELL
A176: 2018-06-14T11:20:00 | C176: 1793.75 | D176: 1797.4 | E176: 1793.3 | F176: 1797 | G176: 18113 | H176: 4.1 | I176: =IF(A176="","",IF(ROW()>$AA$16+1,AVERAGE(INDIRECT("H" & ROW()-$AA$16+1):H176),"")) -> 2.88 | J176: 3.190696303 | K176: 5.087317215 | L176: 2.88 | M176: 1805.64 | N176: 1788.36 | O176: 1801.94 | P176: 1788.76 | Q176: 1803.99 | R176: 1786.71 | S176: 1803.99 | T176: 1786.71 | U176: 1802.535 | V176: 1788.23 | W176: =IF(AND(W175=U175,F176<=U176),U176,IF(AND(W175=U175,F176>=U176),V176,IF(AND(W175=V175,F176>=V176),V176,IF(AND(W175=V175,F176<=V176),U176,””)))) -> 1802.535 | X176: SELL
A177: 2018-06-14T11:25:00 | C177: 1796.5 | D177: 1798 | E177: 1796.45 | F177: 1798 | G177: 15200 | H177: 1.55 | I177: =IF(A177="","",IF(ROW()>$AA$16+1,AVERAGE(INDIRECT("H" & ROW()-$AA$16+1):H177),"")) -> 2.65 | J177: 2.892387884 | K177: 4.733585493 | L177: 2.65 | M177: 1805.95 | N177: 1790.05 | O177: 1804.4 | P177: 1790.05 | Q177: 1805.175 | R177: 1789.275 | S177: 1805.175 | T177: 1789.275 | U177: 1802.535 | V177: 1789.275 | W177: =IF(AND(W176=U176,F177<=U177),U177,IF(AND(W176=U176,F177>=U177),V177,IF(AND(W176=V176,F177>=V177),V177,IF(AND(W176=V176,F177<=V177),U177,””)))) -> 1802.535 | X177: SELL
A178: 2018-06-14T11:30:00 | C178: 1798 | D178: 1800.9 | E178: 1797.85 | F178: 1800.1 | G178: 33424 | H178: 3.05 | I178: =IF(A178="","",IF(ROW()>$AA$16+1,AVERAGE(INDIRECT("H" & ROW()-$AA$16+1):H178),"")) -> 2.67 | J178: 2.921044632 | K178: 4.565226944 | L178: 2.67 | M178: 1808.11 | N178: 1792.09 | O178: 1805.86 | P178: 1792.89 | Q178: 1807.385 | R178: 1791.365 | S178: 1807.385 | T178: 1791.365 | U178: 1802.535 | V178: 1791.365 | W178: =IF(AND(W177=U177,F178<=U178),U178,IF(AND(W177=U177,F178>=U178),V178,IF(AND(W177=V177,F178>=V178),V178,IF(AND(W177=V177,F178<=V178),U178,””)))) -> 1802.535 | X178: SELL
A179: 2018-06-14T11:35:00 | C179: 1800.1 | D179: 1800.7 | E179: 1799.5 | F179: 1800 | G179: 28383 | H179: 1.2 | I179: =IF(A179="","",IF(ROW()>$AA$16+1,AVERAGE(INDIRECT("H" & ROW()-$AA$16+1):H179),"")) -> 2.44 | J179: 2.608127427 | K179: 4.22870425 | L179: 2.44 | M179: 1807.32 | N179: 1792.68 | O179: 1806.82 | P179: 1793.38 | Q179: 1807.42 | R179: 1792.78 | S179: 1807.42 | T179: 1792.78 | U179: 1802.535 | V179: 1792.78 | W179: =IF(AND(W178=U178,F179<=U179),U179,IF(AND(W178=U178,F179>=U179),V179,IF(AND(W178=V178,F179>=V179),V179,IF(AND(W178=V178,F179<=V179),U179,””)))) -> 1802.535 | X179: SELL
A180: 2018-06-14T11:40:00 | C180: 1800 | D180: 1800.05 | E180: 1799 | F180: 1799.35 | G180: 26219 | H180: 1.05 | I180: =IF(A180="","",IF(ROW()>$AA$16+1,AVERAGE(INDIRECT("H" & ROW()-$AA$16+1):H180),"")) -> 2.27 | J180: 2.324831531 | K180: 3.910833825 | L180: 2.27 | M180: 1806.16 | N180: 1792.54 | O180: 1805.81 | P180: 1793.24 | Q180: 1806.335 | R180: 1792.715 | S180: 1806.335 | T180: 1792.715 | U180: 1802.535 | V180: 1792.78 | W180: =IF(AND(W179=U179,F180<=U180),U180,IF(AND(W179=U179,F180>=U180),V180,IF(AND(W179=V179,F180>=V180),V180,IF(AND(W179=V179,F180<=V180),U180,””)))) -> 1802.535 | X180: SELL
A181: 2018-06-14T11:45:00 | C181: 1799.3 | D181: 1799.85 | E181: 1798.35 | F181: 1799 | G181: 13930 | H181: 1.5 | I181: =IF(A181="","",IF(ROW()>$AA$16+1,AVERAGE(INDIRECT("H" & ROW()-$AA$16+1):H181),"")) -> 2.21 | J181: 2.174862162 | K181: 3.669750442 | L181: 2.21 | M181: 1805.63 | N181: 1792.37 | O181: 1804.98 | P181: 1793.22 | Q181: 1805.73 | R181: 1792.47 | S181: 1805.73 | T181: 1792.47 | U181: 1802.535 | V181: 1792.78 | W181: =IF(AND(W180=U180,F181<=U181),U181,IF(AND(W180=U180,F181>=U181),V181,IF(AND(W180=V180,F181>=V181),V181,IF(AND(W180=V180,F181<=V181),U181,””)))) -> 1802.535 | X181: SELL
A182: 2018-06-14T11:50:00 | C182: 1799 | D182: 1799 | E182: 1797 | F182: 1798.05 | G182: 17108 | H182: 2 | I182: =IF(A182="","",IF(ROW()>$AA$16+1,AVERAGE(INDIRECT("H" & ROW()-$AA$16+1):H182),"")) -> 2.215 | J182: 2.143069041 | K182: 3.502775398 | L182: 2.215 | M182: 1804.695 | N182: 1791.405 | O182: 1803.645 | P182: 1792.355 | Q182: 1804.645 | R182: 1791.355 | S182: 1804.645 | T182: 1791.355 | U182: 1802.535 | V182: 1792.78 | W182: =IF(AND(W181=U181,F182<=U182),U182,IF(AND(W181=U181,F182>=U182),V182,IF(AND(W181=V181,F182>=V182),V182,IF(AND(W181=V181,F182<=V182),U182,””)))) -> 1802.535 | X182: SELL
A183: 2018-06-14T11:55:00 | C183: 1798 | D183: 1798.05 | E183: 1795.2 | F183: 1795.2 | G183: 31851 | H183: 2.85 | I183: =IF(A183="","",IF(ROW()>$AA$16+1,AVERAGE(INDIRECT("H" & ROW()-$AA$16+1):H183),"")) -> 2.305 | J183: 2.271601943 | K183: 3.437497858 | L183: 2.305 | M183: 1802.115 | N183: 1788.285 | O183: 1802.115 | P183: 1791.135 | Q183: 1803.54 | R183: 1789.71 | S183: 1803.54 | T183: 1789.71 | U183: 1802.535 | V183: 1792.78 | W183: =IF(AND(W182=U182,F183<=U183),U183,IF(AND(W182=U182,F183>=U183),V183,IF(AND(W182=V182,F183>=V183),V183,IF(AND(W182=V182,F183<=V183),U183,””)))) -> 1802.535 | X183: SELL
A184: 2018-06-14T12:00:00 | C184: 1795.7 | D184: 1797.35 | E184: 1793.9 | F184: 1794 | G184: 56228 | H184: 3.45 | I184: =IF(A184="","",IF(ROW()>$AA$16+1,AVERAGE(INDIRECT("H" & ROW()-$AA$16+1):H184),"")) -> 2.37 | J184: 2.485856135 | K184: 3.438748072 | L184: 2.37 | M184: 1801.11 | N184: 1786.89 | O184: 1801.01 | P184: 1790.24 | Q184: 1802.735 | R184: 1788.515 | S184: 1802.735 | T184: 1788.515 | U184: 1802.535 | V184: 1792.78 | W184: =IF(AND(W183=U183,F184<=U184),U184,IF(AND(W183=U183,F184>=U184),V184,IF(AND(W183=V183,F184>=V184),V184,IF(AND(W183=V183,F184<=V184),U184,””)))) -> 1802.535 | X184: SELL
A185: 2018-06-14T12:05:00 | C185: 1793.9 | D185: 1794.1 | E185: 1790.7 | F185: 1792.8 | G185: 55260 | H185: 3.4 | I185: =IF(A185="","",IF(ROW()>$AA$16+1,AVERAGE(INDIRECT("H" & ROW()-$AA$16+1):H185),"")) -> 2.415 | J185: 2.652064111 | K185: 3.434873265 | L185: 2.415 | M185: 1800.045 | N185: 1785.555 | O185: 1797.945 | P185: 1786.855 | Q185: 1799.645 | R185: 1785.155 | S185: 1799.645 | T185: 1785.155 | U185: 1799.645 | V185: 1792.78 | W185: =IF(AND(W184=U184,F185<=U185),U185,IF(AND(W184=U184,F185>=U185),V185,IF(AND(W184=V184,F185>=V185),V185,IF(AND(W184=V184,F185<=V185),U185,””)))) -> 1799.645 | X185: SELL
A186: 2018-06-14T12:10:00 | C186: 1792.75 | D186: 1792.75 | E186: 1788.35 | F186: 1789.3 | G186: 80856 | H186: 4.45 | I186: =IF(A186="","",IF(ROW()>$AA$16+1,AVERAGE(INDIRECT("H" & ROW()-$AA$16+1):H186),"")) -> 2.45 | J186: 2.978961545 | K186: 3.536385939 | L186: 2.45 | M186: 1796.65 | N186: 1781.95 | O186: 1795.7 | P186: 1785.4 | Q186: 1797.9 | R186: 1783.2 | S186: 1797.9 | T186: 1783.2 | U186: 1797.9 | V186: 1792.78 | W186: =IF(AND(W185=U185,F186<=U186),U186,IF(AND(W185=U185,F186>=U186),V186,IF(AND(W185=V185,F186>=V186),V186,IF(AND(W185=V185,F186<=V186),U186,””)))) -> 1797.9 | X186: SELL
A187: 2018-06-14T12:15:00 | C187: 1789.3 | D187: 1790.85 | E187: 1789 | F187: 1789.25 | G187: 23227 | H187: 1.85 | I187: =IF(A187="","",IF(ROW()>$AA$16+1,AVERAGE(INDIRECT("H" & ROW()-$AA$16+1):H187),"")) -> 2.48 | J187: 2.77369581 | K187: 3.367747345 | L187: 2.48 | M187: 1796.69 | N187: 1781.81 | O187: 1796.44 | P187: 1783.41 | Q187: 1797.365 | R187: 1782.485 | S187: 1797.365 | T187: 1782.485 | U187: 1797.365 | V187: 1782.485 | W187: =IF(AND(W186=U186,F187<=U187),U187,IF(AND(W186=U186,F187>=U187),V187,IF(AND(W186=V186,F187>=V187),V187,IF(AND(W186=V186,F187<=V187),U187,””)))) -> 1797.365 | X187: SELL
A188: 2018-06-14T12:20:00 | C188: 1789.3 | D188: 1790 | E188: 1789.3 | F188: 1789.6 | G188: 15631 | H188: 0.75 | I188: =IF(A188="","",IF(ROW()>$AA$16+1,AVERAGE(INDIRECT("H" & ROW()-$AA$16+1):H188),"")) -> 2.25 | J188: 2.405751117 | K188: 3.10597261 | L188: 2.25 | M188: 1796.35 | N188: 1782.85 | O188: 1796.05 | P188: 1783.25 | Q188: 1796.4 | R188: 1782.9 | S188: 1796.4 | T188: 1782.9 | U188: 1796.4 | V188: 1782.9 | W188: =IF(AND(W187=U187,F188<=U188),U188,IF(AND(W187=U187,F188>=U188),V188,IF(AND(W187=V187,F188>=V188),V188,IF(AND(W187=V187,F188<=V188),U188,””)))) -> 1796.4 | X188: SELL
A189: 2018-06-14T12:25:00 | C189: 1789.6 | D189: 1792.85 | E189: 1789.55 | F189: 1791.85 | G189: 21576 | H189: 3.3 | I189: =IF(A189="","",IF(ROW()>$AA$16+1,AVERAGE(INDIRECT("H" & ROW()-$AA$16+1):H189),"")) -> 2.46 | J189: 2.568341823 | K189: 3.125375349 | L189: 2.46 | M189: 1799.23 | N189: 1784.47 | O189: 1796.93 | P189: 1785.47 | Q189: 1798.58 | R189: 1783.82 | S189: 1798.58 | T189: 1783.82 | U189: 1796.4 | V189: 1783.82 | W189: =IF(AND(W188=U188,F189<=U189),U189,IF(AND(W188=U188,F189>=U189),V189,IF(AND(W188=V188,F189>=V189),V189,IF(AND(W188=V188,F189<=V189),U189,””)))) -> 1796.4 | X189: SELL
A190: 2018-06-14T12:30:00 | C190: 1791.45 | D190: 1793 | E190: 1790.1 | F190: 1792.2 | G190: 43837 | H190: 2.9 | I190: =IF(A190="","",IF(ROW()>$AA$16+1,AVERAGE(INDIRECT("H" & ROW()-$AA$16+1):H190),"")) -> 2.645 | J190: 2.62864331 | K190: 3.102837814 | L190: 2.645 | M190: 1800.135 | N190: 1784.265 | O190: 1798.035 | P190: 1785.065 | Q190: 1799.485 | R190: 1783.615 | S190: 1799.485 | T190: 1783.615 | U190: 1796.4 | V190: 1783.82 | W190: =IF(AND(W189=U189,F190<=U190),U190,IF(AND(W189=U189,F190>=U190),V190,IF(AND(W189=V189,F190>=V190),V190,IF(AND(W189=V189,F190<=V190),U190,””)))) -> 1796.4 | X190: SELL
A191: 2018-06-14T12:35:00 | C191: 1792.25 | D191: 1793.9 | E191: 1789.5 | F191: 1790.4 | G191: 78906 | H191: 4.4 | I191: =IF(A191="","",IF(ROW()>$AA$16+1,AVERAGE(INDIRECT("H" & ROW()-$AA$16+1):H191),"")) -> 2.935 | J191: 2.950708162 | K191: 3.232554033 | L191: 2.935 | M191: 1799.205 | N191: 1781.595 | O191: 1798.305 | P191: 1785.095 | Q191: 1800.505 | R191: 1782.895 | S191: 1800.505 | T191: 1782.895 | U191: 1796.4 | V191: 1783.82 | W191: =IF(AND(W190=U190,F191<=U191),U191,IF(AND(W190=U190,F191>=U191),V191,IF(AND(W190=V190,F191>=V191),V191,IF(AND(W190=V190,F191<=V191),U191,””)))) -> 1796.4 | X191: SELL
A192: 2018-06-14T12:40:00 | C192: 1790.35 | D192: 1792.5 | E192: 1788.05 | F192: 1789.55 | G192: 66676 | H192: 4.45 | I192: =IF(A192="","",IF(ROW()>$AA$16+1,AVERAGE(INDIRECT("H" & ROW()-$AA$16+1):H192),"")) -> 3.18 | J192: 3.223306678 | K192: 3.35429863 | L192: 3.18 | M192: 1799.09 | N192: 1780.01 | O192: 1797.59 | P192: 1782.96 | Q192: 1799.815 | R192: 1780.735 | S192: 1799.815 | T192: 1780.735 | U192: 1796.4 | V192: 1783.82 | W192: =IF(AND(W191=U191,F192<=U192),U192,IF(AND(W191=U191,F192>=U192),V192,IF(AND(W191=V191,F192>=V192),V192,IF(AND(W191=V191,F192<=V192),U192,””)))) -> 1796.4 | X192: SELL
A193: 2018-06-14T12:45:00 | C193: 1789.5 | D193: 1791.85 | E193: 1789.5 | F193: 1789.7 | G193: 31245 | H193: 2.35 | I193: =IF(A193="","",IF(ROW()>$AA$16+1,AVERAGE(INDIRECT("H" & ROW()-$AA$16+1):H193),"")) -> 3.13 | J193: 3.064523646 | K193: 3.253868767 | L193: 3.13 | M193: 1799.09 | N193: 1780.31 | O193: 1798.89 | P193: 1782.46 | Q193: 1800.065 | R193: 1781.285 | S193: 1800.065 | T193: 1781.285 | U193: 1796.4 | V193: 1783.82 | W193: =IF(AND(W192=U192,F193<=U193),U193,IF(AND(W192=U192,F193>=U193),V193,IF(AND(W192=V192,F193>=V193),V193,IF(AND(W192=V192,F193<=V193),U193,””)))) -> 1796.4 | X193: SELL
A194: 2018-06-14T12:50:00 | C194: 1789.6 | D194: 1791.6 | E194: 1789 | F194: 1790.8 | G194: 39032 | H194: 2.6 | I194: =IF(A194="","",IF(ROW()>$AA$16+1,AVERAGE(INDIRECT("H" & ROW()-$AA$16+1):H194),"")) -> 3.045 | J194: 2.980064801 | K194: 3.18848189 | L194: 3.045 | M194: 1799.935 | N194: 1781.665 | O194: 1798.135 | P194: 1782.465 | Q194: 1799.435 | R194: 1781.165 | S194: 1799.435 | T194: 1781.165 | U194: 1796.4 | V194: 1783.82 | W194: =IF(AND(W193=U193,F194<=U194),U194,IF(AND(W193=U193,F194>=U194),V194,IF(AND(W193=V193,F194>=V194),V194,IF(AND(W193=V193,F194<=V194),U194,””)))) -> 1796.4 | X194: =IF(A194="","",IF(ROW()>$AA$16+1,IF(F194<W194,"SELL","BUY"),"")) -> SELL
A195: 2018-06-14T12:55:00 | C195: 1790.8 | D195: 1790.85 | E195: 1790.05 | F195: 1790.35 | G195: 14260 | H195: 0.8 | I195: =IF(A195="","",IF(ROW()>$AA$16+1,AVERAGE(INDIRECT("H" & ROW()-$AA$16+1):H195),"")) -> 2.785 | J195: 2.583689383 | K195: 2.949633701 | L195: 2.785 | M195: 1798.705 | N195: 1781.995 | O195: 1798.405 | P195: 1782.495 | Q195: 1798.805 | R195: 1782.095 | S195: 1798.805 | T195: 1782.095 | U195: =IF(A195="","",IF(ROW()>$AA$16+1,IF(OR(S195<U194,F194>U194),S195,U194),"")) -> 1796.4 | V195: =IF(A195="","",IF(ROW()>$AA$16+1,IF(OR(T195>V194,F194<V194),T195,V194),"")) -> 1783.82 | W195: =IF(AND(W194=U194,F195<=U195),U195,IF(AND(W194=U194,F195>=U195),V195,IF(AND(W194=V194,F195>=V195),V195,IF(AND(W194=V194,F195<=V195),U195,””)))) -> 1796.4 | X195: SELL
A196: 2018-06-14T13:00:00 | C196: 1790.35 | D196: 1791 | E196: 1789.5 | F196: 1789.65 | G196: 20398 | H196: =IF(A196="","",MAX(D196-E196,ABS(D196-F195),ABS(E196-F195))) -> 1.5 | I196: =IF(A196="","",IF(ROW()>$AA$16+1,AVERAGE(INDIRECT("H" & ROW()-$AA$16+1):H196),"")) -> 2.49 | J196: =IF(A196="","",IF(ROW(H196)<2+$AA$16,"",IF(ROW(H196)=2+$AA$16,AVERAGE(OFFSET(H196,1-$AA$16,0,$AA$16,1)),2/($AA$16+1)*H196+(1-2/($AA$16+1))*J195))) -> 2.38665495 | K196: =IF(A196="","",IF(ROW(H196)<2+$AA$16,"",IF(ROW(H196)=2+$AA$16,AVERAGE(OFFSET(H196,1-$AA$16,0,$AA$16,1)),1/$AA$16*H196+(1-1/$AA$16)*K195))) -> 2.804670331 | L196: =IF($AA$19="ATR (SMA)",I196,IF($AA$19="ATR (EMA)",J196,K196)) -> 2.49 | M196: =IF(A196="","",IF(ROW()>$AA$16+1,F196 + (L196*$AA$17),"")) -> 1797.12 | N196: =IF(A196="","",IF(ROW()>$AA$16+1,F196 - (L196*$AA$17),"")) -> 1782.18 | O196: =IF(A196="","",IF(ROW()>$AA$16+1,E196 + (L196*$AA$17),"")) -> 1796.97 | P196: =IF(A196="","",IF(ROW()>$AA$16+1,D196 - (L196*$AA$17),"")) -> 1783.53 | Q196: =IF(A196="","",IF(ROW()>$AA$16+1,((D196+E196)/2) + (L196*$AA$17),"")) -> 1797.72 | R196: =IF(A196="","",IF(ROW()>$AA$16+1,((D196+E196)/2) - (L196*$AA$17),"")) -> 1782.78 | S196: =IF($AA$18="ATR SL(CLOSE)",M196,IF($AA$18="ATR SL(HIGH/LOW)",O196,Q196)) -> 1797.72 | T196: 1782.78 | U196: 1796.4 | V196: 1783.82 | W196: =IF(AND(W195=U195,F196<=U196),U196,IF(AND(W195=U195,F196>=U196),V196,IF(AND(W195=V195,F196>=V196),V196,IF(AND(W195=V195,F196<=V196),U196,””)))) -> 1796.4 | X196: SELL
A197: 2018-06-14T13:05:00 | C197: 1789.6 | D197: 1790.05 | E197: 1786 | F197: 1786.1 | G197: 45573 | H197: 4.05 | I197: =IF(A197="","",IF(ROW()>$AA$16+1,AVERAGE(INDIRECT("H" & ROW()-$AA$16+1):H197),"")) -> 2.71 | J197: 2.689081322 | K197: 2.929203298 | L197: 2.71 | M197: 1794.23 | N197: 1777.97 | O197: 1794.13 | P197: 1781.92 | Q197: 1796.155 | R197: 1779.895 | S197: 1796.155 | T197: 1779.895 | U197: 1796.155 | V197: 1783.82 | W197: =IF(AND(W196=U196,F197<=U197),U197,IF(AND(W196=U196,F197>=U197),V197,IF(AND(W196=V196,F197>=V197),V197,IF(AND(W196=V196,F197<=V197),U197,””)))) -> 1796.155 | X197: SELL
A198: 2018-06-14T13:10:00 | C198: 1785.6 | D198: 1788.7 | E198: 1785.45 | F198: 1786.5 | G198: 37463 | H198: 3.25 | I198: =IF(A198="","",IF(ROW()>$AA$16+1,AVERAGE(INDIRECT("H" & ROW()-$AA$16+1):H198),"")) -> 2.96 | J198: 2.791066536 | K198: 2.961282968 | L198: 2.96 | M198: 1795.38 | N198: 1777.62 | O198: 1794.33 | P198: 1779.82 | Q198: 1795.955 | R198: 1778.195 | S198: 1795.955 | T198: 1778.195 | U198: 1795.955 | V198: 1783.82 | W198: =IF(AND(W197=U197,F198<=U198),U198,IF(AND(W197=U197,F198>=U198),V198,IF(AND(W197=V197,F198>=V198),V198,IF(AND(W197=V197,F198<=V198),U198,””)))) -> 1795.955 | X198: SELL
A199: 2018-06-14T13:15:00 | C199: 1786.5 | D199: 1786.55 | E199: 1784.5 | F199: 1785.95 | G199: 62715 | H199: 2.05 | I199: =IF(A199="","",IF(ROW()>$AA$16+1,AVERAGE(INDIRECT("H" & ROW()-$AA$16+1):H199),"")) -> 2.835 | J199: 2.656327166 | K199: 2.870154671 | L199: 2.835 | M199: 1794.455 | N199: 1777.445 | O199: 1793.005 | P199: 1778.045 | Q199: 1794.03 | R199: 1777.02 | S199: 1794.03 | T199: 1777.02 | U199: 1794.03 | V199: 1783.82 | W199: =IF(AND(W198=U198,F199<=U199),U199,IF(AND(W198=U198,F199>=U199),V199,IF(AND(W198=V198,F199>=V199),V199,IF(AND(W198=V198,F199<=V199),U199,””)))) -> 1794.03 | X199: SELL
A200: 2018-06-14T13:20:00 | C200: 1785.95 | D200: 1786.7 | E200: 1785.5 | F200: 1786.7 | G200: 23829 | H200: 1.2 | I200: =IF(A200="","",IF(ROW()>$AA$16+1,AVERAGE(INDIRECT("H" & ROW()-$AA$16+1):H200),"")) -> 2.665 | J200: 2.391540409 | K200: 2.703139204 | L200: 2.665 | M200: 1794.695 | N200: 1778.705 | O200: 1793.495 | P200: 1778.705 | Q200: 1794.095 | R200: 1778.105 | S200: 1794.095 | T200: 1778.105 | U200: 1794.03 | V200: 1783.82 | W200: =IF(AND(W199=U199,F200<=U200),U200,IF(AND(W199=U199,F200>=U200),V200,IF(AND(W199=V199,F200>=V200),V200,IF(AND(W199=V199,F200<=V200),U200,””)))) -> 1794.03 | X200: SELL
... 2050 more rows

Sheet Sheet1 (hidden)
A1: 1
A2: 2
A3: 3
A4: 5
A5: 10
A6: 15
A7: 30
A8: 60
